Organisation Code,Organisation Label,Effective Date,Organisational Unit,Service Division Label,Category Internal Name,Purpose,Detailed Expenditure Code,Payment Date,Transaction Number,Irrecoverable VAT Amount,Amount,Capital Or Revenue,Beneficiary Name,Procurement Card
Http://opendatacommunities.org/id/metropolitan-district-council/leeds,Leeds City Council,31/10/2021,Adults and Health,Services For Older People Under 65 P/Dis,Agency Payments,Sheltered Accommodation,569,13/10/2021,2110-00001 ,0.00,5400.00,R,A & V TRANSITIONAL HOMES,No
Http://opendatacommunities.org/id/metropolitan-district-council/leeds,Leeds City Council,31/10/2021,Resources and Housing,Leeds Building Services,Supplies and Services,Operational Materials,205,13/10/2021,2110-00002,0.00,7.40,R,A ANDREWS & SONS (MARBLES & TILES),No
Http://opendatacommunities.org/id/metropolitan-district-council/leeds,Leeds City Council,31/10/2021,Children and Families,Social Care,Agency Payments,Services Rendered By Other Organisations,511,01/10/2021,2110-00003,0.00,217.42,R,REDACTED PERSONAL DATA,No
Http://opendatacommunities.org/id/metropolitan-district-council/leeds,Leeds City Council,31/10/2021,Children and Families,Social Care,Agency Payments,Services Rendered By Other Organisations,511,06/10/2021,2110-00004,0.00,321.60,R,REDACTED PERSONAL DATA,No
Http://opendatacommunities.org/id/metropolitan-district-council/leeds,Leeds City Council,31/10/2021,Resources and Housing,Leeds Building Services,Supplies and Services,Other Hired And Contracted Services,265,29/10/2021,2110-00005,0.00,27585.50,R,A Buckler (Haulage) Ltd,No
Http://opendatacommunities.org/id/metropolitan-district-council/leeds,Leeds City Council,31/10/2021,City Development,Libraries Arts & Heritage,Supplies and Services,Operational Furniture And Equipment,203,14/10/2021,2110-00006,0.00,702.97,R,A C Entertainment Technologies Ltd,No
Http://opendatacommunities.org/id/metropolitan-district-council/leeds,Leeds City Council,31/10/2021,City Development,Libraries Arts & Heritage,Transport,External Hire -Downtime,302,22/10/2021,2110-00007,0.00,674.32,R,A C Entertainment Technologies Ltd,No
Http://opendatacommunities.org/id/metropolitan-district-council/leeds,Leeds City Council,31/10/2021,City Development,Highways,Capital,OTHER COSTS,7,12/10/2021,2110-00008,0.00,1500.00,C,A C GILPIN,No
Http://opendatacommunities.org/id/metropolitan-district-council/leeds,Leeds City Council,31/10/2021,Children and Families,Social Care,Agency Payments,Services Rendered By Other Organisations,511,01/10/2021,2110-00009,0.00,311.08,R,REDACTED PERSONAL DATA,No
Http://opendatacommunities.org/id/metropolitan-district-council/leeds,Leeds City Council,31/10/2021,Resources and Housing,HRA Housing Leeds,Capital,CONSTRUCTION,3,01/10/2021,2110-00010,0.00,150000.00,C,A Connolly Limited,No
Http://opendatacommunities.org/id/metropolitan-district-council/leeds,Leeds City Council,31/10/2021,Resources and Housing,HRA Housing Leeds,Capital,CONSTRUCTION,3,05/10/2021,2110-00011,0.00,150000.00,C,A Connolly Limited,No
Http://opendatacommunities.org/id/metropolitan-district-council/leeds,Leeds City Council,31/10/2021,Resources and Housing,HRA Housing Leeds,Capital,CONSTRUCTION,3,15/10/2021,2110-00012,0.00,6786.40,C,A Connolly Limited,No
Http://opendatacommunities.org/id/metropolitan-district-council/leeds,Leeds City Council,31/10/2021,Resources and Housing,Leeds Building Services,Supplies and Services,Other Hired And Contracted Services,265,01/10/2021,2110-00013,0.00,1470.00,R,A Coole Electrical Ltd,No
Http://opendatacommunities.org/id/metropolitan-district-council/leeds,Leeds City Council,31/10/2021,Resources and Housing,Leeds Building Services,Supplies and Services,Other Hired And Contracted Services,265,05/10/2021,2110-00014,0.00,50.00,R,A Coole Electrical Ltd,No
Http://opendatacommunities.org/id/metropolitan-district-council/leeds,Leeds City Council,31/10/2021,Resources and Housing,Leeds Building Services,Supplies and Services,Other Hired And Contracted Services,265,05/10/2021,2110-00015,0.00,85.00,R,A Coole Electrical Ltd,No
Http://opendatacommunities.org/id/metropolitan-district-council/leeds,Leeds City Council,31/10/2021,Resources and Housing,Leeds Building Services,Supplies and Services,Other Hired And Contracted Services,265,05/10/2021,2110-00016,0.00,50.00,R,A Coole Electrical Ltd,No
Http://opendatacommunities.org/id/metropolitan-district-council/leeds,Leeds City Council,31/10/2021,Resources and Housing,Leeds Building Services,Supplies and Services,Other Hired And Contracted Services,265,08/10/2021,2110-00017,0.00,4190.00,R,A Coole Electrical Ltd,No
Http://opendatacommunities.org/id/metropolitan-district-council/leeds,Leeds City Council,31/10/2021,Resources and Housing,Leeds Building Services,Supplies and Services,Other Hired And Contracted Services,265,08/10/2021,2110-00018,0.00,803.00,R,A Coole Electrical Ltd,No
Http://opendatacommunities.org/id/metropolitan-district-council/leeds,Leeds City Council,31/10/2021,Resources and Housing,Leeds Building Services,Supplies and Services,Other Hired And Contracted Services,265,08/10/2021,2110-00019,0.00,2360.00,R,A Coole Electrical Ltd,No
Http://opendatacommunities.org/id/metropolitan-district-council/leeds,Leeds City Council,31/10/2021,Resources and Housing,Leeds Building Services,Supplies and Services,Other Hired And Contracted Services,265,08/10/2021,2110-00020,0.00,1575.00,R,A Coole Electrical Ltd,No
Http://opendatacommunities.org/id/metropolitan-district-council/leeds,Leeds City Council,31/10/2021,Resources and Housing,Leeds Building Services,Supplies and Services,Other Hired And Contracted Services,265,08/10/2021,2110-00021,0.00,1320.00,R,A Coole Electrical Ltd,No
Http://opendatacommunities.org/id/metropolitan-district-council/leeds,Leeds City Council,31/10/2021,Resources and Housing,Leeds Building Services,Supplies and Services,Other Hired And Contracted Services,265,15/10/2021,2110-00022,0.00,3176.00,R,A Coole Electrical Ltd,No
Http://opendatacommunities.org/id/metropolitan-district-council/leeds,Leeds City Council,31/10/2021,Resources and Housing,Leeds Building Services,Supplies and Services,Other Hired And Contracted Services,265,15/10/2021,2110-00023,0.00,3598.00,R,A Coole Electrical Ltd,No
Http://opendatacommunities.org/id/metropolitan-district-council/leeds,Leeds City Council,31/10/2021,Resources and Housing,Leeds Building Services,Supplies and Services,Other Hired And Contracted Services,265,15/10/2021,2110-00024,0.00,3233.00,R,A Coole Electrical Ltd,No
Http://opendatacommunities.org/id/metropolitan-district-council/leeds,Leeds City Council,31/10/2021,Resources and Housing,Leeds Building Services,Supplies and Services,Other Hired And Contracted Services,265,18/10/2021,2110-00025,0.00,85.00,R,A Coole Electrical Ltd,No
Http://opendatacommunities.org/id/metropolitan-district-council/leeds,Leeds City Council,31/10/2021,Resources and Housing,Leeds Building Services,Supplies and Services,Other Hired And Contracted Services,265,18/10/2021,2110-00026,0.00,3353.00,R,A Coole Electrical Ltd,No
Http://opendatacommunities.org/id/metropolitan-district-council/leeds,Leeds City Council,31/10/2021,Resources and Housing,Leeds Building Services,Supplies and Services,Other Hired And Contracted Services,265,20/10/2021,2110-00027,0.00,1635.00,R,A Coole Electrical Ltd,No
Http://opendatacommunities.org/id/metropolitan-district-council/leeds,Leeds City Council,31/10/2021,Resources and Housing,Leeds Building Services,Supplies and Services,Other Hired And Contracted Services,265,20/10/2021,2110-00028,0.00,1460.00,R,A Coole Electrical Ltd,No
Http://opendatacommunities.org/id/metropolitan-district-council/leeds,Leeds City Council,31/10/2021,Resources and Housing,Leeds Building Services,Supplies and Services,Other Hired And Contracted Services,265,28/10/2021,2110-00029,0.00,1380.00,R,A Coole Electrical Ltd,No
Http://opendatacommunities.org/id/metropolitan-district-council/leeds,Leeds City Council,31/10/2021,Resources and Housing,Leeds Building Services,Supplies and Services,Other Hired And Contracted Services,265,28/10/2021,2110-00030,0.00,1410.00,R,A Coole Electrical Ltd,No
Http://opendatacommunities.org/id/metropolitan-district-council/leeds,Leeds City Council,31/10/2021,Resources and Housing,Leeds Building Services,Supplies and Services,Other Hired And Contracted Services,265,28/10/2021,2110-00031,0.00,3235.00,R,A Coole Electrical Ltd,No
Http://opendatacommunities.org/id/metropolitan-district-council/leeds,Leeds City Council,31/10/2021,Resources and Housing,Leeds Building Services,Supplies and Services,Other Hired And Contracted Services,265,28/10/2021,2110-00032,0.00,3060.00,R,A Coole Electrical Ltd,No
Http://opendatacommunities.org/id/metropolitan-district-council/leeds,Leeds City Council,31/10/2021,Children and Families,Social Care,Agency Payments,Contact,548,01/10/2021,2110-00033,0.00,9.40,R,REDACTED PERSONAL DATA,No
Http://opendatacommunities.org/id/metropolitan-district-council/leeds,Leeds City Council,31/10/2021,Children and Families,Social Care,Agency Payments,Contact,548,08/10/2021,2110-00034,0.00,9.40,R,REDACTED PERSONAL DATA,No
Http://opendatacommunities.org/id/metropolitan-district-council/leeds,Leeds City Council,31/10/2021,Children and Families,Social Care,Agency Payments,Contact,548,15/10/2021,2110-00035,0.00,9.40,R,REDACTED PERSONAL DATA,No
Http://opendatacommunities.org/id/metropolitan-district-council/leeds,Leeds City Council,31/10/2021,Communities and Environment,Customer Access,Supplies and Services,Bought In Professional Services,277,06/10/2021,2110-00036,0.00,18.00,R,A D Dumitru,No
Http://opendatacommunities.org/id/metropolitan-district-council/leeds,Leeds City Council,31/10/2021,Communities and Environment,Customer Access,Supplies and Services,Bought In Professional Services,277,06/10/2021,2110-00037,0.00,18.00,R,A D Dumitru,No
Http://opendatacommunities.org/id/metropolitan-district-council/leeds,Leeds City Council,31/10/2021,Communities and Environment,Customer Access,Supplies and Services,Bought In Professional Services,277,13/10/2021,2110-00038,0.00,9.00,R,A D Dumitru,No
Http://opendatacommunities.org/id/metropolitan-district-council/leeds,Leeds City Council,31/10/2021,Communities and Environment,Customer Access,Supplies and Services,Bought In Professional Services,277,20/10/2021,2110-00039,0.00,27.00,R,A D Dumitru,No
Http://opendatacommunities.org/id/metropolitan-district-council/leeds,Leeds City Council,31/10/2021,Communities and Environment,Customer Access,Supplies and Services,Bought In Professional Services,277,20/10/2021,2110-00040,0.00,13.50,R,A D Dumitru,No
Http://opendatacommunities.org/id/metropolitan-district-council/leeds,Leeds City Council,31/10/2021,Communities and Environment,Customer Access,Supplies and Services,Bought In Professional Services,277,20/10/2021,2110-00041,0.00,27.00,R,A D Dumitru,No
Http://opendatacommunities.org/id/metropolitan-district-council/leeds,Leeds City Council,31/10/2021,Communities and Environment,Customer Access,Supplies and Services,Bought In Professional Services,277,20/10/2021,2110-00042,0.00,27.00,R,A D Dumitru,No
Http://opendatacommunities.org/id/metropolitan-district-council/leeds,Leeds City Council,31/10/2021,Communities and Environment,Customer Access,Supplies and Services,Bought In Professional Services,277,20/10/2021,2110-00043,0.00,36.00,R,A D Dumitru,No
Http://opendatacommunities.org/id/metropolitan-district-council/leeds,Leeds City Council,31/10/2021,Communities and Environment,Customer Access,Supplies and Services,Bought In Professional Services,277,27/10/2021,2110-00044,0.00,9.00,R,A D Dumitru,No
Http://opendatacommunities.org/id/metropolitan-district-council/leeds,Leeds City Council,31/10/2021,Communities and Environment,Customer Access,Supplies and Services,Bought In Professional Services,277,27/10/2021,2110-00045,0.00,13.50,R,A D Dumitru,No
Http://opendatacommunities.org/id/metropolitan-district-council/leeds,Leeds City Council,31/10/2021,Children and Families,Social Care,Agency Payments,Services Rendered By Voluntary Sector,505,01/10/2021,2110-00046,0.00,3806.61,R,REDACTED PERSONAL DATA,No
Http://opendatacommunities.org/id/metropolitan-district-council/leeds,Leeds City Council,31/10/2021,Children and Families,Social Care,Agency Payments,Services Rendered By Voluntary Sector,505,06/10/2021,2110-00047,0.00,783.90,R,REDACTED PERSONAL DATA,No
Http://opendatacommunities.org/id/metropolitan-district-council/leeds,Leeds City Council,31/10/2021,Children and Families,Social Care,Agency Payments,Services Rendered By Other Organisations,511,01/10/2021,2110-00048,0.00,217.42,R,REDACTED PERSONAL DATA,No
Http://opendatacommunities.org/id/metropolitan-district-council/leeds,Leeds City Council,31/10/2021,Children and Families,Social Care,Agency Payments,Services Rendered By Other Organisations,511,06/10/2021,2110-00049,0.00,522.60,R,REDACTED PERSONAL DATA,No
Http://opendatacommunities.org/id/metropolitan-district-council/leeds,Leeds City Council,31/10/2021,Children and Families,Social Care,Agency Payments,Services Rendered By Other Organisations,511,01/10/2021,2110-00050,0.00,178.40,R,REDACTED PERSONAL DATA,No
Http://opendatacommunities.org/id/metropolitan-district-council/leeds,Leeds City Council,31/10/2021,Children and Families,Social Care,Agency Payments,Services Rendered By Other Organisations,511,01/10/2021,2110-00051,0.00,587.05,R,REDACTED PERSONAL DATA,No
Http://opendatacommunities.org/id/metropolitan-district-council/leeds,Leeds City Council,31/10/2021,Adults and Health,Other Generic Services,Agency Payments,Fees To Carers,563,01/10/2021,2110-00052,0.00,401.20,R,REDACTED PERSONAL DATA,No
Http://opendatacommunities.org/id/metropolitan-district-council/leeds,Leeds City Council,31/10/2021,Adults and Health,Other Generic Services,Agency Payments,Fees To Carers,563,15/10/2021,2110-00053,0.00,509.22,R,REDACTED PERSONAL DATA,No
Http://opendatacommunities.org/id/metropolitan-district-council/leeds,Leeds City Council,31/10/2021,Adults and Health,Other Generic Services,Agency Payments,Fees To Carers,563,15/10/2021,2110-00054,0.00,56.70,R,REDACTED PERSONAL DATA,No
Http://opendatacommunities.org/id/metropolitan-district-council/leeds,Leeds City Council,31/10/2021,Adults and Health,Other Generic Services,Agency Payments,Fees To Carers,563,15/10/2021,2110-00055,0.00,451.35,R,REDACTED PERSONAL DATA,No
Http://opendatacommunities.org/id/metropolitan-district-council/leeds,Leeds City Council,31/10/2021,Adults and Health,Other Generic Services,Agency Payments,Fees To Carers,563,22/10/2021,2110-00056,0.00,81.90,R,REDACTED PERSONAL DATA,No
Http://opendatacommunities.org/id/metropolitan-district-council/leeds,Leeds City Council,31/10/2021,Adults and Health,Other Generic Services,Agency Payments,Fees To Carers,563,29/10/2021,2110-00057,0.00,122.85,R,REDACTED PERSONAL DATA,No
Http://opendatacommunities.org/id/metropolitan-district-council/leeds,Leeds City Council,31/10/2021,Resources and Housing,Leeds Building Services,Supplies and Services,Operational Materials,205,01/10/2021,2110-00058,0.00,1558.96,R,A J H  Pump Supply & Repair Ltd,No
Http://opendatacommunities.org/id/metropolitan-district-council/leeds,Leeds City Council,31/10/2021,Resources and Housing,Leeds Building Services,Supplies and Services,Operational Materials,205,01/10/2021,2110-00059,0.00,52.50,R,A J H  Pump Supply & Repair Ltd,No
Http://opendatacommunities.org/id/metropolitan-district-council/leeds,Leeds City Council,31/10/2021,Resources and Housing,Leeds Building Services,Supplies and Services,Operational Materials,205,20/10/2021,2110-00060,0.00,666.00,R,A J H  Pump Supply & Repair Ltd,No
Http://opendatacommunities.org/id/metropolitan-district-council/leeds,Leeds City Council,31/10/2021,City Development,Libraries Arts & Heritage,Supplies and Services,Resaleable Materials,204,19/10/2021,2110-00061,0.00,485.03,R,A J PROMOTIONS,No
Http://opendatacommunities.org/id/metropolitan-district-council/leeds,Leeds City Council,31/10/2021,Children and Families,Social Care,Agency Payments,Services Rendered By Other Organisations,511,01/10/2021,2110-00062,0.00,1739.40,R,REDACTED PERSONAL DATA,No
Http://opendatacommunities.org/id/metropolitan-district-council/leeds,Leeds City Council,31/10/2021,Resources and Housing,HRA Housing Leeds,Capital,OTHER COSTS,7,22/10/2021,2110-00063,0.00,170.09,C,REDACTED PERSONAL DATA,No
Http://opendatacommunities.org/id/metropolitan-district-council/leeds,Leeds City Council,31/10/2021,Children and Families,Social Care,Employees,Agency Staff,8,20/10/2021,2110-00064,0.00,420.00,R,A Little Something Extra Ltd,No
Http://opendatacommunities.org/id/metropolitan-district-council/leeds,Leeds City Council,31/10/2021,Communities and Environment,Customer Access,Supplies and Services,Bought In Professional Services,277,06/10/2021,2110-00065,0.00,18.00,R,A MOHAMMED,No
Http://opendatacommunities.org/id/metropolitan-district-council/leeds,Leeds City Council,31/10/2021,Communities and Environment,Customer Access,Supplies and Services,Bought In Professional Services,277,06/10/2021,2110-00066,0.00,9.00,R,A MOHAMMED,No
Http://opendatacommunities.org/id/metropolitan-district-council/leeds,Leeds City Council,31/10/2021,Communities and Environment,Customer Access,Supplies and Services,Bought In Professional Services,277,06/10/2021,2110-00067,0.00,18.00,R,A MOHAMMED,No
Http://opendatacommunities.org/id/metropolitan-district-council/leeds,Leeds City Council,31/10/2021,Communities and Environment,Customer Access,Supplies and Services,Bought In Professional Services,277,06/10/2021,2110-00068,0.00,18.00,R,A MOHAMMED,No
Http://opendatacommunities.org/id/metropolitan-district-council/leeds,Leeds City Council,31/10/2021,Communities and Environment,Customer Access,Supplies and Services,Bought In Professional Services,277,06/10/2021,2110-00069,0.00,18.00,R,A MOHAMMED,No
Http://opendatacommunities.org/id/metropolitan-district-council/leeds,Leeds City Council,31/10/2021,Communities and Environment,Customer Access,Supplies and Services,Bought In Professional Services,277,06/10/2021,2110-00070,0.00,18.00,R,A MOHAMMED,No
Http://opendatacommunities.org/id/metropolitan-district-council/leeds,Leeds City Council,31/10/2021,Communities and Environment,Customer Access,Supplies and Services,Bought In Professional Services,277,06/10/2021,2110-00071,0.00,18.00,R,A MOHAMMED,No
Http://opendatacommunities.org/id/metropolitan-district-council/leeds,Leeds City Council,31/10/2021,Communities and Environment,Customer Access,Supplies and Services,Bought In Professional Services,277,06/10/2021,2110-00072,0.00,22.50,R,A MOHAMMED,No
Http://opendatacommunities.org/id/metropolitan-district-council/leeds,Leeds City Council,31/10/2021,Communities and Environment,Customer Access,Supplies and Services,Bought In Professional Services,277,13/10/2021,2110-00073,0.00,18.00,R,A MOHAMMED,No
Http://opendatacommunities.org/id/metropolitan-district-council/leeds,Leeds City Council,31/10/2021,Communities and Environment,Customer Access,Supplies and Services,Bought In Professional Services,277,13/10/2021,2110-00074,0.00,18.00,R,A MOHAMMED,No
Http://opendatacommunities.org/id/metropolitan-district-council/leeds,Leeds City Council,31/10/2021,Communities and Environment,Customer Access,Supplies and Services,Bought In Professional Services,277,13/10/2021,2110-00075,0.00,18.00,R,A MOHAMMED,No
Http://opendatacommunities.org/id/metropolitan-district-council/leeds,Leeds City Council,31/10/2021,Communities and Environment,Customer Access,Supplies and Services,Bought In Professional Services,277,13/10/2021,2110-00076,0.00,36.00,R,A MOHAMMED,No
Http://opendatacommunities.org/id/metropolitan-district-council/leeds,Leeds City Council,31/10/2021,Communities and Environment,Customer Access,Supplies and Services,Bought In Professional Services,277,13/10/2021,2110-00077,0.00,18.00,R,A MOHAMMED,No
Http://opendatacommunities.org/id/metropolitan-district-council/leeds,Leeds City Council,31/10/2021,Communities and Environment,Customer Access,Supplies and Services,Bought In Professional Services,277,13/10/2021,2110-00078,0.00,12.00,R,A MOHAMMED,No
Http://opendatacommunities.org/id/metropolitan-district-council/leeds,Leeds City Council,31/10/2021,Communities and Environment,Customer Access,Supplies and Services,Bought In Professional Services,277,13/10/2021,2110-00079,0.00,36.00,R,A MOHAMMED,No
Http://opendatacommunities.org/id/metropolitan-district-council/leeds,Leeds City Council,31/10/2021,Communities and Environment,Customer Access,Supplies and Services,Bought In Professional Services,277,13/10/2021,2110-00080,0.00,18.00,R,A MOHAMMED,No
Http://opendatacommunities.org/id/metropolitan-district-council/leeds,Leeds City Council,31/10/2021,Communities and Environment,Customer Access,Supplies and Services,Bought In Professional Services,277,13/10/2021,2110-00081,0.00,18.00,R,A MOHAMMED,No
Http://opendatacommunities.org/id/metropolitan-district-council/leeds,Leeds City Council,31/10/2021,Communities and Environment,Customer Access,Supplies and Services,Bought In Professional Services,277,13/10/2021,2110-00082,0.00,18.00,R,A MOHAMMED,No
Http://opendatacommunities.org/id/metropolitan-district-council/leeds,Leeds City Council,31/10/2021,Communities and Environment,Customer Access,Supplies and Services,Bought In Professional Services,277,13/10/2021,2110-00083,0.00,22.50,R,A MOHAMMED,No
Http://opendatacommunities.org/id/metropolitan-district-council/leeds,Leeds City Council,31/10/2021,Communities and Environment,Customer Access,Supplies and Services,Bought In Professional Services,277,20/10/2021,2110-00084,0.00,27.00,R,A MOHAMMED,No
Http://opendatacommunities.org/id/metropolitan-district-council/leeds,Leeds City Council,31/10/2021,Communities and Environment,Customer Access,Supplies and Services,Bought In Professional Services,277,20/10/2021,2110-00085,0.00,18.00,R,A MOHAMMED,No
Http://opendatacommunities.org/id/metropolitan-district-council/leeds,Leeds City Council,31/10/2021,Communities and Environment,Customer Access,Supplies and Services,Bought In Professional Services,277,20/10/2021,2110-00086,0.00,18.00,R,A MOHAMMED,No
Http://opendatacommunities.org/id/metropolitan-district-council/leeds,Leeds City Council,31/10/2021,Communities and Environment,Customer Access,Supplies and Services,Bought In Professional Services,277,20/10/2021,2110-00087,0.00,18.00,R,A MOHAMMED,No
Http://opendatacommunities.org/id/metropolitan-district-council/leeds,Leeds City Council,31/10/2021,Communities and Environment,Customer Access,Supplies and Services,Bought In Professional Services,277,20/10/2021,2110-00088,0.00,18.00,R,A MOHAMMED,No
Http://opendatacommunities.org/id/metropolitan-district-council/leeds,Leeds City Council,31/10/2021,Communities and Environment,Customer Access,Supplies and Services,Bought In Professional Services,277,20/10/2021,2110-00089,0.00,18.00,R,A MOHAMMED,No
Http://opendatacommunities.org/id/metropolitan-district-council/leeds,Leeds City Council,31/10/2021,Communities and Environment,Customer Access,Supplies and Services,Bought In Professional Services,277,20/10/2021,2110-00090,0.00,27.00,R,A MOHAMMED,No
Http://opendatacommunities.org/id/metropolitan-district-council/leeds,Leeds City Council,31/10/2021,Communities and Environment,Customer Access,Supplies and Services,Bought In Professional Services,277,20/10/2021,2110-00091,0.00,18.00,R,A MOHAMMED,No
Http://opendatacommunities.org/id/metropolitan-district-council/leeds,Leeds City Council,31/10/2021,Communities and Environment,Customer Access,Supplies and Services,Bought In Professional Services,277,20/10/2021,2110-00092,0.00,18.00,R,A MOHAMMED,No
Http://opendatacommunities.org/id/metropolitan-district-council/leeds,Leeds City Council,31/10/2021,Communities and Environment,Customer Access,Supplies and Services,Bought In Professional Services,277,27/10/2021,2110-00093,0.00,63.00,R,A MOHAMMED,No
Http://opendatacommunities.org/id/metropolitan-district-council/leeds,Leeds City Council,31/10/2021,Communities and Environment,Customer Access,Supplies and Services,Bought In Professional Services,277,27/10/2021,2110-00094,0.00,9.00,R,A MOHAMMED,No
Http://opendatacommunities.org/id/metropolitan-district-council/leeds,Leeds City Council,31/10/2021,Communities and Environment,Customer Access,Supplies and Services,Bought In Professional Services,277,27/10/2021,2110-00095,0.00,27.00,R,A MOHAMMED,No
Http://opendatacommunities.org/id/metropolitan-district-council/leeds,Leeds City Council,31/10/2021,Communities and Environment,Customer Access,Supplies and Services,Bought In Professional Services,277,27/10/2021,2110-00096,0.00,9.00,R,A MOHAMMED,No
Http://opendatacommunities.org/id/metropolitan-district-council/leeds,Leeds City Council,31/10/2021,Communities and Environment,Customer Access,Supplies and Services,Bought In Professional Services,277,27/10/2021,2110-00097,0.00,18.00,R,A MOHAMMED,No
Http://opendatacommunities.org/id/metropolitan-district-council/leeds,Leeds City Council,31/10/2021,Communities and Environment,Customer Access,Supplies and Services,Bought In Professional Services,277,27/10/2021,2110-00098,0.00,27.00,R,A MOHAMMED,No
Http://opendatacommunities.org/id/metropolitan-district-council/leeds,Leeds City Council,31/10/2021,Communities and Environment,Customer Access,Supplies and Services,Bought In Professional Services,277,27/10/2021,2110-00099,0.00,18.00,R,A MOHAMMED,No
Http://opendatacommunities.org/id/metropolitan-district-council/leeds,Leeds City Council,31/10/2021,Communities and Environment,Customer Access,Supplies and Services,Bought In Professional Services,277,27/10/2021,2110-00100,0.00,9.00,R,A MOHAMMED,No
Http://opendatacommunities.org/id/metropolitan-district-council/leeds,Leeds City Council,31/10/2021,Children and Families,Social Care,Agency Payments,Services Rendered By Other Organisations,511,01/10/2021,2110-00101,0.00,1672.50,R,REDACTED PERSONAL DATA,No
Http://opendatacommunities.org/id/metropolitan-district-council/leeds,Leeds City Council,31/10/2021,Children and Families,Social Care,Agency Payments,Services Rendered By Other Organisations,511,06/10/2021,2110-00102,0.00,1567.80,R,REDACTED PERSONAL DATA,No
Http://opendatacommunities.org/id/metropolitan-district-council/leeds,Leeds City Council,31/10/2021,Communities and Environment,Customer Access,Supplies and Services,Bought In Professional Services,277,06/10/2021,2110-00103,0.00,18.00,R,A NAMAKI,No
Http://opendatacommunities.org/id/metropolitan-district-council/leeds,Leeds City Council,31/10/2021,Communities and Environment,Customer Access,Supplies and Services,Bought In Professional Services,277,06/10/2021,2110-00104,0.00,18.00,R,A NAMAKI,No
Http://opendatacommunities.org/id/metropolitan-district-council/leeds,Leeds City Council,31/10/2021,Communities and Environment,Customer Access,Supplies and Services,Bought In Professional Services,277,06/10/2021,2110-00105,0.00,9.00,R,A NAMAKI,No
Http://opendatacommunities.org/id/metropolitan-district-council/leeds,Leeds City Council,31/10/2021,Communities and Environment,Customer Access,Supplies and Services,Bought In Professional Services,277,06/10/2021,2110-00106,0.00,18.00,R,A NAMAKI,No
Http://opendatacommunities.org/id/metropolitan-district-council/leeds,Leeds City Council,31/10/2021,Communities and Environment,Customer Access,Supplies and Services,Bought In Professional Services,277,13/10/2021,2110-00107,0.00,27.00,R,A NAMAKI,No
Http://opendatacommunities.org/id/metropolitan-district-council/leeds,Leeds City Council,31/10/2021,Communities and Environment,Customer Access,Supplies and Services,Bought In Professional Services,277,13/10/2021,2110-00108,0.00,27.00,R,A NAMAKI,No
Http://opendatacommunities.org/id/metropolitan-district-council/leeds,Leeds City Council,31/10/2021,Communities and Environment,Customer Access,Supplies and Services,Bought In Professional Services,277,13/10/2021,2110-00109,0.00,18.00,R,A NAMAKI,No
Http://opendatacommunities.org/id/metropolitan-district-council/leeds,Leeds City Council,31/10/2021,Communities and Environment,Customer Access,Supplies and Services,Bought In Professional Services,277,20/10/2021,2110-00110,0.00,18.00,R,A NAMAKI,No
Http://opendatacommunities.org/id/metropolitan-district-council/leeds,Leeds City Council,31/10/2021,Communities and Environment,Customer Access,Supplies and Services,Bought In Professional Services,277,20/10/2021,2110-00111,0.00,18.00,R,A NAMAKI,No
Http://opendatacommunities.org/id/metropolitan-district-council/leeds,Leeds City Council,31/10/2021,Communities and Environment,Customer Access,Supplies and Services,Bought In Professional Services,277,20/10/2021,2110-00112,0.00,18.00,R,A NAMAKI,No
Http://opendatacommunities.org/id/metropolitan-district-council/leeds,Leeds City Council,31/10/2021,Communities and Environment,Customer Access,Supplies and Services,Bought In Professional Services,277,27/10/2021,2110-00113,0.00,36.00,R,A NAMAKI,No
Http://opendatacommunities.org/id/metropolitan-district-council/leeds,Leeds City Council,31/10/2021,Communities and Environment,Customer Access,Supplies and Services,Bought In Professional Services,277,27/10/2021,2110-00114,0.00,18.00,R,A NAMAKI,No
Http://opendatacommunities.org/id/metropolitan-district-council/leeds,Leeds City Council,31/10/2021,Communities and Environment,Customer Access,Supplies and Services,Bought In Professional Services,277,27/10/2021,2110-00115,0.00,18.00,R,A NAMAKI,No
Http://opendatacommunities.org/id/metropolitan-district-council/leeds,Leeds City Council,31/10/2021,Communities and Environment,Customer Access,Supplies and Services,Bought In Professional Services,277,27/10/2021,2110-00116,0.00,18.00,R,A NAMAKI,No
Http://opendatacommunities.org/id/metropolitan-district-council/leeds,Leeds City Council,31/10/2021,Communities and Environment,Customer Access,Supplies and Services,Bought In Professional Services,277,27/10/2021,2110-00117,0.00,9.00,R,A NAMAKI,No
Http://opendatacommunities.org/id/metropolitan-district-council/leeds,Leeds City Council,31/10/2021,Communities and Environment,Customer Access,Supplies and Services,Bought In Professional Services,277,27/10/2021,2110-00118,0.00,18.00,R,A NAMAKI,No
Http://opendatacommunities.org/id/metropolitan-district-council/leeds,Leeds City Council,31/10/2021,Communities and Environment,Parks and Countryside,Supplies and Services,Operational Materials,205,26/10/2021,2110-00119,0.00,1892.00,R,A NEWTON,No
Http://opendatacommunities.org/id/metropolitan-district-council/leeds,Leeds City Council,31/10/2021,Resources and Housing,HRA Housing Leeds,Capital,OTHER COSTS,7,08/10/2021,2110-00120,0.00,334.22,C,REDACTED PERSONAL DATA,No
Http://opendatacommunities.org/id/metropolitan-district-council/leeds,Leeds City Council,31/10/2021,Resources and Housing,Commercial Services,Supplies and Services,Other Hired And Contracted Services,265,19/10/2021,2110-00121,0.00,140.80,R,REDACTED PERSONAL DATA,No
Http://opendatacommunities.org/id/metropolitan-district-council/leeds,Leeds City Council,31/10/2021,Communities and Environment,Waste Management,Employees,Training & Development,70,21/10/2021,2110-00122,0.00,174.80,R,A T Nerac Ltd,No
Http://opendatacommunities.org/id/metropolitan-district-council/leeds,Leeds City Council,31/10/2021,Children and Families,Social Care,Agency Payments,General External Residential Placements,507,01/10/2021,2110-00123,0.00,29142.90,R,A Wilderness Way Ltd,No
Http://opendatacommunities.org/id/metropolitan-district-council/leeds,Leeds City Council,31/10/2021,Children and Families,Social Care,Agency Payments,General External Residential Placements,507,29/10/2021,2110-00124,0.00,30114.33,R,A Wilderness Way Ltd,No
Http://opendatacommunities.org/id/metropolitan-district-council/leeds,Leeds City Council,31/10/2021,Resources and Housing,Leeds Building Services,Supplies and Services,Operational Materials,205,06/10/2021,2110-00125,0.00,117.95,R,A1 STAIR LIFT SERVICES,No
Http://opendatacommunities.org/id/metropolitan-district-council/leeds,Leeds City Council,31/10/2021,Resources and Housing,Leeds Building Services,Supplies and Services,Operational Materials,205,06/10/2021,2110-00126,0.00,695.00,R,A1 STAIR LIFT SERVICES,No
Http://opendatacommunities.org/id/metropolitan-district-council/leeds,Leeds City Council,31/10/2021,Resources and Housing,Leeds Building Services,Supplies and Services,Other Hired And Contracted Services,265,08/10/2021,2110-00127,0.00,115.00,R,A1 STAIR LIFT SERVICES,No
Http://opendatacommunities.org/id/metropolitan-district-council/leeds,Leeds City Council,31/10/2021,Resources and Housing,Leeds Building Services,Supplies and Services,Other Hired And Contracted Services,265,08/10/2021,2110-00128,0.00,1250.00,R,A1 STAIR LIFT SERVICES,No
Http://opendatacommunities.org/id/metropolitan-district-council/leeds,Leeds City Council,31/10/2021,Resources and Housing,Leeds Building Services,Supplies and Services,Other Hired And Contracted Services,265,08/10/2021,2110-00129,0.00,1350.00,R,A1 STAIR LIFT SERVICES,No
Http://opendatacommunities.org/id/metropolitan-district-council/leeds,Leeds City Council,31/10/2021,Resources and Housing,Leeds Building Services,Supplies and Services,Operational Materials,205,15/10/2021,2110-00130,0.00,1492.00,R,A1 STAIR LIFT SERVICES,No
Http://opendatacommunities.org/id/metropolitan-district-council/leeds,Leeds City Council,31/10/2021,Communities and Environment,Customer Access,Supplies and Services,Bought In Professional Services,277,20/10/2021,2110-00131,0.00,270.00,R,AA Global Language Services Ltd,No
Http://opendatacommunities.org/id/metropolitan-district-council/leeds,Leeds City Council,31/10/2021,Children and Families,Social Care,Appropriations,Leaving Care Grants,635,30/09/2021,2110-00132,0.00,54.62,R,Aa Home Insurance,Yes
Http://opendatacommunities.org/id/metropolitan-district-council/leeds,Leeds City Council,31/10/2021,Communities and Environment,Benefits Welfare and Poverty,Supplies and Services,Grant Related Expenditure,298,07/10/2021,2110-00133,0.00,500.00,R,REDACTED PERSONAL DATA,No
Http://opendatacommunities.org/id/metropolitan-district-council/leeds,Leeds City Council,31/10/2021,Adults and Health,Social Services Support Services,Employees,Training & Development,70,11/10/2021,2110-00134,0.00,13.00,R,REDACTED PERSONAL DATA,No
Http://opendatacommunities.org/id/metropolitan-district-council/leeds,Leeds City Council,31/10/2021,Children and Families,Social Care,Appropriations,Leaving Care Allowances,634,18/10/2021,2110-00135,0.00,50.00,R,REDACTED PERSONAL DATA,No
Http://opendatacommunities.org/id/metropolitan-district-council/leeds,Leeds City Council,31/10/2021,City Development,Libraries Arts & Heritage,Supplies and Services,Other Hired And Contracted Services,265,26/10/2021,2110-00136,0.00,150.00,R,Aaron Carter,No
Http://opendatacommunities.org/id/metropolitan-district-council/leeds,Leeds City Council,31/10/2021,Adults and Health,Services For Older People - 65 And Over,Agency Payments,Residential Care Dementia,571,13/10/2021,2110-00137,0.00,1245.20,R,Aaron Court Care Home,No
Http://opendatacommunities.org/id/metropolitan-district-council/leeds,Leeds City Council,31/10/2021,Communities and Environment,Benefits Welfare and Poverty,Supplies and Services,Grant Related Expenditure,298,07/10/2021,2110-00138,0.00,500.00,R,REDACTED PERSONAL DATA,No
Http://opendatacommunities.org/id/metropolitan-district-council/leeds,Leeds City Council as Accountable Body,31/10/2021,Social Services Pooled Budgets,Leeds Community Equip Store Pooled Budgt,Supplies and Services,Other Equipment,203,01/10/2021,2110-00139,0.00,60.00,R,AAT (GB) LTD,No
Http://opendatacommunities.org/id/metropolitan-district-council/leeds,Leeds City Council as Accountable Body,31/10/2021,Social Services Pooled Budgets,Jcs For People With Learning Disabilitie,Supplies and Services,Other Equipment,203,22/10/2021,2110-00140,0.00,1589.00,R,AAT (GB) LTD,No
Http://opendatacommunities.org/id/metropolitan-district-council/leeds,Leeds City Council as Accountable Body,31/10/2021,Social Services Pooled Budgets,Leeds Community Equip Store Pooled Budgt,Supplies and Services,Other Equipment,203,29/10/2021,2110-00141,0.00,955.00,R,AAT (GB) LTD,No
Http://opendatacommunities.org/id/metropolitan-district-council/leeds,Leeds City Council,31/10/2021,Communities and Environment,Car Parking Services,Supplies and Services,Postages,212,20/09/2021,2110-00142,0.00,17.50,R,Abacus Express,Yes
Http://opendatacommunities.org/id/metropolitan-district-council/leeds,Leeds City Council,31/10/2021,Communities and Environment,Customer Access,Supplies and Services,Bought In Professional Services,277,13/10/2021,2110-00143,0.00,27.00,R,Abadit Kiros,No
Http://opendatacommunities.org/id/metropolitan-district-council/leeds,Leeds City Council,31/10/2021,Communities and Environment,Customer Access,Supplies and Services,Bought In Professional Services,277,13/10/2021,2110-00144,0.00,29.40,R,Abadit Kiros,No
Http://opendatacommunities.org/id/metropolitan-district-council/leeds,Leeds City Council,31/10/2021,Children and Families,Partnerships & Health,Agency Payments,SEN Placements,566,20/10/2021,2110-00145,0.00,12075.00,R,Abbey College Manchester,No
Http://opendatacommunities.org/id/metropolitan-district-council/leeds,Leeds City Council,31/10/2021,Communities and Environment,Benefits Welfare and Poverty,Supplies and Services,Grant Related Expenditure,298,07/10/2021,2110-00146,0.00,500.00,R,REDACTED PERSONAL DATA,No
Http://opendatacommunities.org/id/metropolitan-district-council/leeds,Leeds City Council,31/10/2021,Communities and Environment,Benefits Welfare and Poverty,Supplies and Services,Grant Related Expenditure,298,25/10/2021,2110-00147,0.00,500.00,R,REDACTED PERSONAL DATA,No
Http://opendatacommunities.org/id/metropolitan-district-council/leeds,Leeds City Council,31/10/2021,Communities and Environment,Benefits Welfare and Poverty,Supplies and Services,Grant Related Expenditure,298,28/10/2021,2110-00148,0.00,500.00,R,REDACTED PERSONAL DATA,No
Http://opendatacommunities.org/id/metropolitan-district-council/leeds,Leeds City Council,31/10/2021,Communities and Environment,Benefits Welfare and Poverty,Supplies and Services,Grant Related Expenditure,298,12/10/2021,2110-00149,0.00,500.00,R,REDACTED PERSONAL DATA,No
Http://opendatacommunities.org/id/metropolitan-district-council/leeds,Leeds City Council,31/10/2021,Children and Families,Social Care,Agency Payments,Services Rendered By Other Organisations,511,06/10/2021,2110-00150,0.00,348.40,R,REDACTED PERSONAL DATA,No
Http://opendatacommunities.org/id/metropolitan-district-council/leeds,Leeds City Council,31/10/2021,Communities and Environment,Parks and Countryside,Supplies and Services,Other Hired And Contracted Services,265,08/10/2021,2110-00151,0.00,550.00,R,Abbotts Memorials,No
Http://opendatacommunities.org/id/metropolitan-district-council/leeds,Leeds City Council,31/10/2021,Communities and Environment,Parks and Countryside,Supplies and Services,Other Hired And Contracted Services,265,14/10/2021,2110-00152,0.00,550.00,R,Abbotts Memorials,No
Http://opendatacommunities.org/id/metropolitan-district-council/leeds,Leeds City Council,31/10/2021,Communities and Environment,Parks and Countryside,Supplies and Services,Other Hired And Contracted Services,265,22/10/2021,2110-00153,0.00,690.00,R,Abbotts Memorials,No
Http://opendatacommunities.org/id/metropolitan-district-council/leeds,Leeds City Council,31/10/2021,Communities and Environment,Parks and Countryside,Supplies and Services,Other Hired And Contracted Services,265,29/10/2021,2110-00154,0.00,550.00,R,Abbotts Memorials,No
Http://opendatacommunities.org/id/metropolitan-district-council/leeds,Leeds City Council,31/10/2021,Children and Families,Social Care,Agency Payments,General External Residential Placements,507,29/10/2021,2110-00155,0.00,15428.70,R,ABC Care and Educationd LTD,No
Http://opendatacommunities.org/id/metropolitan-district-council/leeds,Leeds City Council,31/10/2021,Children and Families,Social Care,Agency Payments,Services Rendered By Other Organisations,511,01/10/2021,2110-00156,0.00,5000.77,R,ABC NURSERY AT LUFC,No
Http://opendatacommunities.org/id/metropolitan-district-council/leeds,Leeds City Council,31/10/2021,Children and Families,Social Care,Agency Payments,Services Rendered By Other Organisations,511,06/10/2021,2110-00157,0.00,6009.90,R,ABC NURSERY AT LUFC,No
Http://opendatacommunities.org/id/metropolitan-district-council/leeds,Leeds City Council,31/10/2021,Children and Families,Social Care,Agency Payments,Services Rendered By Other Organisations,511,01/10/2021,2110-00158,0.00,7827.30,R,Abc@D'S Childcare,No
Http://opendatacommunities.org/id/metropolitan-district-council/leeds,Leeds City Council,31/10/2021,Children and Families,Social Care,Agency Payments,Services Rendered By Other Organisations,511,06/10/2021,2110-00159,0.00,1567.80,R,Abc@D'S Childcare,No
Http://opendatacommunities.org/id/metropolitan-district-council/leeds,Leeds City Council,31/10/2021,Communities and Environment,Benefits Welfare and Poverty,Supplies and Services,Grant Related Expenditure,290,06/10/2021,2110-00160,0.00,500.00,R,REDACTED PERSONAL DATA,No
Http://opendatacommunities.org/id/metropolitan-district-council/leeds,Leeds City Council,31/10/2021,Resources and Housing,Sustainable Energy & Climate Change,Capital,OTHER COSTS,7,15/10/2021,2110-00161,0.00,2100.00,C,REDACTED COMMERCIAL CONFIDENTIALITY,No
Http://opendatacommunities.org/id/metropolitan-district-council/leeds,Leeds City Council,31/10/2021,Communities and Environment,Customer Access,Supplies and Services,Bought In Professional Services,277,13/10/2021,2110-00162,0.00,12.00,R,Abdul Kalam,No
Http://opendatacommunities.org/id/metropolitan-district-council/leeds,Leeds City Council,31/10/2021,Communities and Environment,Customer Access,Supplies and Services,Bought In Professional Services,277,20/10/2021,2110-00163,0.00,13.50,R,Abdul Kalam,No
Http://opendatacommunities.org/id/metropolitan-district-council/leeds,Leeds City Council,31/10/2021,Communities and Environment,Customer Access,Supplies and Services,Bought In Professional Services,277,20/10/2021,2110-00164,0.00,18.00,R,Abdul Kalam,No
Http://opendatacommunities.org/id/metropolitan-district-council/leeds,Leeds City Council,31/10/2021,Communities and Environment,Customer Access,Supplies and Services,Bought In Professional Services,277,20/10/2021,2110-00165,0.00,13.50,R,Abdul Kalam,No
Http://opendatacommunities.org/id/metropolitan-district-council/leeds,Leeds City Council,31/10/2021,Communities and Environment,Car Parking Services,External Income,Penalties Fines & Car Parking Charges,934,14/10/2021,2110-00166,0.00,113.00,R,REDACTED PERSONAL DATA,No
Http://opendatacommunities.org/id/metropolitan-district-council/leeds,Leeds City Council,31/10/2021,Communities and Environment,Benefits Welfare and Poverty,Supplies and Services,Grant Related Expenditure,298,06/10/2021,2110-00167,0.00,500.00,R,REDACTED PERSONAL DATA,No
Http://opendatacommunities.org/id/metropolitan-district-council/leeds,Leeds City Council,31/10/2021,Communities and Environment,Customer Access,Supplies and Services,Bought In Professional Services,277,27/10/2021,2110-00168,0.00,18.00,R,Abdulahad Denha,No
Http://opendatacommunities.org/id/metropolitan-district-council/leeds,Leeds City Council,31/10/2021,Communities and Environment,Customer Access,Supplies and Services,Bought In Professional Services,277,13/10/2021,2110-00169,0.00,9.00,R,Abdulrahim Dastyar,No
Http://opendatacommunities.org/id/metropolitan-district-council/leeds,Leeds City Council,31/10/2021,Communities and Environment,Customer Access,Supplies and Services,Bought In Professional Services,277,13/10/2021,2110-00170,0.00,27.00,R,Abdulrahim Dastyar,No
Http://opendatacommunities.org/id/metropolitan-district-council/leeds,Leeds City Council,31/10/2021,Communities and Environment,Customer Access,Supplies and Services,Bought In Professional Services,277,13/10/2021,2110-00171,0.00,18.00,R,Abdulrahim Dastyar,No
Http://opendatacommunities.org/id/metropolitan-district-council/leeds,Leeds City Council,31/10/2021,Communities and Environment,Customer Access,Supplies and Services,Bought In Professional Services,277,13/10/2021,2110-00172,0.00,18.00,R,Abdulrahim Dastyar,No
Http://opendatacommunities.org/id/metropolitan-district-council/leeds,Leeds City Council,31/10/2021,Communities and Environment,Customer Access,Supplies and Services,Bought In Professional Services,277,13/10/2021,2110-00173,0.00,18.00,R,Abdulrahim Dastyar,No
Http://opendatacommunities.org/id/metropolitan-district-council/leeds,Leeds City Council,31/10/2021,Communities and Environment,Customer Access,Supplies and Services,Bought In Professional Services,277,13/10/2021,2110-00174,0.00,18.00,R,Abdulrahim Dastyar,No
Http://opendatacommunities.org/id/metropolitan-district-council/leeds,Leeds City Council,31/10/2021,Communities and Environment,Customer Access,Supplies and Services,Bought In Professional Services,277,20/10/2021,2110-00175,0.00,36.00,R,Abdulrahim Dastyar,No
Http://opendatacommunities.org/id/metropolitan-district-council/leeds,Leeds City Council,31/10/2021,Communities and Environment,Customer Access,Supplies and Services,Bought In Professional Services,277,20/10/2021,2110-00176,0.00,18.00,R,Abdulrahim Dastyar,No
Http://opendatacommunities.org/id/metropolitan-district-council/leeds,Leeds City Council,31/10/2021,Communities and Environment,Customer Access,Supplies and Services,Bought In Professional Services,277,20/10/2021,2110-00177,0.00,18.00,R,Abdulrahim Dastyar,No
Http://opendatacommunities.org/id/metropolitan-district-council/leeds,Leeds City Council,31/10/2021,Communities and Environment,Customer Access,Supplies and Services,Bought In Professional Services,277,20/10/2021,2110-00178,0.00,18.00,R,Abdulrahim Dastyar,No
Http://opendatacommunities.org/id/metropolitan-district-council/leeds,Leeds City Council,31/10/2021,Communities and Environment,Customer Access,Supplies and Services,Bought In Professional Services,277,27/10/2021,2110-00179,0.00,13.50,R,Abdulrahim Dastyar,No
Http://opendatacommunities.org/id/metropolitan-district-council/leeds,Leeds City Council,31/10/2021,Children and Families,Social Care,Appropriations,16 Plus Top Up Allowance,625,01/10/2021,2110-00180,0.00,30.00,R,REDACTED PERSONAL DATA,No
Http://opendatacommunities.org/id/metropolitan-district-council/leeds,Leeds City Council,31/10/2021,Children and Families,Social Care,Appropriations,16 Plus Top Up Allowance,625,08/10/2021,2110-00181,0.00,30.00,R,REDACTED PERSONAL DATA,No
Http://opendatacommunities.org/id/metropolitan-district-council/leeds,Leeds City Council,31/10/2021,Children and Families,Social Care,Appropriations,16 Plus Top Up Allowance,625,15/10/2021,2110-00182,0.00,30.00,R,REDACTED PERSONAL DATA,No
Http://opendatacommunities.org/id/metropolitan-district-council/leeds,Leeds City Council,31/10/2021,Children and Families,Social Care,Appropriations,16 Plus Top Up Allowance,625,22/10/2021,2110-00183,0.00,30.00,R,REDACTED PERSONAL DATA,No
Http://opendatacommunities.org/id/metropolitan-district-council/leeds,Leeds City Council,31/10/2021,Children and Families,Social Care,Appropriations,16 Plus Top Up Allowance,625,29/10/2021,2110-00184,0.00,30.00,R,REDACTED PERSONAL DATA,No
Http://opendatacommunities.org/id/metropolitan-district-council/leeds,Leeds City Council,31/10/2021,Communities and Environment,Benefits Welfare and Poverty,Supplies and Services,Grant Related Expenditure,298,21/10/2021,2110-00185,0.00,500.00,R,REDACTED PERSONAL DATA,No
Http://opendatacommunities.org/id/metropolitan-district-council/leeds,Leeds City Council,31/10/2021,Communities and Environment,Benefits Welfare and Poverty,Supplies and Services,Grant Related Expenditure,298,21/10/2021,2110-00186,0.00,500.00,R,REDACTED PERSONAL DATA,No
Http://opendatacommunities.org/id/metropolitan-district-council/leeds,Leeds City Council,31/10/2021,Children and Families,Social Care,Agency Payments,Placement Support,550,20/10/2021,2110-00187,0.00,500.00,R,Aberford Childcare Services,No
Http://opendatacommunities.org/id/metropolitan-district-council/leeds,Leeds City Council,31/10/2021,Communities and Environment,Communities,Supplies and Services,'Well Being' Large Grants Projects,230,25/10/2021,2110-00188,0.00,266.00,R,Aberford CofE Primary School PTA,No
Http://opendatacommunities.org/id/metropolitan-district-council/leeds,Leeds City Council,31/10/2021,Adults and Health,Services For Older People - 65 And Over,Agency Payments,Nursing Home,570,13/10/2021,2110-00189,0.00,18164.01,R,Aberford Hall,No
Http://opendatacommunities.org/id/metropolitan-district-council/leeds,Leeds City Council,31/10/2021,Adults and Health,Services For Older People - 65 And Over,Agency Payments,Nursing Care Dementia,574,13/10/2021,2110-00190,0.00,255.04,R,Aberford Hall,No
Http://opendatacommunities.org/id/metropolitan-district-council/leeds,Leeds City Council,31/10/2021,Adults and Health,Services For Older People - 65 And Over,Agency Payments,Residential,580,13/10/2021,2110-00191,0.00,404.02,R,Aberford Hall,No
Http://opendatacommunities.org/id/metropolitan-district-council/leeds,Leeds City Council,31/10/2021,Resources and Housing,Leeds Building Services,Supplies and Services,Operational Materials,205,18/10/2021,2110-00192,0.00,600.00,R,ABI GARAGE DOORS LTD,No
Http://opendatacommunities.org/id/metropolitan-district-council/leeds,Leeds City Council,31/10/2021,Resources and Housing,Leeds Building Services,Supplies and Services,Operational Materials,205,18/10/2021,2110-00193,0.00,16.67,R,ABI GARAGE DOORS LTD,No
Http://opendatacommunities.org/id/metropolitan-district-council/leeds,Leeds City Council,31/10/2021,Resources and Housing,Leeds Building Services,Supplies and Services,Operational Materials,205,25/10/2021,2110-00194,0.00,300.00,R,ABI GARAGE DOORS LTD,No
Http://opendatacommunities.org/id/metropolitan-district-council/leeds,Leeds City Council,31/10/2021,Communities and Environment,Customer Access,Supplies and Services,Bought In Professional Services,277,06/10/2021,2110-00195,0.00,11.40,R,Abida Begum,No
Http://opendatacommunities.org/id/metropolitan-district-council/leeds,Leeds City Council,31/10/2021,City Development,Libraries Arts & Heritage,Supplies and Services,Other Hired And Contracted Services,265,21/10/2021,2110-00196,0.00,100.00,R,Abigail Jubb,No
Http://opendatacommunities.org/id/metropolitan-district-council/leeds,Leeds City Council,31/10/2021,Communities and Environment,Benefits Welfare and Poverty,Supplies and Services,Grant Related Expenditure,298,07/10/2021,2110-00197,0.00,500.00,R,REDACTED PERSONAL DATA,No
Http://opendatacommunities.org/id/metropolitan-district-council/leeds,Leeds City Council,31/10/2021,Communities and Environment,Benefits Welfare and Poverty,Supplies and Services,Grant Related Expenditure,298,19/10/2021,2110-00198,0.00,500.00,R,REDACTED PERSONAL DATA,No
Http://opendatacommunities.org/id/metropolitan-district-council/leeds,Leeds City Council,31/10/2021,Communities and Environment,Benefits Welfare and Poverty,Supplies and Services,Grant Related Expenditure,298,14/10/2021,2110-00199,0.00,500.00,R,REDACTED PERSONAL DATA,No
Http://opendatacommunities.org/id/metropolitan-district-council/leeds,Leeds City Council,31/10/2021,Children and Families,Social Care,Agency Payments, Direct Work,549,07/10/2021,2110-00200,0.00,6.49,R,REDACTED PERSONAL DATA,No
Http://opendatacommunities.org/id/metropolitan-district-council/leeds,Leeds City Council,31/10/2021,Children and Families,Social Care,Appropriations,Leaving Care Allowances,634,07/10/2021,2110-00201,0.00,158.94,R,REDACTED PERSONAL DATA,No
Http://opendatacommunities.org/id/metropolitan-district-council/leeds,Leeds City Council,31/10/2021,Children and Families,Social Care,Agency Payments, Direct Work,549,08/10/2021,2110-00202,0.00,7.59,R,REDACTED PERSONAL DATA,No
Http://opendatacommunities.org/id/metropolitan-district-council/leeds,Leeds City Council,31/10/2021,Children and Families,Social Care,Appropriations,Leaving Care Allowances,634,08/10/2021,2110-00203,0.00,10.99,R,REDACTED PERSONAL DATA,No
Http://opendatacommunities.org/id/metropolitan-district-council/leeds,Leeds City Council,31/10/2021,Children and Families,Social Care,Appropriations,16 Plus Top Up Allowance,625,18/10/2021,2110-00204,0.00,20.00,R,REDACTED PERSONAL DATA,No
Http://opendatacommunities.org/id/metropolitan-district-council/leeds,Leeds City Council,31/10/2021,Children and Families,Social Care,Appropriations,Leaving Care Allowances,634,18/10/2021,2110-00205,0.00,29.99,R,REDACTED PERSONAL DATA,No
Http://opendatacommunities.org/id/metropolitan-district-council/leeds,Leeds City Council,31/10/2021,Children and Families,Social Care,Appropriations,Leaving Care Allowances,634,18/10/2021,2110-00206,0.00,19.99,R,REDACTED PERSONAL DATA,No
Http://opendatacommunities.org/id/metropolitan-district-council/leeds,Leeds City Council,31/10/2021,Children and Families,Social Care,Appropriations,Leaving Care Allowances,634,18/10/2021,2110-00207,0.00,8.00,R,REDACTED PERSONAL DATA,No
Http://opendatacommunities.org/id/metropolitan-district-council/leeds,Leeds City Council,31/10/2021,Children and Families,Social Care,Appropriations,Leaving Care Allowances,634,21/10/2021,2110-00208,0.00,136.98,R,REDACTED PERSONAL DATA,No
Http://opendatacommunities.org/id/metropolitan-district-council/leeds,Leeds City Council,31/10/2021,Communities and Environment,Benefits Welfare and Poverty,Supplies and Services,Grant Related Expenditure,298,08/10/2021,2110-00209,0.00,500.00,R,REDACTED PERSONAL DATA,No
Http://opendatacommunities.org/id/metropolitan-district-council/leeds,Leeds City Council,31/10/2021,Adults and Health,Services For Adults Under 65 Mental/Dis,Agency Payments,Fees - Level 4,520,13/10/2021,2110-00210,0.00,175.00,R,Abubaker Denja Mohammed,No
Http://opendatacommunities.org/id/metropolitan-district-council/leeds,Leeds City Council,31/10/2021,Adults and Health,Services For Adults Under 65 Mental/Dis,Agency Payments,Fees - Level 4,520,13/10/2021,2110-00211,0.00,175.00,R,Abubaker Denja Mohammed,No
Http://opendatacommunities.org/id/metropolitan-district-council/leeds,Leeds City Council,31/10/2021,Adults and Health,Services For Adults Under 65 Mental/Dis,Agency Payments,Fees - Level 4,520,13/10/2021,2110-00212,0.00,175.00,R,Abubaker Denja Mohammed,No
Http://opendatacommunities.org/id/metropolitan-district-council/leeds,Leeds City Council,31/10/2021,Adults and Health,Services For Adults Under 65 Mental/Dis,Agency Payments,Fees - Level 4,520,22/10/2021,2110-00213,0.00,175.00,R,Abubaker Denja Mohammed,No
Http://opendatacommunities.org/id/metropolitan-district-council/leeds,Leeds City Council,31/10/2021,Adults and Health,Services For Adults Under 65 Mental/Dis,Agency Payments,Fees - Level 4,520,22/10/2021,2110-00214,0.00,175.00,R,Abubaker Denja Mohammed,No
Http://opendatacommunities.org/id/metropolitan-district-council/leeds,Leeds City Council,31/10/2021,Adults and Health,Services For Adults Under 65 Mental/Dis,Agency Payments,Fees - Level 4,520,28/10/2021,2110-00215,0.00,175.00,R,Abubaker Denja Mohammed,No
Http://opendatacommunities.org/id/metropolitan-district-council/leeds,Leeds City Council,31/10/2021,Adults and Health,Services For Older People - 65 And Over,Agency Payments,Home Care,568,20/10/2021,2110-00216,0.00,780.78,R,Academy Care Ltd,No
Http://opendatacommunities.org/id/metropolitan-district-council/leeds,Leeds City Council,31/10/2021,Adults and Health,Services For Older People - 65 And Over,Agency Payments,Home Care,568,20/10/2021,2110-00217,0.00,780.78,R,Academy Care Ltd,No
Http://opendatacommunities.org/id/metropolitan-district-council/leeds,Leeds City Council,31/10/2021,Adults and Health,Social Services Support Services,Employees,Training & Development,70,29/10/2021,2110-00218,0.00,1720.00,R,ACAS,No
Http://opendatacommunities.org/id/metropolitan-district-council/leeds,Leeds City Council,31/10/2021,Resources and Housing,Strategic Housing Partnership & Support,Supplies and Services,Other Hired And Contracted Services,265,01/10/2021,2110-00219,0.00,540.70,R,Accent Foundation Ltd,No
Http://opendatacommunities.org/id/metropolitan-district-council/leeds,Leeds City Council,31/10/2021,Resources and Housing,Strategic Housing Partnership & Support,Supplies and Services,Other Hired And Contracted Services,265,07/10/2021,2110-00220,0.00,531.06,R,Accent Foundation Ltd,No
Http://opendatacommunities.org/id/metropolitan-district-council/leeds,Leeds City Council,31/10/2021,Children and Families,Social Care,Supplies and Services,Hospitality,255,06/09/2021,2110-00221,0.00,7.94,R,Access Diagnostics,Yes
Http://opendatacommunities.org/id/metropolitan-district-council/leeds,Leeds City Council,31/10/2021,Communities and Environment,Cleaner Neighbourhood Teams,Supplies and Services,Operational Materials,205,07/09/2021,2110-00222,0.00,30.00,R,Access Locksmiths,Yes
Http://opendatacommunities.org/id/metropolitan-district-council/leeds,Leeds City Council,31/10/2021,Communities and Environment,Strategic Housing Partnership & Support,Supplies and Services,Subsistence,256,09/09/2021,2110-00223,0.00,6.75,R,Access Locksmiths,Yes
Http://opendatacommunities.org/id/metropolitan-district-council/leeds,Leeds City Council,31/10/2021,Strategic Landlord,Housing Management,Premises,General Maintenance,104,04/10/2021,2110-00224,0.00,248.00,R,ACCESS LOCKSMITHS (LEEDS) LIMITED,No
Http://opendatacommunities.org/id/metropolitan-district-council/leeds,Leeds City Council,31/10/2021,Strategic Landlord,Property and Contracts,Premises,General Maintenance,104,04/10/2021,2110-00225,0.00,94.60,R,ACCESS LOCKSMITHS (LEEDS) LIMITED,No
Http://opendatacommunities.org/id/metropolitan-district-council/leeds,Leeds City Council,31/10/2021,Resources and Housing,Leeds Building Services,Supplies and Services,Operational Materials,205,18/10/2021,2110-00226,0.00,63.75,R,ACCESS LOCKSMITHS (LEEDS) LIMITED,No
Http://opendatacommunities.org/id/metropolitan-district-council/leeds,Leeds City Council,31/10/2021,Strategic Landlord,Property and Contracts,Premises,General Maintenance,104,29/10/2021,2110-00227,0.00,469.30,R,ACCESS LOCKSMITHS (LEEDS) LIMITED,No
Http://opendatacommunities.org/id/metropolitan-district-council/leeds,Leeds City Council,31/10/2021,Strategic Landlord,Property and Contracts,Premises,General Maintenance,104,29/10/2021,2110-00228,0.00,58.23,R,ACCESS LOCKSMITHS (LEEDS) LIMITED,No
Http://opendatacommunities.org/id/metropolitan-district-council/leeds,Leeds City Council,31/10/2021,Resources and Housing,HRA Housing Leeds,Capital,OTHER COSTS,7,29/10/2021,2110-00229,0.00,103.54,C,ACCESS LOCKSMITHS (LEEDS) LIMITED,No
Http://opendatacommunities.org/id/metropolitan-district-council/leeds,Leeds City Council,31/10/2021,Strategic Landlord,Housing Management,Supplies and Services,Grant Related Expenditure,298,29/10/2021,2110-00230,0.00,206.00,R,ACCESS LOCKSMITHS (LEEDS) LIMITED,No
Http://opendatacommunities.org/id/metropolitan-district-council/leeds,Leeds City Council,31/10/2021,Resources and Housing,Commercial Services,Supplies and Services,Operational Materials,205,29/10/2021,2110-00231,0.00,880.00,R,ACCESS LOCKSMITHS (LEEDS) LIMITED,No
Http://opendatacommunities.org/id/metropolitan-district-council/leeds,Leeds City Council,31/10/2021,Strategic Landlord,Housing Management,Supplies and Services,Grant Related Expenditure,298,29/10/2021,2110-00232,0.00,81.00,R,ACCESS LOCKSMITHS (LEEDS) LIMITED,No
Http://opendatacommunities.org/id/metropolitan-district-council/leeds,Leeds City Council,31/10/2021,Strategic Landlord,Housing Management,Supplies and Services,Grant Related Expenditure,298,29/10/2021,2110-00233,0.00,13.50,R,ACCESS LOCKSMITHS (LEEDS) LIMITED,No
Http://opendatacommunities.org/id/metropolitan-district-council/leeds,Leeds City Council,31/10/2021,Resources and Housing,HRA Housing Leeds,Capital,OTHER COSTS,7,29/10/2021,2110-00234,0.00,44.00,C,ACCESS LOCKSMITHS (LEEDS) LIMITED,No
Http://opendatacommunities.org/id/metropolitan-district-council/leeds,Leeds City Council,31/10/2021,Strategic Landlord,Housing Management,Premises,General Maintenance,104,29/10/2021,2110-00235,0.00,248.00,R,ACCESS LOCKSMITHS (LEEDS) LIMITED,No
Http://opendatacommunities.org/id/metropolitan-district-council/leeds,Leeds City Council,31/10/2021,Strategic Landlord,Housing Management,Supplies and Services,Resaleable Materials,204,29/10/2021,2110-00236,0.00,219.92,R,ACCESS LOCKSMITHS (LEEDS) LIMITED,No
Http://opendatacommunities.org/id/metropolitan-district-council/leeds,Leeds City Council,31/10/2021,Strategic Landlord,Housing Management,Supplies and Services,Resaleable Materials,204,29/10/2021,2110-00237,0.00,62.00,R,ACCESS LOCKSMITHS (LEEDS) LIMITED,No
Http://opendatacommunities.org/id/metropolitan-district-council/leeds,Leeds City Council,31/10/2021,Insurance,Insurance,Supplies and Services,Insurance Claims,248,21/10/2021,2110-00238,0.00,2345.45,R,Accident Exchange Ltd,No
Http://opendatacommunities.org/id/metropolitan-district-council/leeds,Leeds City Council,31/10/2021,Insurance,Insurance,Supplies and Services,Insurance Claims,248,26/10/2021,2110-00239,0.00,1489.04,R,Accidnet Assist,No
Http://opendatacommunities.org/id/metropolitan-district-council/leeds,Leeds City Council as Accountable Body,31/10/2021,Social Services Pooled Budgets,Jcs For People With Learning Disabilitie,Supplies and Services,Other Equipment,203,06/10/2021,2110-00240,0.00,2463.00,R,Accora,No
Http://opendatacommunities.org/id/metropolitan-district-council/leeds,Leeds City Council,31/10/2021,City Development,Recreation,Transport,External Hire -Occasional,304,29/10/2021,2110-00241,0.00,128.65,R,ACE CONTAINER SERVICES LIMITED,No
Http://opendatacommunities.org/id/metropolitan-district-council/leeds,Leeds City Council,31/10/2021,Children and Families,Social Care,Agency Payments,General External Residential Placements,507,01/10/2021,2110-00242,0.00,17249.29,R,Acorn Care & Education Ltd (Sales),No
Http://opendatacommunities.org/id/metropolitan-district-council/leeds,Leeds City Council,31/10/2021,Children and Families,Social Care,Agency Payments,General External Residential Placements,507,01/10/2021,2110-00243,0.00,17249.29,R,Acorn Care & Education Ltd (Sales),No
Http://opendatacommunities.org/id/metropolitan-district-council/leeds,Leeds City Council,31/10/2021,Children and Families,Social Care,Agency Payments,General External Residential Placements,507,04/10/2021,2110-00244,0.00,15188.70,R,Acorn Care & Education Ltd (Sales),No
Http://opendatacommunities.org/id/metropolitan-district-council/leeds,Leeds City Council,31/10/2021,Children and Families,Social Care,Agency Payments,General External Residential Placements,507,04/10/2021,2110-00245,0.00,15694.99,R,Acorn Care & Education Ltd (Sales),No
Http://opendatacommunities.org/id/metropolitan-district-council/leeds,Leeds City Council,31/10/2021,Children and Families,Social Care,Agency Payments,General External Residential Placements,507,04/10/2021,2110-00246,0.00,15694.99,R,Acorn Care & Education Ltd (Sales),No
Http://opendatacommunities.org/id/metropolitan-district-council/leeds,Leeds City Council,31/10/2021,Children and Families,Partnerships & Health,Agency Payments,SEN Placements,566,29/10/2021,2110-00247,0.00,19247.62,R,Acorn Care & Education Ltd (Sales),No
Http://opendatacommunities.org/id/metropolitan-district-council/leeds,Leeds City Council,31/10/2021,Children and Families,Social Care,Agency Payments,Independent Fostering Agencies,509,28/10/2021,2110-00248,0.00,1466.64,R,Acorn House (Fostering Services) Ltd,No
Http://opendatacommunities.org/id/metropolitan-district-council/leeds,Leeds City Council,31/10/2021,Children and Families,Social Care,Agency Payments,Independent Fostering Agencies,509,28/10/2021,2110-00249,0.00,3788.82,R,Acorn House (Fostering Services) Ltd,No
Http://opendatacommunities.org/id/metropolitan-district-council/leeds,Leeds City Council,31/10/2021,Children and Families,Social Care,Agency Payments,Independent Fostering Agencies,509,28/10/2021,2110-00250,0.00,-80.41,R,Acorn House (Fostering Services) Ltd,No
Http://opendatacommunities.org/id/metropolitan-district-council/leeds,Leeds City Council,31/10/2021,Communities and Environment,Strategic Housing Partnership & Support,Supplies and Services,Other Hired And Contracted Services,265,06/10/2021,2110-00251,0.00,2500.00,R,Acorn Housing,No
Http://opendatacommunities.org/id/metropolitan-district-council/leeds,Leeds City Council,31/10/2021,Adults and Health,Services For Older People - 65 And Over,Agency Payments,Residential Care Dementia,571,13/10/2021,2110-00252,0.00,1640.48,R,Acorn Nursing Home,No
Http://opendatacommunities.org/id/metropolitan-district-council/leeds,Leeds City Council,31/10/2021,Adults and Health,Other Adult Services,Agency Payments,Residential - Drugs & Alcohol,583,29/10/2021,2110-00253,0.00,157.14,R,Acorn Treatment & Housing,No
Http://opendatacommunities.org/id/metropolitan-district-council/leeds,Leeds City Council,31/10/2021,Children and Families,Social Care,Agency Payments,Services Rendered By Other Organisations,511,01/10/2021,2110-00254,0.00,4783.35,R,ACORNS NURSERY,No
Http://opendatacommunities.org/id/metropolitan-district-council/leeds,Leeds City Council,31/10/2021,Children and Families,Social Care,Agency Payments,Services Rendered By Other Organisations,511,06/10/2021,2110-00255,0.00,1567.80,R,ACORNS NURSERY,No
Http://opendatacommunities.org/id/metropolitan-district-council/leeds,Leeds City Council,31/10/2021,Adults and Health,Services For Older People - 65 And Over,Agency Payments,Nursing Home,570,13/10/2021,2110-00256,0.00,21312.09,R,Acre Green,No
Http://opendatacommunities.org/id/metropolitan-district-council/leeds,Leeds City Council,31/10/2021,Adults and Health,Services For Older People - 65 And Over,Agency Payments,Residential,580,13/10/2021,2110-00257,0.00,3927.20,R,Acre Green,No
Http://opendatacommunities.org/id/metropolitan-district-council/leeds,Leeds City Council,31/10/2021,Adults and Health,Services For Older People Under 65 P/Dis,Agency Payments,Nursing Home,570,13/10/2021,2110-00258,0.00,1970.40,R,Acre Green,No
Http://opendatacommunities.org/id/metropolitan-district-council/leeds,Leeds City Council,31/10/2021,Adults and Health,Services For Older People Under 65 P/Dis,Agency Payments,Residential,580,13/10/2021,2110-00259,0.00,1767.20,R,Acre Green,No
Http://opendatacommunities.org/id/metropolitan-district-council/leeds,Leeds City Council,31/10/2021,Children and Families,Social Care,Agency Payments,Services Rendered By Other Organisations,511,01/10/2021,2110-00260,0.00,10035.00,R,Acre Wood Day Nursery,No
Http://opendatacommunities.org/id/metropolitan-district-council/leeds,Leeds City Council,31/10/2021,Children and Families,Social Care,Agency Payments,Services Rendered By Other Organisations,511,06/10/2021,2110-00261,0.00,2090.40,R,Acre Wood Day Nursery,No
Http://opendatacommunities.org/id/metropolitan-district-council/leeds,Leeds City Council,31/10/2021,Children and Families,Partnerships & Health,Supplies and Services,Bought In Professional Services,277,28/10/2021,2110-00262,0.00,9412.20,R,Act Fast NL Ltd,No
Http://opendatacommunities.org/id/metropolitan-district-council/leeds,Leeds City Council,31/10/2021,City Development,Highways,Supplies and Services,Operational Materials,205,04/10/2021,2110-00263,0.00,200.00,R,Actavo Hire And Sales Uk Limited,No
Http://opendatacommunities.org/id/metropolitan-district-council/leeds,Leeds City Council,31/10/2021,Resources and Housing,Leeds Building Services,Supplies and Services,Other Hired And Contracted Services,265,20/10/2021,2110-00264,0.00,27.10,R,Actavo Hire And Sales Uk Limited,No
Http://opendatacommunities.org/id/metropolitan-district-council/leeds,Leeds City Council,31/10/2021,Children and Families,Social Care,Agency Payments,Independent Fostering Agencies,509,29/10/2021,2110-00265,0.00,5060.44,R,Action For Children Services Ltd,No
Http://opendatacommunities.org/id/metropolitan-district-council/leeds,Leeds City Council,31/10/2021,Children and Families,Social Care,Agency Payments,Independent Fostering Agencies,509,29/10/2021,2110-00266,0.00,4897.20,R,Action For Children Services Ltd,No
Http://opendatacommunities.org/id/metropolitan-district-council/leeds,Leeds City Council,31/10/2021,Adults and Health,Services For Older People - 65 And Over,Agency Payments,Payments To Voluntary Organisations,561,01/10/2021,2110-00267,0.00,45009.02,R,ACTION FOR GIPTON ELDERLY,No
Http://opendatacommunities.org/id/metropolitan-district-council/leeds,Leeds City Council,31/10/2021,Children and Families,Social Care,Agency Payments,Services Rendered By Other Organisations,511,01/10/2021,2110-00268,0.00,7370.15,R,ACTIVE KIDS YEADON LLP,No
Http://opendatacommunities.org/id/metropolitan-district-council/leeds,Leeds City Council,31/10/2021,Children and Families,Social Care,Agency Payments,Services Rendered By Other Organisations,511,06/10/2021,2110-00269,0.00,522.60,R,ACTIVE KIDS YEADON LLP,No
Http://opendatacommunities.org/id/metropolitan-district-council/leeds,Leeds City Council,31/10/2021,Adults and Health,Services For Adults Under 65 Mental/Dis,Agency Payments,Sheltered Accommodation,569,13/10/2021,2110-00270,0.00,24489.98,R,Active Pathways,No
Http://opendatacommunities.org/id/metropolitan-district-council/leeds,Leeds City Council as Accountable Body,31/10/2021,Social Services Pooled Budgets,Jcs For People With Learning Disabilitie,Agency Payments,Sheltered Accommodation,569,13/10/2021,2110-00271,0.00,12452.52,R,Active Pathways,No
Http://opendatacommunities.org/id/metropolitan-district-council/leeds,Leeds City Council,31/10/2021,Communities and Environment,Waste Management,Supplies and Services,Recycling & Reuse Charges,234,01/10/2021,2110-00272,0.00,958.32,R,Acumen Waste Services Ltd,No
Http://opendatacommunities.org/id/metropolitan-district-council/leeds,Leeds City Council,31/10/2021,Communities and Environment,Waste Management,Supplies and Services,Recycling & Reuse Charges,234,01/10/2021,2110-00273,0.00,987.84,R,Acumen Waste Services Ltd,No
Http://opendatacommunities.org/id/metropolitan-district-council/leeds,Leeds City Council,31/10/2021,Communities and Environment,Waste Management,Supplies and Services,Recycling & Reuse Charges,234,05/10/2021,2110-00274,0.00,943.20,R,Acumen Waste Services Ltd,No
Http://opendatacommunities.org/id/metropolitan-district-council/leeds,Leeds City Council,31/10/2021,Communities and Environment,Waste Management,Supplies and Services,Recycling & Reuse Charges,234,05/10/2021,2110-00275,0.00,987.84,R,Acumen Waste Services Ltd,No
Http://opendatacommunities.org/id/metropolitan-district-council/leeds,Leeds City Council,31/10/2021,Communities and Environment,Waste Management,Supplies and Services,Recycling & Reuse Charges,234,05/10/2021,2110-00276,0.00,981.36,R,Acumen Waste Services Ltd,No
Http://opendatacommunities.org/id/metropolitan-district-council/leeds,Leeds City Council,31/10/2021,Communities and Environment,Waste Management,Supplies and Services,Recycling & Reuse Charges,234,05/10/2021,2110-00277,0.00,997.92,R,Acumen Waste Services Ltd,No
Http://opendatacommunities.org/id/metropolitan-district-council/leeds,Leeds City Council,31/10/2021,Communities and Environment,Waste Management,Supplies and Services,Waste Disposal Charges,236,06/10/2021,2110-00278,0.00,250.00,R,Acumen Waste Services Ltd,No
Http://opendatacommunities.org/id/metropolitan-district-council/leeds,Leeds City Council,31/10/2021,Communities and Environment,Waste Management,Supplies and Services,Waste Disposal Charges,236,06/10/2021,2110-00279,0.00,250.00,R,Acumen Waste Services Ltd,No
Http://opendatacommunities.org/id/metropolitan-district-council/leeds,Leeds City Council,31/10/2021,Communities and Environment,Waste Management,Supplies and Services,Waste Disposal Charges,236,06/10/2021,2110-00280,0.00,250.00,R,Acumen Waste Services Ltd,No
Http://opendatacommunities.org/id/metropolitan-district-council/leeds,Leeds City Council,31/10/2021,Communities and Environment,Waste Management,Supplies and Services,Waste Disposal Charges,236,08/10/2021,2110-00281,0.00,1995.00,R,Acumen Waste Services Ltd,No
Http://opendatacommunities.org/id/metropolitan-district-council/leeds,Leeds City Council,31/10/2021,Communities and Environment,Waste Management,Supplies and Services,Recycling & Reuse Charges,234,13/10/2021,2110-00282,0.00,3024.00,R,Acumen Waste Services Ltd,No
Http://opendatacommunities.org/id/metropolitan-district-council/leeds,Leeds City Council,31/10/2021,Communities and Environment,Waste Management,Supplies and Services,Recycling & Reuse Charges,234,13/10/2021,2110-00283,0.00,992.88,R,Acumen Waste Services Ltd,No
Http://opendatacommunities.org/id/metropolitan-district-council/leeds,Leeds City Council,31/10/2021,Communities and Environment,Waste Management,Supplies and Services,Recycling & Reuse Charges,234,13/10/2021,2110-00284,0.00,1034.64,R,Acumen Waste Services Ltd,No
Http://opendatacommunities.org/id/metropolitan-district-council/leeds,Leeds City Council,31/10/2021,Communities and Environment,Waste Management,Supplies and Services,Recycling & Reuse Charges,234,13/10/2021,2110-00285,0.00,3063.60,R,Acumen Waste Services Ltd,No
Http://opendatacommunities.org/id/metropolitan-district-council/leeds,Leeds City Council,31/10/2021,Communities and Environment,Waste Management,Supplies and Services,Recycling & Reuse Charges,234,14/10/2021,2110-00286,0.00,1018.80,R,Acumen Waste Services Ltd,No
Http://opendatacommunities.org/id/metropolitan-district-council/leeds,Leeds City Council,31/10/2021,Communities and Environment,Waste Management,Supplies and Services,Waste Disposal Charges,236,14/10/2021,2110-00287,0.00,1980.00,R,Acumen Waste Services Ltd,No
Http://opendatacommunities.org/id/metropolitan-district-council/leeds,Leeds City Council,31/10/2021,Communities and Environment,Waste Management,Supplies and Services,Recycling & Reuse Charges,234,14/10/2021,2110-00288,0.00,1010.88,R,Acumen Waste Services Ltd,No
Http://opendatacommunities.org/id/metropolitan-district-council/leeds,Leeds City Council,31/10/2021,Communities and Environment,Waste Management,Supplies and Services,Recycling & Reuse Charges,234,15/10/2021,2110-00289,0.00,1021.68,R,Acumen Waste Services Ltd,No
Http://opendatacommunities.org/id/metropolitan-district-council/leeds,Leeds City Council,31/10/2021,Communities and Environment,Waste Management,Supplies and Services,Waste Disposal Charges,236,15/10/2021,2110-00290,0.00,250.00,R,Acumen Waste Services Ltd,No
Http://opendatacommunities.org/id/metropolitan-district-council/leeds,Leeds City Council,31/10/2021,Communities and Environment,Waste Management,Supplies and Services,Waste Disposal Charges,236,15/10/2021,2110-00291,0.00,250.00,R,Acumen Waste Services Ltd,No
Http://opendatacommunities.org/id/metropolitan-district-council/leeds,Leeds City Council,31/10/2021,Communities and Environment,Waste Management,Supplies and Services,Waste Disposal Charges,236,20/10/2021,2110-00292,0.00,2688.75,R,Acumen Waste Services Ltd,No
Http://opendatacommunities.org/id/metropolitan-district-council/leeds,Leeds City Council,31/10/2021,Communities and Environment,Waste Management,Supplies and Services,Waste Disposal Charges,236,20/10/2021,2110-00293,0.00,250.00,R,Acumen Waste Services Ltd,No
Http://opendatacommunities.org/id/metropolitan-district-council/leeds,Leeds City Council,31/10/2021,Communities and Environment,Waste Management,Supplies and Services,Waste Disposal Charges,236,20/10/2021,2110-00294,0.00,250.00,R,Acumen Waste Services Ltd,No
Http://opendatacommunities.org/id/metropolitan-district-council/leeds,Leeds City Council,31/10/2021,Communities and Environment,Waste Management,Supplies and Services,Recycling & Reuse Charges,234,20/10/2021,2110-00295,0.00,1031.04,R,Acumen Waste Services Ltd,No
Http://opendatacommunities.org/id/metropolitan-district-council/leeds,Leeds City Council,31/10/2021,Communities and Environment,Waste Management,Supplies and Services,Recycling & Reuse Charges,234,22/10/2021,2110-00296,0.00,1021.68,R,Acumen Waste Services Ltd,No
Http://opendatacommunities.org/id/metropolitan-district-council/leeds,Leeds City Council,31/10/2021,Communities and Environment,Waste Management,Supplies and Services,Recycling & Reuse Charges,234,22/10/2021,2110-00297,0.00,1013.76,R,Acumen Waste Services Ltd,No
Http://opendatacommunities.org/id/metropolitan-district-council/leeds,Leeds City Council,31/10/2021,Communities and Environment,Waste Management,Supplies and Services,Waste Disposal Charges,236,22/10/2021,2110-00298,0.00,1220.60,R,Acumen Waste Services Ltd,No
Http://opendatacommunities.org/id/metropolitan-district-council/leeds,Leeds City Council,31/10/2021,Communities and Environment,Waste Management,Supplies and Services,Waste Disposal Charges,236,22/10/2021,2110-00299,0.00,250.00,R,Acumen Waste Services Ltd,No
Http://opendatacommunities.org/id/metropolitan-district-council/leeds,Leeds City Council,31/10/2021,Communities and Environment,Waste Management,Supplies and Services,Waste Disposal Charges,236,22/10/2021,2110-00300,0.00,250.00,R,Acumen Waste Services Ltd,No
Http://opendatacommunities.org/id/metropolitan-district-council/leeds,Leeds City Council,31/10/2021,Communities and Environment,Waste Management,Supplies and Services,Recycling & Reuse Charges,234,22/10/2021,2110-00301,0.00,997.92,R,Acumen Waste Services Ltd,No
Http://opendatacommunities.org/id/metropolitan-district-council/leeds,Leeds City Council,31/10/2021,Communities and Environment,Waste Management,Supplies and Services,Waste Disposal Charges,236,22/10/2021,2110-00302,0.00,987.20,R,Acumen Waste Services Ltd,No
Http://opendatacommunities.org/id/metropolitan-district-council/leeds,Leeds City Council,31/10/2021,Communities and Environment,Waste Management,Supplies and Services,Recycling & Reuse Charges,234,22/10/2021,2110-00303,0.00,1013.76,R,Acumen Waste Services Ltd,No
Http://opendatacommunities.org/id/metropolitan-district-council/leeds,Leeds City Council,31/10/2021,Communities and Environment,Waste Management,Supplies and Services,Recycling & Reuse Charges,234,27/10/2021,2110-00304,0.00,1041.12,R,Acumen Waste Services Ltd,No
Http://opendatacommunities.org/id/metropolitan-district-council/leeds,Leeds City Council,31/10/2021,Communities and Environment,Waste Management,Supplies and Services,Waste Disposal Charges,236,28/10/2021,2110-00305,0.00,907.47,R,Acumen Waste Services Ltd,No
Http://opendatacommunities.org/id/metropolitan-district-council/leeds,Leeds City Council,31/10/2021,Communities and Environment,Waste Management,Supplies and Services,Waste Disposal Charges,236,28/10/2021,2110-00306,0.00,363.00,R,Acumen Waste Services Ltd,No
Http://opendatacommunities.org/id/metropolitan-district-council/leeds,Leeds City Council,31/10/2021,Communities and Environment,Waste Management,Supplies and Services,Waste Disposal Charges,236,28/10/2021,2110-00307,0.00,1157.20,R,Acumen Waste Services Ltd,No
Http://opendatacommunities.org/id/metropolitan-district-council/leeds,Leeds City Council,31/10/2021,Communities and Environment,Waste Management,Supplies and Services,Waste Disposal Charges,236,28/10/2021,2110-00308,0.00,1460.20,R,Acumen Waste Services Ltd,No
Http://opendatacommunities.org/id/metropolitan-district-council/leeds,Leeds City Council,31/10/2021,Communities and Environment,Waste Management,Supplies and Services,Recycling & Reuse Charges,234,28/10/2021,2110-00309,0.00,1016.64,R,Acumen Waste Services Ltd,No
Http://opendatacommunities.org/id/metropolitan-district-council/leeds,Leeds City Council,31/10/2021,Communities and Environment,Waste Management,Supplies and Services,Recycling & Reuse Charges,234,28/10/2021,2110-00310,0.00,1003.68,R,Acumen Waste Services Ltd,No
Http://opendatacommunities.org/id/metropolitan-district-council/leeds,Leeds City Council,31/10/2021,Communities and Environment,Waste Management,Supplies and Services,Recycling & Reuse Charges,234,28/10/2021,2110-00311,0.00,1015.20,R,Acumen Waste Services Ltd,No
Http://opendatacommunities.org/id/metropolitan-district-council/leeds,Leeds City Council,31/10/2021,Communities and Environment,Waste Management,Supplies and Services,Recycling & Reuse Charges,234,29/10/2021,2110-00312,0.00,850.32,R,Acumen Waste Services Ltd,No
Http://opendatacommunities.org/id/metropolitan-district-council/leeds,Leeds City Council,31/10/2021,Resources and Housing,Shared Services,Supplies and Services,Operational Materials,205,06/10/2021,2110-00313,0.00,1131.75,R,AD3 Envelope Printers Limited,No
Http://opendatacommunities.org/id/metropolitan-district-council/leeds,Leeds City Council,31/10/2021,Resources and Housing,Shared Services,Supplies and Services,Other Hired And Contracted Services,265,08/10/2021,2110-00314,0.00,318.50,R,AD3 Envelope Printers Limited,No
Http://opendatacommunities.org/id/metropolitan-district-council/leeds,Leeds City Council,31/10/2021,Communities and Environment,Benefits Welfare and Poverty,Supplies and Services,Grant Related Expenditure,290,07/10/2021,2110-00315,0.00,500.00,R,REDACTED PERSONAL DATA,No
Http://opendatacommunities.org/id/metropolitan-district-council/leeds,Leeds City Council,31/10/2021,Communities and Environment,Benefits Welfare and Poverty,Supplies and Services,Grant Related Expenditure,298,04/10/2021,2110-00316,0.00,500.00,R,REDACTED PERSONAL DATA,No
Http://opendatacommunities.org/id/metropolitan-district-council/leeds,Leeds City Council,31/10/2021,City Development,Libraries Arts & Heritage,External Income,Admissions Booking Fees & Ticket Sales,933,25/10/2021,2110-00317,0.00,82.50,R,REDACTED PERSONAL DATA,No
Http://opendatacommunities.org/id/metropolitan-district-council/leeds,Leeds City Council,31/10/2021,Children and Families,Social Care,Appropriations,Leaving Care Allowances,634,01/10/2021,2110-00318,0.00,70.00,R,REDACTED PERSONAL DATA,No
Http://opendatacommunities.org/id/metropolitan-district-council/leeds,Leeds City Council,31/10/2021,Children and Families,Social Care,Appropriations,Leaving Care Allowances,634,08/10/2021,2110-00319,0.00,70.00,R,REDACTED PERSONAL DATA,No
Http://opendatacommunities.org/id/metropolitan-district-council/leeds,Leeds City Council,31/10/2021,Children and Families,Social Care,Appropriations,Leaving Care Allowances,634,15/10/2021,2110-00320,0.00,30.00,R,REDACTED PERSONAL DATA,No
Http://opendatacommunities.org/id/metropolitan-district-council/leeds,Leeds City Council,31/10/2021,Children and Families,Social Care,Appropriations,Leaving Care Allowances,634,22/10/2021,2110-00321,0.00,50.00,R,REDACTED PERSONAL DATA,No
Http://opendatacommunities.org/id/metropolitan-district-council/leeds,Leeds City Council,31/10/2021,Children and Families,Social Care,Appropriations,Leaving Care Allowances,634,29/10/2021,2110-00322,0.00,50.00,R,REDACTED PERSONAL DATA,No
Http://opendatacommunities.org/id/metropolitan-district-council/leeds,Leeds City Council,31/10/2021,Communities and Environment,Benefits Welfare and Poverty,Supplies and Services,Grant Related Expenditure,298,15/10/2021,2110-00323,0.00,500.00,R,REDACTED PERSONAL DATA,No
Http://opendatacommunities.org/id/metropolitan-district-council/leeds,Leeds City Council,31/10/2021,Communities and Environment,Benefits Welfare and Poverty,Supplies and Services,Grant Related Expenditure,298,28/10/2021,2110-00324,0.00,500.00,R,REDACTED PERSONAL DATA,No
Http://opendatacommunities.org/id/metropolitan-district-council/leeds,Leeds City Council,31/10/2021,Communities and Environment,Benefits Welfare and Poverty,Supplies and Services,Grant Related Expenditure,298,01/10/2021,2110-00325,0.00,500.00,R,REDACTED PERSONAL DATA,No
Http://opendatacommunities.org/id/metropolitan-district-council/leeds,Leeds City Council,31/10/2021,Communities and Environment,Benefits Welfare and Poverty,Supplies and Services,Grant Related Expenditure,298,06/10/2021,2110-00326,0.00,500.00,R,REDACTED PERSONAL DATA,No
Http://opendatacommunities.org/id/metropolitan-district-council/leeds,Leeds City Council,31/10/2021,Adults and Health,Services For Older People - 65 And Over,Agency Payments,Nursing Home,570,13/10/2021,2110-00327,0.00,2648.00,R,Adbolton Hall,No
Http://opendatacommunities.org/id/metropolitan-district-council/leeds,Leeds City Council,31/10/2021,Resources and Housing,Technology,Employees,Agency Staff,8,08/09/2021,2110-00328,0.00,18638.80,R,Adecco Alfred Marks,Yes
Http://opendatacommunities.org/id/metropolitan-district-council/leeds,Leeds City Council,31/10/2021,Resources and Housing,Technology,Employees,Agency Staff,8,27/09/2021,2110-00329,0.00,20815.26,R,Adecco Alfred Marks,Yes
Http://opendatacommunities.org/id/metropolitan-district-council/leeds,Leeds City Council,31/10/2021,Children and Families,Social Care,Agency Payments,Services Rendered By Voluntary Sector,505,01/10/2021,2110-00330,0.00,4626.13,R,ADEL PRE SCHOOL,No
Http://opendatacommunities.org/id/metropolitan-district-council/leeds,Leeds City Council,31/10/2021,Children and Families,Social Care,Agency Payments,Services Rendered By Voluntary Sector,505,01/10/2021,2110-00331,0.00,2736.84,R,ADEL PRE SCHOOL,No
Http://opendatacommunities.org/id/metropolitan-district-council/leeds,Leeds City Council,31/10/2021,Children and Families,Social Care,Agency Payments,Services Rendered By Other Organisations,511,06/10/2021,2110-00332,0.00,261.30,R,ADEL PRE SCHOOL,No
Http://opendatacommunities.org/id/metropolitan-district-council/leeds,Leeds City Council,31/10/2021,Children and Families,Social Care,Agency Payments,Contact,548,05/10/2021,2110-00333,0.00,13.40,R,REDACTED PERSONAL DATA,No
Http://opendatacommunities.org/id/metropolitan-district-council/leeds,Leeds City Council,31/10/2021,Children and Families,Social Care,Agency Payments,Contact,548,26/10/2021,2110-00334,0.00,12.90,R,REDACTED PERSONAL DATA,No
Http://opendatacommunities.org/id/metropolitan-district-council/leeds,Leeds City Council,31/10/2021,Children and Families,Social Care,Agency Payments,Contact,548,28/10/2021,2110-00335,0.00,6.70,R,REDACTED PERSONAL DATA,No
Http://opendatacommunities.org/id/metropolitan-district-council/leeds,Leeds City Council,31/10/2021,City Development,Recreation,Supplies and Services,Bought In Professional Services,277,08/10/2021,2110-00336,0.00,380.00,R,Adele Battersby,No
Http://opendatacommunities.org/id/metropolitan-district-council/leeds,Leeds City Council,31/10/2021,City Development,Recreation,Supplies and Services,Bought In Professional Services,277,29/10/2021,2110-00337,0.00,160.00,R,Adele Battersby,No
Http://opendatacommunities.org/id/metropolitan-district-council/leeds,Leeds City Council,31/10/2021,Children and Families,Social Care,Agency Payments,Services Rendered By Other Organisations,511,01/10/2021,2110-00338,0.00,1087.12,R,REDACTED PERSONAL DATA,No
Http://opendatacommunities.org/id/metropolitan-district-council/leeds,Leeds City Council,31/10/2021,Children and Families,Social Care,Agency Payments,Services Rendered By Other Organisations,511,06/10/2021,2110-00339,0.00,871.00,R,REDACTED PERSONAL DATA,No
Http://opendatacommunities.org/id/metropolitan-district-council/leeds,Leeds City Council,31/10/2021,Communities and Environment,Benefits Welfare and Poverty,Supplies and Services,Grant Related Expenditure,290,06/10/2021,2110-00340,0.00,500.00,R,REDACTED PERSONAL DATA,No
Http://opendatacommunities.org/id/metropolitan-district-council/leeds,Leeds City Council,31/10/2021,Children and Families,Social Care,Agency Payments,Contact,548,26/10/2021,2110-00341,0.00,32.00,R,REDACTED PERSONAL DATA,No
Http://opendatacommunities.org/id/metropolitan-district-council/leeds,Leeds City Council,31/10/2021,Communities and Environment,Benefits Welfare and Poverty,Supplies and Services,Grant Related Expenditure,290,05/10/2021,2110-00342,0.00,500.00,R,REDACTED PERSONAL DATA,No
Http://opendatacommunities.org/id/metropolitan-district-council/leeds,Leeds City Council,31/10/2021,Children and Families,Social Care,Agency Payments,Contact,548,01/10/2021,2110-00343,0.00,24.90,R,REDACTED PERSONAL DATA,No
Http://opendatacommunities.org/id/metropolitan-district-council/leeds,Leeds City Council,31/10/2021,Children and Families,Social Care,Agency Payments,Contact,548,08/10/2021,2110-00344,0.00,24.90,R,REDACTED PERSONAL DATA,No
Http://opendatacommunities.org/id/metropolitan-district-council/leeds,Leeds City Council,31/10/2021,Children and Families,Social Care,Agency Payments,Contact,548,15/10/2021,2110-00345,0.00,24.90,R,REDACTED PERSONAL DATA,No
Http://opendatacommunities.org/id/metropolitan-district-council/leeds,Leeds City Council,31/10/2021,Children and Families,Social Care,Agency Payments,Contact,548,22/10/2021,2110-00346,0.00,24.90,R,REDACTED PERSONAL DATA,No
Http://opendatacommunities.org/id/metropolitan-district-council/leeds,Leeds City Council,31/10/2021,Children and Families,Social Care,Agency Payments,Contact,548,29/10/2021,2110-00347,0.00,24.90,R,REDACTED PERSONAL DATA,No
Http://opendatacommunities.org/id/metropolitan-district-council/leeds,Leeds City Council,31/10/2021,Children and Families,Social Care,Agency Payments,Section 17,551,15/10/2021,2110-00348,0.00,237.60,R,REDACTED PERSONAL DATA,No
Http://opendatacommunities.org/id/metropolitan-district-council/leeds,Leeds City Council,31/10/2021,Children and Families,Social Care,Agency Payments,Section 17,551,22/10/2021,2110-00349,0.00,79.20,R,REDACTED PERSONAL DATA,No
Http://opendatacommunities.org/id/metropolitan-district-council/leeds,Leeds City Council,31/10/2021,Children and Families,Social Care,Agency Payments,Section 17,551,29/10/2021,2110-00350,0.00,79.20,R,REDACTED PERSONAL DATA,No
Http://opendatacommunities.org/id/metropolitan-district-council/leeds,Leeds City Council,31/10/2021,Resources and Housing,Leeds Building Services,Supplies and Services,Operational Materials,205,25/10/2021,2110-00351,0.00,52.54,R,ADI Global,No
Http://opendatacommunities.org/id/metropolitan-district-council/leeds,Leeds City Council,31/10/2021,Resources and Housing,Leeds Building Services,Supplies and Services,Operational Materials,205,25/10/2021,2110-00352,0.00,201.84,R,ADI Global,No
Http://opendatacommunities.org/id/metropolitan-district-council/leeds,Leeds City Council,31/10/2021,Resources and Housing,Leeds Building Services,Supplies and Services,Operational Materials,205,25/10/2021,2110-00353,0.00,153.46,R,ADI Global,No
Http://opendatacommunities.org/id/metropolitan-district-council/leeds,Leeds City Council,31/10/2021,Communities and Environment,Elections Licensing and Registration,External Income,Admissions Booking Fees & Ticket Sales,933,28/10/2021,2110-00354,0.00,310.00,R,Adil Hamid,No
Http://opendatacommunities.org/id/metropolitan-district-council/leeds,Leeds City Council,31/10/2021,Communities and Environment,Benefits Welfare and Poverty,Supplies and Services,Grant Related Expenditure,298,20/10/2021,2110-00355,0.00,500.00,R,REDACTED PERSONAL DATA,No
Http://opendatacommunities.org/id/metropolitan-district-council/leeds,Leeds City Council,31/10/2021,Insurance,Insurance,Supplies and Services,Insurance Claims,248,21/10/2021,2110-00356,0.00,456.00,R,Admiral Law,No
Http://opendatacommunities.org/id/metropolitan-district-council/leeds,Leeds City Council,31/10/2021,Insurance,Insurance,Supplies and Services,Insurance Claims,248,28/10/2021,2110-00357,0.00,3356.56,R,Admiral Law,No
Http://opendatacommunities.org/id/metropolitan-district-council/leeds,Leeds City Council,31/10/2021,Insurance,Insurance,Supplies and Services,Insurance Claims,248,28/10/2021,2110-00358,0.00,360.00,R,Admiral Law,No
Http://opendatacommunities.org/id/metropolitan-district-council/leeds,Leeds City Council,31/10/2021,City Development,Libraries Arts & Heritage,Supplies and Services,Computer Software & Equipment,214,03/09/2021,2110-00359,0.00,41.62,R,Adobe Creative Cloud,Yes
Http://opendatacommunities.org/id/metropolitan-district-council/leeds,Leeds City Council,31/10/2021,City Development,Recreation,Supplies and Services,Computer Software & Equipment,214,22/09/2021,2110-00360,0.00,298.02,R,Adobe Creative Cloud,Yes
Http://opendatacommunities.org/id/metropolitan-district-council/leeds,Leeds City Council,31/10/2021,City Development,Libraries Arts & Heritage,Supplies and Services,Computer Software & Equipment,214,27/09/2021,2110-00361,0.00,8.32,R,Adobe Photogphy Plan,Yes
Http://opendatacommunities.org/id/metropolitan-district-council/leeds,Leeds City Council,31/10/2021,Adults and Health,Services For Adults Under 65 Mental/Dis,Agency Payments,Home Care,568,06/10/2021,2110-00362,0.00,204.00,R,Adopt Healthcare,No
Http://opendatacommunities.org/id/metropolitan-district-council/leeds,Leeds City Council,31/10/2021,Adults and Health,Services For Adults Under 65 Mental/Dis,Agency Payments,Home Care,568,13/10/2021,2110-00363,0.00,181.50,R,Adopt Healthcare,No
Http://opendatacommunities.org/id/metropolitan-district-council/leeds,Leeds City Council,31/10/2021,Adults and Health,Other Adult Services,Agency Payments,Home Care,568,15/10/2021,2110-00364,0.00,17.31,R,Adopt Healthcare,No
Http://opendatacommunities.org/id/metropolitan-district-council/leeds,Leeds City Council,31/10/2021,Adults and Health,Services For Adults Under 65 Mental/Dis,Agency Payments,Home Care,568,20/10/2021,2110-00365,0.00,165.00,R,Adopt Healthcare,No
Http://opendatacommunities.org/id/metropolitan-district-council/leeds,Leeds City Council,31/10/2021,Adults and Health,Services For Adults Under 65 Mental/Dis,Agency Payments,Home Care,568,28/10/2021,2110-00366,0.00,132.00,R,Adopt Healthcare,No
Http://opendatacommunities.org/id/metropolitan-district-council/leeds,Leeds City Council,31/10/2021,Children and Families,Social Care,Agency Payments,Placement Support,550,01/10/2021,2110-00367,0.00,21.15,R,REDACTED PERSONAL DATA,No
Http://opendatacommunities.org/id/metropolitan-district-council/leeds,Leeds City Council,31/10/2021,Children and Families,Social Care,Agency Payments,Placement Support,550,08/10/2021,2110-00368,0.00,21.15,R,REDACTED PERSONAL DATA,No
Http://opendatacommunities.org/id/metropolitan-district-council/leeds,Leeds City Council as Accountable Body,31/10/2021,Social Services Pooled Budgets,Jcs For People With Learning Disabilitie,Agency Payments,Residential,580,14/10/2021,2110-00369,0.00,2609.36,R,ADRIAN HOUSE,No
Http://opendatacommunities.org/id/metropolitan-district-council/leeds,Leeds City Council,31/10/2021,Communities and Environment,Benefits Welfare and Poverty,Supplies and Services,Grant Related Expenditure,290,01/10/2021,2110-00370,0.00,500.00,R,REDACTED PERSONAL DATA,No
Http://opendatacommunities.org/id/metropolitan-district-council/leeds,Leeds City Council,31/10/2021,Communities and Environment,Benefits Welfare and Poverty,Supplies and Services,Grant Related Expenditure,290,04/10/2021,2110-00371,0.00,500.00,R,REDACTED PERSONAL DATA,No
Http://opendatacommunities.org/id/metropolitan-district-council/leeds,Leeds City Council,31/10/2021,Communities and Environment,Benefits Welfare and Poverty,Supplies and Services,Grant Related Expenditure,298,20/10/2021,2110-00372,0.00,500.00,R,REDACTED PERSONAL DATA,No
Http://opendatacommunities.org/id/metropolitan-district-council/leeds,Leeds City Council,31/10/2021,Communities and Environment,Benefits Welfare and Poverty,Supplies and Services,Grant Related Expenditure,298,14/10/2021,2110-00373,0.00,500.00,R,REDACTED PERSONAL DATA,No
Http://opendatacommunities.org/id/metropolitan-district-council/leeds,Leeds City Council,31/10/2021,Children and Families,Social Care,Internal Recharges,Legal Disbursements,411,01/10/2021,2110-00374,0.00,657.20,R,ADVANCED CHILD CARE ASSESSMENTS LTD,No
Http://opendatacommunities.org/id/metropolitan-district-council/leeds,Leeds City Council,31/10/2021,Children and Families,Social Care,Internal Recharges,Legal Disbursements,411,06/10/2021,2110-00375,0.00,484.80,R,ADVANCED CHILD CARE ASSESSMENTS LTD,No
Http://opendatacommunities.org/id/metropolitan-district-council/leeds,Leeds City Council,31/10/2021,Children and Families,Social Care,Internal Recharges,Legal Disbursements,411,08/10/2021,2110-00376,0.00,657.20,R,ADVANCED CHILD CARE ASSESSMENTS LTD,No
Http://opendatacommunities.org/id/metropolitan-district-council/leeds,Leeds City Council,31/10/2021,Children and Families,Social Care,Internal Recharges,Legal Disbursements,411,15/10/2021,2110-00377,0.00,657.20,R,ADVANCED CHILD CARE ASSESSMENTS LTD,No
Http://opendatacommunities.org/id/metropolitan-district-council/leeds,Leeds City Council,31/10/2021,Children and Families,Social Care,Internal Recharges,Legal Disbursements,411,15/10/2021,2110-00378,0.00,483.35,R,ADVANCED CHILD CARE ASSESSMENTS LTD,No
Http://opendatacommunities.org/id/metropolitan-district-council/leeds,Leeds City Council,31/10/2021,Children and Families,Social Care,Internal Recharges,Legal Disbursements,411,27/10/2021,2110-00379,0.00,657.20,R,ADVANCED CHILD CARE ASSESSMENTS LTD,No
Http://opendatacommunities.org/id/metropolitan-district-council/leeds,Leeds City Council,31/10/2021,Children and Families,Social Care,Internal Recharges,Legal Disbursements,411,29/10/2021,2110-00380,0.00,692.20,R,ADVANCED CHILD CARE ASSESSMENTS LTD,No
Http://opendatacommunities.org/id/metropolitan-district-council/leeds,Leeds City Council,31/10/2021,Children and Families,Social Care,Internal Recharges,Legal Disbursements,411,29/10/2021,2110-00381,0.00,503.80,R,ADVANCED CHILD CARE ASSESSMENTS LTD,No
Http://opendatacommunities.org/id/metropolitan-district-council/leeds,Leeds City Council as Accountable Body,31/10/2021,Social Services Pooled Budgets,Jcs For People With Learning Disabilitie,Agency Payments,Home Care,568,01/10/2021,2110-00382,0.00,2271.50,R,Advantage Healthcare Ltd,No
Http://opendatacommunities.org/id/metropolitan-district-council/leeds,Leeds City Council as Accountable Body,31/10/2021,Social Services Pooled Budgets,Jcs For People With Learning Disabilitie,Agency Payments,Home Care,568,07/10/2021,2110-00383,0.00,2415.00,R,Advantage Healthcare Ltd,No
Http://opendatacommunities.org/id/metropolitan-district-council/leeds,Leeds City Council as Accountable Body,31/10/2021,Social Services Pooled Budgets,Jcs For People With Learning Disabilitie,Agency Payments,Home Care,568,08/10/2021,2110-00384,0.00,951.30,R,Advantage Healthcare Ltd,No
Http://opendatacommunities.org/id/metropolitan-district-council/leeds,Leeds City Council as Accountable Body,31/10/2021,Social Services Pooled Budgets,Jcs For People With Learning Disabilitie,Agency Payments,Home Care,568,15/10/2021,2110-00385,0.00,1294.30,R,Advantage Healthcare Ltd,No
Http://opendatacommunities.org/id/metropolitan-district-council/leeds,Leeds City Council as Accountable Body,31/10/2021,Social Services Pooled Budgets,Jcs For People With Learning Disabilitie,Agency Payments,Home Care,568,21/10/2021,2110-00386,0.00,2673.75,R,Advantage Healthcare Ltd,No
Http://opendatacommunities.org/id/metropolitan-district-council/leeds,Leeds City Council as Accountable Body,31/10/2021,Social Services Pooled Budgets,Jcs For People With Learning Disabilitie,Agency Payments,Home Care,568,22/10/2021,2110-00387,0.00,4288.06,R,Advantage Healthcare Ltd,No
Http://opendatacommunities.org/id/metropolitan-district-council/leeds,Leeds City Council as Accountable Body,31/10/2021,Social Services Pooled Budgets,Jcs For People With Learning Disabilitie,Agency Payments,Home Care,568,29/10/2021,2110-00388,0.00,2292.22,R,Advantage Healthcare Ltd,No
Http://opendatacommunities.org/id/metropolitan-district-council/leeds,Leeds City Council,31/10/2021,Children and Families,Social Care,Supplies and Services,Operational Furniture And Equipment,203,15/09/2021,2110-00389,0.00,66.98,R,Adventure Climb Rescue,Yes
Http://opendatacommunities.org/id/metropolitan-district-council/leeds,Leeds City Council as Accountable Body,31/10/2021,Social Services Pooled Budgets,Jcs For People With Learning Disabilitie,Agency Payments,Residential,580,13/10/2021,2110-00390,0.00,17105.76,R,ADVITAM LTD,No
Http://opendatacommunities.org/id/metropolitan-district-council/leeds,Leeds City Council,31/10/2021,Adults and Health,Services For Adults Under 65 Learn/Dis,Agency Payments,Payments To Voluntary Organisations,561,05/10/2021,2110-00391,0.00,17944.96,R,Advonet,No
Http://opendatacommunities.org/id/metropolitan-district-council/leeds,Leeds City Council,31/10/2021,Adults and Health,Services For Older People - 65 And Over,Agency Payments,Payments To Voluntary Organisations,561,20/10/2021,2110-00392,0.00,108916.65,R,Advonet,No
Http://opendatacommunities.org/id/metropolitan-district-council/leeds,Leeds City Council as Accountable Body,31/10/2021,Social Services Pooled Budgets,Jcs For People With Learning Disabilitie,Supplies and Services,Other Hired And Contracted Services,265,29/10/2021,2110-00393,0.00,135.00,R,Advonet,No
Http://opendatacommunities.org/id/metropolitan-district-council/leeds,Leeds City Council as Accountable Body,31/10/2021,Social Services Pooled Budgets,Jcs For People With Learning Disabilitie,Supplies and Services,Other Hired And Contracted Services,265,29/10/2021,2110-00394,0.00,75.00,R,Advonet,No
Http://opendatacommunities.org/id/metropolitan-district-council/leeds,Leeds City Council as Accountable Body,31/10/2021,Social Services Pooled Budgets,Jcs For People With Learning Disabilitie,Agency Payments,Home Care,568,29/10/2021,2110-00395,0.00,24.90,R,Advonet,No
Http://opendatacommunities.org/id/metropolitan-district-council/leeds,Leeds City Council as Accountable Body,31/10/2021,Social Services Pooled Budgets,Jcs For People With Learning Disabilitie,Supplies and Services,Other Hired And Contracted Services,265,29/10/2021,2110-00396,0.00,45.00,R,Advonet,No
Http://opendatacommunities.org/id/metropolitan-district-council/leeds,Leeds City Council as Accountable Body,31/10/2021,Social Services Pooled Budgets,Jcs For People With Learning Disabilitie,Supplies and Services,Other Hired And Contracted Services,265,29/10/2021,2110-00397,0.00,121.50,R,Advonet,No
Http://opendatacommunities.org/id/metropolitan-district-council/leeds,Leeds City Council,31/10/2021,Adults and Health,Services For Adults Under 65 Mental/Dis,Agency Payments,Home Care,568,29/10/2021,2110-00398,0.00,87.00,R,Advonet,No
Http://opendatacommunities.org/id/metropolitan-district-council/leeds,Leeds City Council as Accountable Body,31/10/2021,Social Services Pooled Budgets,Jcs For People With Learning Disabilitie,Supplies and Services,Other Hired And Contracted Services,265,29/10/2021,2110-00399,0.00,130.20,R,Advonet,No
Http://opendatacommunities.org/id/metropolitan-district-council/leeds,Leeds City Council as Accountable Body,31/10/2021,Social Services Pooled Budgets,Jcs For People With Learning Disabilitie,Supplies and Services,Other Hired And Contracted Services,265,29/10/2021,2110-00400,0.00,249.90,R,Advonet,No
Http://opendatacommunities.org/id/metropolitan-district-council/leeds,Leeds City Council,31/10/2021,Children and Families,Social Care,Agency Payments,Placement Support,550,29/10/2021,2110-00401,0.00,79.50,R,Advonet,No
Http://opendatacommunities.org/id/metropolitan-district-council/leeds,Leeds City Council,31/10/2021,Adults and Health,Services For Adults Under 65 Mental/Dis,Agency Payments,Home Care,568,29/10/2021,2110-00402,0.00,197.40,R,Advonet,No
Http://opendatacommunities.org/id/metropolitan-district-council/leeds,Leeds City Council as Accountable Body,31/10/2021,Social Services Pooled Budgets,Jcs For People With Learning Disabilitie,Supplies and Services,Other Hired And Contracted Services,265,29/10/2021,2110-00403,0.00,112.50,R,Advonet,No
Http://opendatacommunities.org/id/metropolitan-district-council/leeds,Leeds City Council,31/10/2021,Adults and Health,Services For Adults Under 65 Mental/Dis,Agency Payments,Fees - Level 4,520,22/10/2021,2110-00404,0.00,482.85,R,AE BIA Assessments Limited,No
Http://opendatacommunities.org/id/metropolitan-district-council/leeds,Leeds City Council,31/10/2021,City Development,Highways,Capital,OTHER COSTS,7,05/10/2021,2110-00405,0.00,32309.38,C,Aecom Limited,No
Http://opendatacommunities.org/id/metropolitan-district-council/leeds,Leeds City Council,31/10/2021,City Development,Highways,Supplies and Services,Bought In Professional Services,277,06/10/2021,2110-00406,0.00,13061.75,R,Aecom Limited,No
Http://opendatacommunities.org/id/metropolitan-district-council/leeds,Leeds City Council,31/10/2021,City Development,Highways,Capital,OTHER COSTS,7,06/10/2021,2110-00407,0.00,99072.60,C,Aecom Limited,No
Http://opendatacommunities.org/id/metropolitan-district-council/leeds,Leeds City Council,31/10/2021,City Development,Highways,Supplies and Services,Bought In Professional Services,277,14/10/2021,2110-00408,0.00,15515.38,R,Aecom Limited,No
Http://opendatacommunities.org/id/metropolitan-district-council/leeds,Leeds City Council,31/10/2021,City Development,Highways,Supplies and Services,Other Hired And Contracted Services,265,25/10/2021,2110-00409,0.00,8899.67,R,Aecom Limited,No
Http://opendatacommunities.org/id/metropolitan-district-council/leeds,Leeds City Council,31/10/2021,City Development,Highways,Capital,OTHER COSTS,7,29/10/2021,2110-00410,0.00,65660.43,C,Aecom Limited,No
Http://opendatacommunities.org/id/metropolitan-district-council/leeds,Leeds City Council,31/10/2021,Adults and Health,Services For Adults Under 65 Mental/Dis,Agency Payments,Home Care,568,08/10/2021,2110-00411,0.00,1221.60,R,Aegis Care Solutions Ltd,No
Http://opendatacommunities.org/id/metropolitan-district-council/leeds,Leeds City Council,31/10/2021,Adults and Health,Services For Adults Under 65 Mental/Dis,Agency Payments,Home Care,568,08/10/2021,2110-00412,0.00,4246.40,R,Aegis Care Solutions Ltd,No
Http://opendatacommunities.org/id/metropolitan-district-council/leeds,Leeds City Council,31/10/2021,Adults and Health,Services For Adults Under 65 Mental/Dis,Agency Payments,Home Care,568,08/10/2021,2110-00413,0.00,2006.31,R,Aegis Care Solutions Ltd,No
Http://opendatacommunities.org/id/metropolitan-district-council/leeds,Leeds City Council,31/10/2021,Adults and Health,Services For Adults Under 65 Mental/Dis,Agency Payments,Home Care,568,08/10/2021,2110-00414,0.00,649.70,R,Aegis Care Solutions Ltd,No
Http://opendatacommunities.org/id/metropolitan-district-council/leeds,Leeds City Council,31/10/2021,Adults and Health,Services For Adults Under 65 Mental/Dis,Agency Payments,Home Care,568,08/10/2021,2110-00415,0.00,1718.80,R,Aegis Care Solutions Ltd,No
Http://opendatacommunities.org/id/metropolitan-district-council/leeds,Leeds City Council,31/10/2021,Adults and Health,Services For Adults Under 65 Mental/Dis,Agency Payments,Home Care,568,08/10/2021,2110-00416,0.00,142.40,R,Aegis Care Solutions Ltd,No
Http://opendatacommunities.org/id/metropolitan-district-council/leeds,Leeds City Council,31/10/2021,Adults and Health,Services For Adults Under 65 Mental/Dis,Agency Payments,Home Care,568,08/10/2021,2110-00417,0.00,1143.60,R,Aegis Care Solutions Ltd,No
Http://opendatacommunities.org/id/metropolitan-district-council/leeds,Leeds City Council,31/10/2021,Adults and Health,Services For Adults Under 65 Mental/Dis,Agency Payments,Home Care,568,08/10/2021,2110-00418,0.00,249.20,R,Aegis Care Solutions Ltd,No
Http://opendatacommunities.org/id/metropolitan-district-council/leeds,Leeds City Council,31/10/2021,Adults and Health,Services For Older People - 65 And Over,Agency Payments,Home Care,568,27/10/2021,2110-00419,0.00,24449.68,R,Aegis Care Solutions Ltd,No
Http://opendatacommunities.org/id/metropolitan-district-council/leeds,Leeds City Council,31/10/2021,Adults and Health,Services For Older People - 65 And Over,Agency Payments,HCAIT Other,577,27/10/2021,2110-00420,0.00,194.40,R,Aegis Care Solutions Ltd,No
Http://opendatacommunities.org/id/metropolitan-district-council/leeds,Leeds City Council,31/10/2021,Adults and Health,Services For Older People Under 65 P/Dis,Agency Payments,Home Care,568,27/10/2021,2110-00421,0.00,6320.17,R,Aegis Care Solutions Ltd,No
Http://opendatacommunities.org/id/metropolitan-district-council/leeds,Leeds City Council as Accountable Body,31/10/2021,Social Services Pooled Budgets,Jcs For People With Learning Disabilitie,Agency Payments,Home Care,568,27/10/2021,2110-00422,0.00,1977.92,R,Aegis Care Solutions Ltd,No
Http://opendatacommunities.org/id/metropolitan-district-council/leeds,Leeds City Council,31/10/2021,City Development,Libraries Arts & Heritage,Supplies and Services,Operational Furniture And Equipment,203,21/10/2021,2110-00423,0.00,555.80,R,Aesg Ltd,No
Http://opendatacommunities.org/id/metropolitan-district-council/leeds,Leeds City Council,31/10/2021,Adults and Health,Services For Adults Under 65 Mental/Dis,Agency Payments,Home Care,568,01/10/2021,2110-00424,0.00,1071.36,R,Affinity Trust,No
Http://opendatacommunities.org/id/metropolitan-district-council/leeds,Leeds City Council,31/10/2021,Adults and Health,Assessment And Care Management,Agency Payments,Home Care,568,06/10/2021,2110-00425,0.00,133.92,R,Affinity Trust,No
Http://opendatacommunities.org/id/metropolitan-district-council/leeds,Leeds City Council,31/10/2021,Adults and Health,Services For Adults Under 65 Mental/Dis,Agency Payments,Home Care,568,06/10/2021,2110-00426,0.00,535.68,R,Affinity Trust,No
Http://opendatacommunities.org/id/metropolitan-district-council/leeds,Leeds City Council,31/10/2021,Adults and Health,Services For Adults Under 65 Mental/Dis,Agency Payments,HCAIT Community Support,575,06/10/2021,2110-00427,0.00,334.80,R,Affinity Trust,No
Http://opendatacommunities.org/id/metropolitan-district-council/leeds,Leeds City Council,31/10/2021,Adults and Health,Services For Older People - 65 And Over,Agency Payments,HCAIT Community Support,575,06/10/2021,2110-00428,0.00,602.64,R,Affinity Trust,No
Http://opendatacommunities.org/id/metropolitan-district-council/leeds,Leeds City Council,31/10/2021,Adults and Health,Services For Older People Under 65 P/Dis,Agency Payments,Home Care,568,06/10/2021,2110-00429,0.00,803.52,R,Affinity Trust,No
Http://opendatacommunities.org/id/metropolitan-district-council/leeds,Leeds City Council,31/10/2021,Adults and Health,Services For Older People Under 65 P/Dis,Agency Payments,HCAIT Community Support,575,06/10/2021,2110-00430,0.00,736.56,R,Affinity Trust,No
Http://opendatacommunities.org/id/metropolitan-district-council/leeds,Leeds City Council as Accountable Body,31/10/2021,Social Services Pooled Budgets,Jcs For People With Learning Disabilitie,Agency Payments,Home Care,568,06/10/2021,2110-00431,0.00,334.80,R,Affinity Trust,No
Http://opendatacommunities.org/id/metropolitan-district-council/leeds,Leeds City Council as Accountable Body,31/10/2021,Social Services Pooled Budgets,Jcs For People With Learning Disabilitie,Agency Payments,Day Centre,564,07/10/2021,2110-00432,0.00,127.06,R,Affinity Trust,No
Http://opendatacommunities.org/id/metropolitan-district-council/leeds,Leeds City Council as Accountable Body,31/10/2021,Social Services Pooled Budgets,Jcs For People With Learning Disabilitie,Agency Payments,Day Centre,564,07/10/2021,2110-00433,0.00,419.67,R,Affinity Trust,No
Http://opendatacommunities.org/id/metropolitan-district-council/leeds,Leeds City Council,31/10/2021,Adults and Health,Assessment And Care Management,Agency Payments,Home Care,568,26/10/2021,2110-00434,0.00,669.60,R,Affinity Trust,No
Http://opendatacommunities.org/id/metropolitan-district-council/leeds,Leeds City Council,31/10/2021,Adults and Health,Services For Adults Under 65 Mental/Dis,Agency Payments,Home Care,568,26/10/2021,2110-00435,0.00,1071.36,R,Affinity Trust,No
Http://opendatacommunities.org/id/metropolitan-district-council/leeds,Leeds City Council as Accountable Body,31/10/2021,Social Services Pooled Budgets,Jcs For People With Learning Disabilitie,Agency Payments,Day Centre,564,26/10/2021,2110-00436,0.00,15266.88,R,Affinity Trust,No
Http://opendatacommunities.org/id/metropolitan-district-council/leeds,Leeds City Council,31/10/2021,Adults and Health,Assessment And Care Management,Agency Payments,Home Care,568,26/10/2021,2110-00437,0.00,669.60,R,Affinity Trust,No
Http://opendatacommunities.org/id/metropolitan-district-council/leeds,Leeds City Council,31/10/2021,Adults and Health,Services For Older People - 65 And Over,Agency Payments,Home Care,568,26/10/2021,2110-00438,0.00,535.68,R,Affinity Trust,No
Http://opendatacommunities.org/id/metropolitan-district-council/leeds,Leeds City Council as Accountable Body,31/10/2021,Social Services Pooled Budgets,Jcs For People With Learning Disabilitie,Agency Payments,Day Centre,564,26/10/2021,2110-00439,0.00,-7082.88,R,Affinity Trust,No
Http://opendatacommunities.org/id/metropolitan-district-council/leeds,Leeds City Council,31/10/2021,Adults and Health,Assessment And Care Management,Agency Payments,Home Care,568,27/10/2021,2110-00440,0.00,133.92,R,Affinity Trust,No
Http://opendatacommunities.org/id/metropolitan-district-council/leeds,Leeds City Council,31/10/2021,Adults and Health,Services For Adults Under 65 Mental/Dis,Agency Payments,Home Care,568,27/10/2021,2110-00441,0.00,535.68,R,Affinity Trust,No
Http://opendatacommunities.org/id/metropolitan-district-council/leeds,Leeds City Council,31/10/2021,Adults and Health,Services For Adults Under 65 Mental/Dis,Agency Payments,HCAIT Community Support,575,27/10/2021,2110-00442,0.00,334.80,R,Affinity Trust,No
Http://opendatacommunities.org/id/metropolitan-district-council/leeds,Leeds City Council,31/10/2021,Adults and Health,Services For Older People - 65 And Over,Agency Payments,HCAIT Community Support,575,27/10/2021,2110-00443,0.00,602.64,R,Affinity Trust,No
Http://opendatacommunities.org/id/metropolitan-district-council/leeds,Leeds City Council,31/10/2021,Adults and Health,Services For Older People Under 65 P/Dis,Agency Payments,Home Care,568,27/10/2021,2110-00444,0.00,803.52,R,Affinity Trust,No
Http://opendatacommunities.org/id/metropolitan-district-council/leeds,Leeds City Council,31/10/2021,Adults and Health,Services For Older People Under 65 P/Dis,Agency Payments,HCAIT Community Support,575,27/10/2021,2110-00445,0.00,736.56,R,Affinity Trust,No
Http://opendatacommunities.org/id/metropolitan-district-council/leeds,Leeds City Council as Accountable Body,31/10/2021,Social Services Pooled Budgets,Jcs For People With Learning Disabilitie,Agency Payments,Home Care,568,27/10/2021,2110-00446,0.00,334.80,R,Affinity Trust,No
Http://opendatacommunities.org/id/metropolitan-district-council/leeds,Leeds City Council,31/10/2021,Adults and Health,Services For Adults Under 65 Mental/Dis,Agency Payments,Home Care,568,27/10/2021,2110-00447,0.00,1071.35,R,Affinity Trust,No
Http://opendatacommunities.org/id/metropolitan-district-council/leeds,Leeds City Council as Accountable Body,31/10/2021,Social Services Pooled Budgets,Jcs For People With Learning Disabilitie,Agency Payments,Day Centre,564,29/10/2021,2110-00448,0.00,31595.42,R,Affinity Trust,No
Http://opendatacommunities.org/id/metropolitan-district-council/leeds,Leeds City Council as Accountable Body,31/10/2021,Social Services Pooled Budgets,Jcs For People With Learning Disabilitie,Agency Payments,Day Centre,564,29/10/2021,2110-00449,0.00,545.20,R,Affinity Trust,No
Http://opendatacommunities.org/id/metropolitan-district-council/leeds,Leeds City Council as Accountable Body,31/10/2021,Social Services Pooled Budgets,Jcs For People With Learning Disabilitie,Agency Payments,Sheltered Accommodation,569,13/10/2021,2110-00450,0.00,133012.48,R,Affinity Trust North Divisional Office,No
Http://opendatacommunities.org/id/metropolitan-district-council/leeds,Leeds City Council,31/10/2021,Children and Families,Social Care,Agency Payments,Placement Support,550,29/10/2021,2110-00451,0.00,2040.00,R,AFRUCA - Safeguarding Children,No
Http://opendatacommunities.org/id/metropolitan-district-council/leeds,Leeds City Council,31/10/2021,Communities and Environment,Benefits Welfare and Poverty,Supplies and Services,Grant Related Expenditure,298,13/10/2021,2110-00452,0.00,500.00,R,REDACTED PERSONAL DATA,No
Http://opendatacommunities.org/id/metropolitan-district-council/leeds,Leeds City Council,31/10/2021,Adults and Health,Services For Older People - 65 And Over,Agency Payments,Payments To Voluntary Organisations,561,01/10/2021,2110-00453,0.00,10599.75,R,Age Uk Leeds,No
Http://opendatacommunities.org/id/metropolitan-district-council/leeds,Leeds City Council,31/10/2021,Adults and Health,Other Adult Services,Supplies and Services,Grants To Voluntary Organisations,293,21/10/2021,2110-00454,0.00,10000.00,R,Age Uk Leeds,No
Http://opendatacommunities.org/id/metropolitan-district-council/leeds,Leeds City Council,31/10/2021,Communities and Environment,Benefits Welfare and Poverty,Supplies and Services,Grant Related Expenditure,290,25/10/2021,2110-00455,0.00,500.00,R,REDACTED PERSONAL DATA,No
Http://opendatacommunities.org/id/metropolitan-district-council/leeds,Leeds City Council,31/10/2021,Communities and Environment,Benefits Welfare and Poverty,Supplies and Services,Grant Related Expenditure,290,13/10/2021,2110-00456,0.00,500.00,R,REDACTED PERSONAL DATA,No
Http://opendatacommunities.org/id/metropolitan-district-council/leeds,Leeds City Council,31/10/2021,Communities and Environment,Benefits Welfare and Poverty,Supplies and Services,Grant Related Expenditure,298,21/10/2021,2110-00457,0.00,500.00,R,REDACTED PERSONAL DATA,No
Http://opendatacommunities.org/id/metropolitan-district-council/leeds,Leeds City Council,31/10/2021,Communities and Environment,Customer Access,Supplies and Services,Bought In Professional Services,277,13/10/2021,2110-00458,0.00,9.00,R,Ahmed Moustafa Moustafa Mousa,No
Http://opendatacommunities.org/id/metropolitan-district-council/leeds,Leeds City Council,31/10/2021,Communities and Environment,Customer Access,Supplies and Services,Bought In Professional Services,277,20/10/2021,2110-00459,0.00,9.00,R,Ahmed Moustafa Moustafa Mousa,No
Http://opendatacommunities.org/id/metropolitan-district-council/leeds,Leeds City Council,31/10/2021,Communities and Environment,Customer Access,Supplies and Services,Bought In Professional Services,277,20/10/2021,2110-00460,0.00,13.50,R,Ahmed Moustafa Moustafa Mousa,No
Http://opendatacommunities.org/id/metropolitan-district-council/leeds,Leeds City Council,31/10/2021,Children and Families,Social Care,Agency Payments,Allowances,546,06/10/2021,2110-00461,0.00,196.44,R,REDACTED PERSONAL DATA,No
Http://opendatacommunities.org/id/metropolitan-district-council/leeds,Leeds City Council,31/10/2021,Strategic Landlord,Property and Contracts,Appropriations,Disrepair Provision,644,07/10/2021,2110-00462,0.00,390.00,R,AHR Building Consultancy Ltd,No
Http://opendatacommunities.org/id/metropolitan-district-council/leeds,Leeds City Council,31/10/2021,Strategic Landlord,Property and Contracts,Appropriations,Disrepair Provision,644,13/10/2021,2110-00463,0.00,390.00,R,AHR Building Consultancy Ltd,No
Http://opendatacommunities.org/id/metropolitan-district-council/leeds,Leeds City Council,31/10/2021,City Development,Economic Development,Supplies and Services,Grant Related Expenditure,290,19/10/2021,2110-00464,0.00,9000.00,R,AI Tech Events,No
Http://opendatacommunities.org/id/metropolitan-district-council/leeds,Leeds City Council,31/10/2021,Children and Families,Learning,Supplies and Services,Teaching Materials,202,14/10/2021,2110-00465,0.00,30.00,R,Aid Training & Operations Ltd,No
Http://opendatacommunities.org/id/metropolitan-district-council/leeds,Leeds City Council,31/10/2021,Children and Families,Social Care,Agency Payments,Contact,548,04/10/2021,2110-00466,0.00,28.00,R,REDACTED PERSONAL DATA,No
Http://opendatacommunities.org/id/metropolitan-district-council/leeds,Leeds City Council,31/10/2021,Children and Families,Social Care,Agency Payments,Contact,548,08/10/2021,2110-00467,0.00,8.00,R,REDACTED PERSONAL DATA,No
Http://opendatacommunities.org/id/metropolitan-district-council/leeds,Leeds City Council,31/10/2021,Children and Families,Social Care,Agency Payments,Contact,548,15/10/2021,2110-00468,0.00,4.00,R,REDACTED PERSONAL DATA,No
Http://opendatacommunities.org/id/metropolitan-district-council/leeds,Leeds City Council,31/10/2021,Children and Families,Social Care,Agency Payments,Contact,548,22/10/2021,2110-00469,0.00,4.00,R,REDACTED PERSONAL DATA,No
Http://opendatacommunities.org/id/metropolitan-district-council/leeds,Leeds City Council,31/10/2021,Children and Families,Social Care,Agency Payments,Contact,548,29/10/2021,2110-00470,0.00,4.00,R,REDACTED PERSONAL DATA,No
Http://opendatacommunities.org/id/metropolitan-district-council/leeds,Leeds City Council as Accountable Body,31/10/2021,Social Services Pooled Budgets,Leeds Community Equip Store Pooled Budgt,Supplies and Services,Other Equipment,203,27/10/2021,2110-00471,0.00,1326.75,R,AIDAPT BATHROOMS LTD,No
Http://opendatacommunities.org/id/metropolitan-district-council/leeds,Leeds City Council as Accountable Body,31/10/2021,Social Services Pooled Budgets,Leeds Community Equip Store Pooled Budgt,Supplies and Services,Other Equipment,203,27/10/2021,2110-00472,0.00,400.00,R,AIDAPT BATHROOMS LTD,No
Http://opendatacommunities.org/id/metropolitan-district-council/leeds,Leeds City Council as Accountable Body,31/10/2021,Social Services Pooled Budgets,Leeds Community Equip Store Pooled Budgt,Supplies and Services,Other Equipment,203,29/10/2021,2110-00473,0.00,630.00,R,AIDAPT BATHROOMS LTD,No
Http://opendatacommunities.org/id/metropolitan-district-council/leeds,Leeds City Council as Accountable Body,31/10/2021,Social Services Pooled Budgets,Leeds Community Equip Store Pooled Budgt,Supplies and Services,Other Equipment,203,29/10/2021,2110-00474,0.00,720.00,R,AIDAPT BATHROOMS LTD,No
Http://opendatacommunities.org/id/metropolitan-district-council/leeds,Leeds City Council as Accountable Body,31/10/2021,Social Services Pooled Budgets,Leeds Community Equip Store Pooled Budgt,Supplies and Services,Other Equipment,203,29/10/2021,2110-00475,0.00,2100.00,R,AIDAPT BATHROOMS LTD,No
Http://opendatacommunities.org/id/metropolitan-district-council/leeds,Leeds City Council as Accountable Body,31/10/2021,Social Services Pooled Budgets,Leeds Community Equip Store Pooled Budgt,Supplies and Services,Other Equipment,203,29/10/2021,2110-00476,0.00,8700.00,R,AIDAPT BATHROOMS LTD,No
Http://opendatacommunities.org/id/metropolitan-district-council/leeds,Leeds City Council as Accountable Body,31/10/2021,Social Services Pooled Budgets,Leeds Community Equip Store Pooled Budgt,Supplies and Services,Other Equipment,203,29/10/2021,2110-00477,0.00,102.85,R,AIDAPT BATHROOMS LTD,No
Http://opendatacommunities.org/id/metropolitan-district-council/leeds,Leeds City Council,31/10/2021,Communities and Environment,Benefits Welfare and Poverty,Supplies and Services,Grant Related Expenditure,298,18/10/2021,2110-00478,0.00,500.00,R,REDACTED PERSONAL DATA,No
Http://opendatacommunities.org/id/metropolitan-district-council/leeds,Leeds City Council,31/10/2021,Communities and Environment,Benefits Welfare and Poverty,Supplies and Services,Grant Related Expenditure,298,04/10/2021,2110-00479,0.00,500.00,R,REDACTED PERSONAL DATA,No
Http://opendatacommunities.org/id/metropolitan-district-council/leeds,Leeds City Council,31/10/2021,Communities and Environment,Benefits Welfare and Poverty,Supplies and Services,Grant Related Expenditure,290,01/10/2021,2110-00480,0.00,500.00,R,REDACTED PERSONAL DATA,No
Http://opendatacommunities.org/id/metropolitan-district-council/leeds,Leeds City Council,31/10/2021,City Development,Highways,Supplies and Services,Operational Furniture And Equipment,203,08/10/2021,2110-00481,0.00,861.15,R,Aimsun Ltd,No
Http://opendatacommunities.org/id/metropolitan-district-council/leeds,Leeds City Council,31/10/2021,Resources and Housing,Commercial Services,Supplies and Services,Operational Materials,205,10/09/2021,2110-00482,0.00,130.00,R,Air Force Pneumatics And,Yes
Http://opendatacommunities.org/id/metropolitan-district-council/leeds,Leeds City Council,31/10/2021,Resources and Housing,Commercial Services,Supplies and Services,Operational Materials,205,10/09/2021,2110-00483,0.00,122.67,R,Air Force Pneumatics And,Yes
Http://opendatacommunities.org/id/metropolitan-district-council/leeds,Leeds City Council,31/10/2021,Resources and Housing,Commercial Services,Supplies and Services,Operational Materials,205,22/09/2021,2110-00484,0.00,136.75,R,Air Force Pneumatics And,Yes
Http://opendatacommunities.org/id/metropolitan-district-council/leeds,Leeds City Council,31/10/2021,Communities and Environment,Environmental Health,Supplies and Services,Other Hired And Contracted Services,265,01/10/2021,2110-00485,0.00,11.25,R,AIR LIQUIDE UK,No
Http://opendatacommunities.org/id/metropolitan-district-council/leeds,Leeds City Council,31/10/2021,Communities and Environment,Environmental Health,Supplies and Services,Other Hired And Contracted Services,265,01/10/2021,2110-00486,0.00,78.75,R,AIR LIQUIDE UK,No
Http://opendatacommunities.org/id/metropolitan-district-council/leeds,Leeds City Council,31/10/2021,Communities and Environment,Environmental Health,Supplies and Services,Other Hired And Contracted Services,265,01/10/2021,2110-00487,0.00,11.25,R,AIR LIQUIDE UK,No
Http://opendatacommunities.org/id/metropolitan-district-council/leeds,Leeds City Council,31/10/2021,Communities and Environment,Environmental Health,Supplies and Services,Other Hired And Contracted Services,265,01/10/2021,2110-00488,0.00,78.75,R,AIR LIQUIDE UK,No
Http://opendatacommunities.org/id/metropolitan-district-council/leeds,Leeds City Council,31/10/2021,Resources and Housing,Leeds Building Services,Supplies and Services,Operational Furniture And Equipment,203,20/10/2021,2110-00489,0.00,74.64,R,AIR LIQUIDE UK,No
Http://opendatacommunities.org/id/metropolitan-district-council/leeds,Leeds City Council,31/10/2021,Resources and Housing,Leeds Building Services,Supplies and Services,Operational Furniture And Equipment,203,20/10/2021,2110-00490,0.00,77.52,R,AIR LIQUIDE UK,No
Http://opendatacommunities.org/id/metropolitan-district-council/leeds,Leeds City Council,31/10/2021,Resources and Housing,Leeds Building Services,Supplies and Services,Operational Furniture And Equipment,203,20/10/2021,2110-00491,0.00,77.52,R,AIR LIQUIDE UK,No
Http://opendatacommunities.org/id/metropolitan-district-council/leeds,Leeds City Council,31/10/2021,Resources and Housing,Leeds Building Services,Supplies and Services,Operational Furniture And Equipment,203,20/10/2021,2110-00492,0.00,77.52,R,AIR LIQUIDE UK,No
Http://opendatacommunities.org/id/metropolitan-district-council/leeds,Leeds City Council,31/10/2021,Resources and Housing,Leeds Building Services,Supplies and Services,Operational Furniture And Equipment,203,20/10/2021,2110-00493,0.00,77.52,R,AIR LIQUIDE UK,No
Http://opendatacommunities.org/id/metropolitan-district-council/leeds,Leeds City Council,31/10/2021,Resources and Housing,Leeds Building Services,Supplies and Services,Operational Furniture And Equipment,203,20/10/2021,2110-00494,0.00,77.52,R,AIR LIQUIDE UK,No
Http://opendatacommunities.org/id/metropolitan-district-council/leeds,Leeds City Council,31/10/2021,Communities and Environment,Environmental Health,Supplies and Services,Other Hired And Contracted Services,265,29/10/2021,2110-00495,0.00,11.25,R,AIR LIQUIDE UK,No
Http://opendatacommunities.org/id/metropolitan-district-council/leeds,Leeds City Council,31/10/2021,Communities and Environment,Environmental Health,Supplies and Services,Other Hired And Contracted Services,265,29/10/2021,2110-00496,0.00,11.25,R,AIR LIQUIDE UK,No
Http://opendatacommunities.org/id/metropolitan-district-council/leeds,Leeds City Council,31/10/2021,Communities and Environment,Environmental Health,Supplies and Services,Other Hired And Contracted Services,265,29/10/2021,2110-00497,0.00,17.38,R,AIR LIQUIDE UK,No
Http://opendatacommunities.org/id/metropolitan-district-council/leeds,Leeds City Council,31/10/2021,Communities and Environment,Environmental Health,Supplies and Services,Other Hired And Contracted Services,265,29/10/2021,2110-00498,0.00,78.75,R,AIR LIQUIDE UK,No
Http://opendatacommunities.org/id/metropolitan-district-council/leeds,Leeds City Council,31/10/2021,Communities and Environment,Parks and Countryside,Supplies and Services,Other Hired And Contracted Services,265,20/10/2021,2110-00499,0.00,725.00,R,Aire Valley Tree Services Ltd,No
Http://opendatacommunities.org/id/metropolitan-district-council/leeds,Leeds City Council,31/10/2021,Communities and Environment,Parks and Countryside,Supplies and Services,Other Hired And Contracted Services,265,22/10/2021,2110-00500,0.00,525.00,R,Aire Valley Tree Services Ltd,No
Http://opendatacommunities.org/id/metropolitan-district-council/leeds,Leeds City Council,31/10/2021,Communities and Environment,Parks and Countryside,Supplies and Services,Other Hired And Contracted Services,265,28/10/2021,2110-00501,0.00,525.00,R,Aire Valley Tree Services Ltd,No
Http://opendatacommunities.org/id/metropolitan-district-council/leeds,Leeds City Council,31/10/2021,Adults and Health,Services For Older People - 65 And Over,Agency Payments,Residential Care Dementia,571,13/10/2021,2110-00502,0.00,75427.59,R,Aire View Residential Home,No
Http://opendatacommunities.org/id/metropolitan-district-council/leeds,Leeds City Council,31/10/2021,Adults and Health,Services For Older People - 65 And Over,Agency Payments,Residential,580,13/10/2021,2110-00503,0.00,8570.76,R,Aire View Residential Home,No
Http://opendatacommunities.org/id/metropolitan-district-council/leeds,Leeds City Council,31/10/2021,City Development,Recreation,Supplies and Services,Hospitality,255,13/09/2021,2110-00504,0.00,6.62,R,Aireborough Leisure Centr,Yes
Http://opendatacommunities.org/id/metropolitan-district-council/leeds,Leeds City Council,31/10/2021,Children and Families,Social Care,Agency Payments,Services Rendered By Voluntary Sector,505,13/10/2021,2110-00505,0.00,30000.00,R,Aireborough Supported Activities Scheme,No
Http://opendatacommunities.org/id/metropolitan-district-council/leeds,Leeds City Council,31/10/2021,Children and Families,Social Care,Agency Payments,Services Rendered By Voluntary Sector,505,13/10/2021,2110-00506,0.00,25631.00,R,Aireborough Supported Activities Scheme,No
Http://opendatacommunities.org/id/metropolitan-district-council/leeds,Leeds City Council,31/10/2021,Adults and Health,Services For Older People - 65 And Over,Agency Payments,Residential Care Dementia,571,13/10/2021,2110-00507,0.00,1518.60,R,Airedale Care Home,No
Http://opendatacommunities.org/id/metropolitan-district-council/leeds,Leeds City Council,31/10/2021,Adults and Health,Services For Older People - 65 And Over,Agency Payments,Residential,580,13/10/2021,2110-00508,0.00,13031.81,R,Airedale Care Home,No
Http://opendatacommunities.org/id/metropolitan-district-council/leeds,Leeds City Council,31/10/2021,Resources and Housing,Commercial Services,Supplies and Services,Operational Furniture And Equipment,203,01/10/2021,2110-00509,0.00,1197.00,R,AIREDALE CATERING EQUIPMENT LTD,No
Http://opendatacommunities.org/id/metropolitan-district-council/leeds,Leeds City Council,31/10/2021,Resources and Housing,Leeds Building Services,Supplies and Services,Operational Materials,205,25/10/2021,2110-00510,0.00,2615.00,R,AIREDALE CATERING EQUIPMENT LTD,No
Http://opendatacommunities.org/id/metropolitan-district-council/leeds,Leeds City Council,31/10/2021,Resources and Housing,Commercial Services,Supplies and Services,Operational Furniture And Equipment,203,27/10/2021,2110-00511,0.00,1238.00,R,AIREDALE CATERING EQUIPMENT LTD,No
Http://opendatacommunities.org/id/metropolitan-district-council/leeds,Leeds City Council,31/10/2021,City Development,Employment & Skills,Agency Payments,Contributions To Partnerships,544,21/10/2021,2110-00512,0.00,4689.80,R,Airnow Cybersecurity Limited,No
Http://opendatacommunities.org/id/metropolitan-district-council/leeds,Leeds City Council,31/10/2021,Children and Families,Social Care,Transport,Public Transport Expenses,310,03/09/2021,2110-00513,0.00,8.55,R,Airpay 38635606-Amber Car,Yes
Http://opendatacommunities.org/id/metropolitan-district-council/leeds,Leeds City Council,31/10/2021,Resources and Housing,Strategic Housing Partnership & Support,Supplies and Services,Other Hired And Contracted Services,265,08/09/2021,2110-00514,0.00,5.04,R,Airpay 38690999-Amber Car,Yes
Http://opendatacommunities.org/id/metropolitan-district-council/leeds,Leeds City Council,31/10/2021,Resources and Housing,Strategic Housing Partnership & Support,Supplies and Services,Other Hired And Contracted Services,265,08/09/2021,2110-00515,0.00,5.04,R,Airpay 38691053-Amber Car,Yes
Http://opendatacommunities.org/id/metropolitan-district-council/leeds,Leeds City Council,31/10/2021,Children and Families,Social Care,Transport,Public Transport Expenses,310,07/09/2021,2110-00516,0.00,5.55,R,Airpay 38692830-Amber Car,Yes
Http://opendatacommunities.org/id/metropolitan-district-council/leeds,Leeds City Council,31/10/2021,Resources and Housing,Strategic Housing Partnership & Support,Supplies and Services,Other Hired And Contracted Services,265,09/09/2021,2110-00517,0.00,4.79,R,Airpay 38704288-Amber Car,Yes
Http://opendatacommunities.org/id/metropolitan-district-council/leeds,Leeds City Council,31/10/2021,Resources and Housing,Strategic Housing Partnership & Support,Supplies and Services,Other Hired And Contracted Services,265,09/09/2021,2110-00518,0.00,5.29,R,Airpay 38704436-Amber Car,Yes
Http://opendatacommunities.org/id/metropolitan-district-council/leeds,Leeds City Council,31/10/2021,Resources and Housing,Strategic Housing Partnership & Support,Supplies and Services,Other Hired And Contracted Services,265,10/09/2021,2110-00519,0.00,5.12,R,Airpay 38721327-Amber Car,Yes
Http://opendatacommunities.org/id/metropolitan-district-council/leeds,Leeds City Council,31/10/2021,Resources and Housing,Strategic Housing Partnership & Support,Supplies and Services,Other Hired And Contracted Services,265,10/09/2021,2110-00520,0.00,5.12,R,Airpay 38729212-Amber Car,Yes
Http://opendatacommunities.org/id/metropolitan-district-council/leeds,Leeds City Council,31/10/2021,Resources and Housing,Strategic Housing Partnership & Support,Supplies and Services,Other Hired And Contracted Services,265,13/09/2021,2110-00521,0.00,4.71,R,Airpay 38735340-Amber Car,Yes
Http://opendatacommunities.org/id/metropolitan-district-council/leeds,Leeds City Council,31/10/2021,Resources and Housing,Strategic Housing Partnership & Support,Supplies and Services,Other Hired And Contracted Services,265,13/09/2021,2110-00522,0.00,6.71,R,Airpay 38735413-Amber Car,Yes
Http://opendatacommunities.org/id/metropolitan-district-council/leeds,Leeds City Council,31/10/2021,Resources and Housing,Strategic Housing Partnership & Support,Supplies and Services,Other Hired And Contracted Services,265,14/09/2021,2110-00523,0.00,5.46,R,Airpay 38748857-Amber Car,Yes
Http://opendatacommunities.org/id/metropolitan-district-council/leeds,Leeds City Council,31/10/2021,Resources and Housing,Strategic Housing Partnership & Support,Supplies and Services,Other Hired And Contracted Services,265,14/09/2021,2110-00524,0.00,4.96,R,Airpay 38755090-Amber Car,Yes
Http://opendatacommunities.org/id/metropolitan-district-council/leeds,Leeds City Council,31/10/2021,Resources and Housing,Strategic Housing Partnership & Support,Supplies and Services,Other Hired And Contracted Services,265,15/09/2021,2110-00525,0.00,4.79,R,Airpay 38798091-Amber Car,Yes
Http://opendatacommunities.org/id/metropolitan-district-council/leeds,Leeds City Council,31/10/2021,Resources and Housing,Strategic Housing Partnership & Support,Supplies and Services,Other Hired And Contracted Services,265,15/09/2021,2110-00526,0.00,5.04,R,Airpay 38805597-Amber Car,Yes
Http://opendatacommunities.org/id/metropolitan-district-council/leeds,Leeds City Council,31/10/2021,Resources and Housing,Strategic Housing Partnership & Support,Supplies and Services,Other Hired And Contracted Services,265,16/09/2021,2110-00527,0.00,4.62,R,Airpay 38812756-Amber Car,Yes
Http://opendatacommunities.org/id/metropolitan-district-council/leeds,Leeds City Council,31/10/2021,Resources and Housing,Strategic Housing Partnership & Support,Supplies and Services,Other Hired And Contracted Services,265,16/09/2021,2110-00528,0.00,5.04,R,Airpay 38812850-Amber Car,Yes
Http://opendatacommunities.org/id/metropolitan-district-council/leeds,Leeds City Council,31/10/2021,Resources and Housing,Strategic Housing Partnership & Support,Supplies and Services,Other Hired And Contracted Services,265,17/09/2021,2110-00529,0.00,4.71,R,Airpay 38824599-Amber Car,Yes
Http://opendatacommunities.org/id/metropolitan-district-council/leeds,Leeds City Council,31/10/2021,Resources and Housing,Strategic Housing Partnership & Support,Transport,Public Transport Expenses,310,17/09/2021,2110-00530,0.00,4.87,R,Airpay 38824641-Amber Car,Yes
Http://opendatacommunities.org/id/metropolitan-district-council/leeds,Leeds City Council,31/10/2021,Resources and Housing,Strategic Housing Partnership & Support,Supplies and Services,Other Hired And Contracted Services,265,20/09/2021,2110-00531,0.00,5.21,R,Airpay 38839574-Amber Car,Yes
Http://opendatacommunities.org/id/metropolitan-district-council/leeds,Leeds City Council,31/10/2021,Children and Families,Social Care,Transport,Public Transport Expenses,310,22/09/2021,2110-00532,0.00,5.85,R,Airpay 38896057-Amber Car,Yes
Http://opendatacommunities.org/id/metropolitan-district-council/leeds,Leeds City Council,31/10/2021,Children and Families,Social Care,Transport,Public Transport Expenses,310,28/09/2021,2110-00533,0.00,6.35,R,Airpay 39008548-Amber Car,Yes
Http://opendatacommunities.org/id/metropolitan-district-council/leeds,Leeds City Council,31/10/2021,Adults and Health,Services For Adults Under 65 Mental/Dis,Agency Payments,Fees - Level 4,520,01/10/2021,2110-00534,0.00,175.00,R,AIT Mitra Limited,No
Http://opendatacommunities.org/id/metropolitan-district-council/leeds,Leeds City Council,31/10/2021,Adults and Health,Services For Adults Under 65 Mental/Dis,Agency Payments,Fees - Level 4,520,08/10/2021,2110-00535,0.00,175.00,R,AIT Mitra Limited,No
Http://opendatacommunities.org/id/metropolitan-district-council/leeds,Leeds City Council,31/10/2021,Adults and Health,Services For Adults Under 65 Mental/Dis,Agency Payments,Fees - Level 4,520,08/10/2021,2110-00536,0.00,175.00,R,AIT Mitra Limited,No
Http://opendatacommunities.org/id/metropolitan-district-council/leeds,Leeds City Council,31/10/2021,Adults and Health,Services For Adults Under 65 Mental/Dis,Agency Payments,Fees - Level 4,520,08/10/2021,2110-00537,0.00,175.00,R,AIT Mitra Limited,No
Http://opendatacommunities.org/id/metropolitan-district-council/leeds,Leeds City Council,31/10/2021,Adults and Health,Services For Adults Under 65 Mental/Dis,Agency Payments,Fees - Level 4,520,08/10/2021,2110-00538,0.00,175.00,R,AIT Mitra Limited,No
Http://opendatacommunities.org/id/metropolitan-district-council/leeds,Leeds City Council,31/10/2021,Adults and Health,Services For Adults Under 65 Mental/Dis,Agency Payments,Fees - Level 4,520,08/10/2021,2110-00539,0.00,175.00,R,AIT Mitra Limited,No
Http://opendatacommunities.org/id/metropolitan-district-council/leeds,Leeds City Council,31/10/2021,Adults and Health,Services For Adults Under 65 Mental/Dis,Agency Payments,Fees - Level 4,520,08/10/2021,2110-00540,0.00,175.00,R,AIT Mitra Limited,No
Http://opendatacommunities.org/id/metropolitan-district-council/leeds,Leeds City Council,31/10/2021,Adults and Health,Services For Adults Under 65 Mental/Dis,Agency Payments,Fees - Level 4,520,12/10/2021,2110-00541,0.00,175.00,R,AIT Mitra Limited,No
Http://opendatacommunities.org/id/metropolitan-district-council/leeds,Leeds City Council,31/10/2021,Adults and Health,Services For Adults Under 65 Mental/Dis,Agency Payments,Fees - Level 4,520,12/10/2021,2110-00542,0.00,175.00,R,AIT Mitra Limited,No
Http://opendatacommunities.org/id/metropolitan-district-council/leeds,Leeds City Council,31/10/2021,Adults and Health,Services For Adults Under 65 Mental/Dis,Agency Payments,Fees - Level 4,520,12/10/2021,2110-00543,0.00,175.00,R,AIT Mitra Limited,No
Http://opendatacommunities.org/id/metropolitan-district-council/leeds,Leeds City Council,31/10/2021,Adults and Health,Services For Adults Under 65 Mental/Dis,Agency Payments,Fees - Level 4,520,12/10/2021,2110-00544,0.00,175.00,R,AIT Mitra Limited,No
Http://opendatacommunities.org/id/metropolitan-district-council/leeds,Leeds City Council,31/10/2021,Adults and Health,Services For Adults Under 65 Mental/Dis,Agency Payments,Fees - Level 4,520,12/10/2021,2110-00545,0.00,175.00,R,AIT Mitra Limited,No
Http://opendatacommunities.org/id/metropolitan-district-council/leeds,Leeds City Council,31/10/2021,Adults and Health,Services For Adults Under 65 Mental/Dis,Agency Payments,Fees - Level 4,520,12/10/2021,2110-00546,0.00,175.00,R,AIT Mitra Limited,No
Http://opendatacommunities.org/id/metropolitan-district-council/leeds,Leeds City Council,31/10/2021,Adults and Health,Services For Adults Under 65 Mental/Dis,Agency Payments,Fees - Level 4,520,12/10/2021,2110-00547,0.00,175.00,R,AIT Mitra Limited,No
Http://opendatacommunities.org/id/metropolitan-district-council/leeds,Leeds City Council,31/10/2021,Adults and Health,Services For Adults Under 65 Mental/Dis,Agency Payments,Fees - Level 4,520,15/10/2021,2110-00548,0.00,175.00,R,AIT Mitra Limited,No
Http://opendatacommunities.org/id/metropolitan-district-council/leeds,Leeds City Council,31/10/2021,Adults and Health,Services For Adults Under 65 Mental/Dis,Agency Payments,Fees - Level 4,520,15/10/2021,2110-00549,0.00,175.00,R,AIT Mitra Limited,No
Http://opendatacommunities.org/id/metropolitan-district-council/leeds,Leeds City Council,31/10/2021,Adults and Health,Services For Adults Under 65 Mental/Dis,Agency Payments,Fees - Level 4,520,20/10/2021,2110-00550,0.00,175.00,R,AIT Mitra Limited,No
Http://opendatacommunities.org/id/metropolitan-district-council/leeds,Leeds City Council,31/10/2021,Adults and Health,Services For Adults Under 65 Mental/Dis,Agency Payments,Fees - Level 4,520,20/10/2021,2110-00551,0.00,175.00,R,AIT Mitra Limited,No
Http://opendatacommunities.org/id/metropolitan-district-council/leeds,Leeds City Council,31/10/2021,Adults and Health,Services For Adults Under 65 Mental/Dis,Agency Payments,Fees - Level 4,520,20/10/2021,2110-00552,0.00,175.00,R,AIT Mitra Limited,No
Http://opendatacommunities.org/id/metropolitan-district-council/leeds,Leeds City Council,31/10/2021,Adults and Health,Services For Adults Under 65 Mental/Dis,Agency Payments,Fees - Level 4,520,20/10/2021,2110-00553,0.00,175.00,R,AIT Mitra Limited,No
Http://opendatacommunities.org/id/metropolitan-district-council/leeds,Leeds City Council,31/10/2021,Adults and Health,Services For Adults Under 65 Mental/Dis,Agency Payments,Fees - Level 4,520,20/10/2021,2110-00554,0.00,175.00,R,AIT Mitra Limited,No
Http://opendatacommunities.org/id/metropolitan-district-council/leeds,Leeds City Council,31/10/2021,Adults and Health,Services For Adults Under 65 Mental/Dis,Agency Payments,Fees - Level 4,520,20/10/2021,2110-00555,0.00,175.00,R,AIT Mitra Limited,No
Http://opendatacommunities.org/id/metropolitan-district-council/leeds,Leeds City Council,31/10/2021,Adults and Health,Services For Adults Under 65 Mental/Dis,Agency Payments,Fees - Level 4,520,20/10/2021,2110-00556,0.00,175.00,R,AIT Mitra Limited,No
Http://opendatacommunities.org/id/metropolitan-district-council/leeds,Leeds City Council,31/10/2021,Adults and Health,Services For Adults Under 65 Mental/Dis,Agency Payments,Fees - Level 4,520,26/10/2021,2110-00557,0.00,175.00,R,AIT Mitra Limited,No
Http://opendatacommunities.org/id/metropolitan-district-council/leeds,Leeds City Council,31/10/2021,Adults and Health,Services For Adults Under 65 Mental/Dis,Agency Payments,Fees - Level 4,520,26/10/2021,2110-00558,0.00,175.00,R,AIT Mitra Limited,No
Http://opendatacommunities.org/id/metropolitan-district-council/leeds,Leeds City Council,31/10/2021,Adults and Health,Services For Adults Under 65 Mental/Dis,Agency Payments,Fees - Level 4,520,26/10/2021,2110-00559,0.00,175.00,R,AIT Mitra Limited,No
Http://opendatacommunities.org/id/metropolitan-district-council/leeds,Leeds City Council,31/10/2021,Adults and Health,Services For Adults Under 65 Mental/Dis,Agency Payments,Fees - Level 4,520,26/10/2021,2110-00560,0.00,175.00,R,AIT Mitra Limited,No
Http://opendatacommunities.org/id/metropolitan-district-council/leeds,Leeds City Council,31/10/2021,Adults and Health,Services For Adults Under 65 Mental/Dis,Agency Payments,Fees - Level 4,520,26/10/2021,2110-00561,0.00,175.00,R,AIT Mitra Limited,No
Http://opendatacommunities.org/id/metropolitan-district-council/leeds,Leeds City Council,31/10/2021,Adults and Health,Services For Adults Under 65 Mental/Dis,Agency Payments,Fees - Level 4,520,26/10/2021,2110-00562,0.00,175.00,R,AIT Mitra Limited,No
Http://opendatacommunities.org/id/metropolitan-district-council/leeds,Leeds City Council,31/10/2021,Adults and Health,Services For Adults Under 65 Mental/Dis,Agency Payments,Fees - Level 4,520,28/10/2021,2110-00563,0.00,175.00,R,AIT Mitra Limited,No
Http://opendatacommunities.org/id/metropolitan-district-council/leeds,Leeds City Council,31/10/2021,Adults and Health,Services For Adults Under 65 Mental/Dis,Agency Payments,Fees - Level 4,520,28/10/2021,2110-00564,0.00,175.00,R,AIT Mitra Limited,No
Http://opendatacommunities.org/id/metropolitan-district-council/leeds,Leeds City Council,31/10/2021,Adults and Health,Services For Adults Under 65 Mental/Dis,Agency Payments,Fees - Level 4,520,28/10/2021,2110-00565,0.00,175.00,R,AIT Mitra Limited,No
Http://opendatacommunities.org/id/metropolitan-district-council/leeds,Leeds City Council,31/10/2021,Adults and Health,Services For Adults Under 65 Mental/Dis,Agency Payments,Fees - Level 4,520,28/10/2021,2110-00566,0.00,175.00,R,AIT Mitra Limited,No
Http://opendatacommunities.org/id/metropolitan-district-council/leeds,Leeds City Council as Accountable Body,31/10/2021,Social Services Pooled Budgets,Jcs For People With Learning Disabilitie,Agency Payments,Residential,580,13/10/2021,2110-00567,0.00,6707.12,R,AITCH care homes,No
Http://opendatacommunities.org/id/metropolitan-district-council/leeds,Leeds City Council,31/10/2021,Children and Families,Social Care,Appropriations,Leaving Care Allowances,634,19/10/2021,2110-00568,0.00,100.00,R,REDACTED PERSONAL DATA,No
Http://opendatacommunities.org/id/metropolitan-district-council/leeds,Leeds City Council,31/10/2021,Resources and Housing,Leeds Building Services,Supplies and Services,STORES - CENTRAL AND OTHER DEPOTS,005,01/10/2021,2110-00569,0.00,22.60,R,AJM FIXINGS & POWER TOOLS LTD,No
Http://opendatacommunities.org/id/metropolitan-district-council/leeds,Leeds City Council,31/10/2021,Resources and Housing,Leeds Building Services,Supplies and Services,Operational Furniture And Equipment,203,01/10/2021,2110-00570,0.00,100.65,R,AJM FIXINGS & POWER TOOLS LTD,No
Http://opendatacommunities.org/id/metropolitan-district-council/leeds,Leeds City Council,31/10/2021,Resources and Housing,Leeds Building Services,Supplies and Services,Operational Furniture And Equipment,203,08/10/2021,2110-00571,0.00,548.50,R,AJM FIXINGS & POWER TOOLS LTD,No
Http://opendatacommunities.org/id/metropolitan-district-council/leeds,Leeds City Council,31/10/2021,Resources and Housing,Leeds Building Services,Supplies and Services,Operational Furniture And Equipment,203,08/10/2021,2110-00572,0.00,110.00,R,AJM FIXINGS & POWER TOOLS LTD,No
Http://opendatacommunities.org/id/metropolitan-district-council/leeds,Leeds City Council,31/10/2021,Resources and Housing,Leeds Building Services,Supplies and Services,Operational Furniture And Equipment,203,08/10/2021,2110-00573,0.00,220.00,R,AJM FIXINGS & POWER TOOLS LTD,No
Http://opendatacommunities.org/id/metropolitan-district-council/leeds,Leeds City Council,31/10/2021,Resources and Housing,Leeds Building Services,Supplies and Services,Operational Furniture And Equipment,203,08/10/2021,2110-00574,0.00,685.00,R,AJM FIXINGS & POWER TOOLS LTD,No
Http://opendatacommunities.org/id/metropolitan-district-council/leeds,Leeds City Council,31/10/2021,Resources and Housing,Leeds Building Services,Supplies and Services,STORES - CENTRAL AND OTHER DEPOTS,005,18/10/2021,2110-00575,0.00,229.25,R,AJM FIXINGS & POWER TOOLS LTD,No
Http://opendatacommunities.org/id/metropolitan-district-council/leeds,Leeds City Council,31/10/2021,Resources and Housing,Leeds Building Services,Supplies and Services,Operational Furniture And Equipment,203,25/10/2021,2110-00576,0.00,145.75,R,AJM FIXINGS & POWER TOOLS LTD,No
Http://opendatacommunities.org/id/metropolitan-district-council/leeds,Leeds City Council,31/10/2021,Resources and Housing,Leeds Building Services,Supplies and Services,Operational Furniture And Equipment,203,25/10/2021,2110-00577,0.00,161.46,R,AJM FIXINGS & POWER TOOLS LTD,No
Http://opendatacommunities.org/id/metropolitan-district-council/leeds,Leeds City Council,31/10/2021,Resources and Housing,Leeds Building Services,Supplies and Services,Operational Furniture And Equipment,203,25/10/2021,2110-00578,0.00,137.50,R,AJM FIXINGS & POWER TOOLS LTD,No
Http://opendatacommunities.org/id/metropolitan-district-council/leeds,Leeds City Council,31/10/2021,Resources and Housing,Leeds Building Services,Supplies and Services,STORES - CENTRAL AND OTHER DEPOTS,005,25/10/2021,2110-00579,0.00,43.80,R,AJM FIXINGS & POWER TOOLS LTD,No
Http://opendatacommunities.org/id/metropolitan-district-council/leeds,Leeds City Council,31/10/2021,Resources and Housing,Leeds Building Services,Supplies and Services,STORES - CENTRAL AND OTHER DEPOTS,005,25/10/2021,2110-00580,0.00,271.00,R,AJM FIXINGS & POWER TOOLS LTD,No
Http://opendatacommunities.org/id/metropolitan-district-council/leeds,Leeds City Council,31/10/2021,Resources and Housing,Leeds Building Services,Supplies and Services,Operational Furniture And Equipment,203,27/10/2021,2110-00581,0.00,98.50,R,AJM FIXINGS & POWER TOOLS LTD,No
Http://opendatacommunities.org/id/metropolitan-district-council/leeds,Leeds City Council,31/10/2021,Resources and Housing,Leeds Building Services,Supplies and Services,Operational Furniture And Equipment,203,27/10/2021,2110-00582,0.00,546.00,R,AJM FIXINGS & POWER TOOLS LTD,No
Http://opendatacommunities.org/id/metropolitan-district-council/leeds,Leeds City Council,31/10/2021,Resources and Housing,Leeds Building Services,Supplies and Services,Operational Materials,205,27/10/2021,2110-00583,0.00,546.00,R,AJM FIXINGS & POWER TOOLS LTD,No
Http://opendatacommunities.org/id/metropolitan-district-council/leeds,Leeds City Council,31/10/2021,Resources and Housing,Leeds Building Services,Supplies and Services,Operational Furniture And Equipment,203,29/10/2021,2110-00584,0.00,92.56,R,AJM FIXINGS & POWER TOOLS LTD,No
Http://opendatacommunities.org/id/metropolitan-district-council/leeds,Leeds City Council,31/10/2021,Resources and Housing,Leeds Building Services,Supplies and Services,Operational Furniture And Equipment,203,29/10/2021,2110-00585,0.00,415.00,R,AJM FIXINGS & POWER TOOLS LTD,No
Http://opendatacommunities.org/id/metropolitan-district-council/leeds,Leeds City Council,31/10/2021,Resources and Housing,Leeds Building Services,Supplies and Services,Operational Furniture And Equipment,203,29/10/2021,2110-00586,0.00,146.26,R,AJM FIXINGS & POWER TOOLS LTD,No
Http://opendatacommunities.org/id/metropolitan-district-council/leeds,Leeds City Council,31/10/2021,City Development,Recreation,Supplies and Services,Office Consumables,210,17/09/2021,2110-00587,0.00,298.80,R,Ajproducts.Co.Uk,Yes
Http://opendatacommunities.org/id/metropolitan-district-council/leeds,Leeds City Council,31/10/2021,Communities and Environment,Benefits Welfare and Poverty,Supplies and Services,Grant Related Expenditure,298,29/10/2021,2110-00588,0.00,500.00,R,REDACTED PERSONAL DATA,No
Http://opendatacommunities.org/id/metropolitan-district-council/leeds,Leeds City Council,31/10/2021,Resources and Housing,Strategic Housing Partnerships,Capital,CONSTRUCTION,3,18/10/2021,2110-00589,0.00,12000.00,C,AKR Construction Ltd,No
Http://opendatacommunities.org/id/metropolitan-district-council/leeds,Leeds City Council,31/10/2021,Resources and Housing,Strategic Housing Partnerships,Capital,CONSTRUCTION,3,22/10/2021,2110-00590,0.00,10000.00,C,AKR Construction Ltd,No
Http://opendatacommunities.org/id/metropolitan-district-council/leeds,Leeds City Council,31/10/2021,Resources and Housing,Commercial Services,Premises,Plant and Machinery,102,01/10/2021,2110-00591,0.00,520.00,R,Akua Uk Ltd,No
Http://opendatacommunities.org/id/metropolitan-district-council/leeds,Leeds City Council,31/10/2021,Resources and Housing,Commercial Services,Premises,Plant and Machinery,102,01/10/2021,2110-00592,0.00,438.75,R,Akua Uk Ltd,No
Http://opendatacommunities.org/id/metropolitan-district-council/leeds,Leeds City Council,31/10/2021,Adults and Health,Services For Older People - 65 And Over,Agency Payments,Payments To Voluntary Organisations,561,01/10/2021,2110-00593,0.00,2700.00,R,Al Khidmat Centre,No
Http://opendatacommunities.org/id/metropolitan-district-council/leeds,Leeds City Council,31/10/2021,Communities and Environment,Benefits Welfare and Poverty,Supplies and Services,Grant Related Expenditure,298,20/10/2021,2110-00594,0.00,500.00,R,REDACTED PERSONAL DATA,No
Http://opendatacommunities.org/id/metropolitan-district-council/leeds,Leeds City Council,31/10/2021,Children and Families,Social Care,Appropriations,Leaving Care Allowances,634,29/09/2021,2110-00595,0.00,14.91,R,Aldi,Yes
Http://opendatacommunities.org/id/metropolitan-district-council/leeds,Leeds City Council,31/10/2021,Children and Families,Social Care,Supplies and Services,Food & Drink,231,14/09/2021,2110-00596,0.00,43.53,R,Aldi 40 779,Yes
Http://opendatacommunities.org/id/metropolitan-district-council/leeds,Leeds City Council,31/10/2021,Children and Families,Social Care,Supplies and Services,Food & Drink,231,15/09/2021,2110-00597,0.00,19.12,R,Aldi 40 779,Yes
Http://opendatacommunities.org/id/metropolitan-district-council/leeds,Leeds City Council,31/10/2021,Children and Families,Social Care,Supplies and Services,Food & Drink,231,28/09/2021,2110-00598,0.00,77.03,R,Aldi 40 779,Yes
Http://opendatacommunities.org/id/metropolitan-district-council/leeds,Leeds City Council,31/10/2021,Children and Families,Social Care,Supplies and Services,Food & Drink,231,28/09/2021,2110-00599,0.00,11.64,R,Aldi 49 779,Yes
Http://opendatacommunities.org/id/metropolitan-district-council/leeds,Leeds City Council,31/10/2021,Children and Families,Social Care,Appropriations,Leaving Care Allowances,634,06/09/2021,2110-00600,0.00,13.43,R,Aldi 71 779,Yes
Http://opendatacommunities.org/id/metropolitan-district-council/leeds,Leeds City Council,31/10/2021,Children and Families,Social Care,Supplies and Services,Teaching Materials,202,08/09/2021,2110-00601,0.00,13.58,R,Aldi 71 779,Yes
Http://opendatacommunities.org/id/metropolitan-district-council/leeds,Leeds City Council,31/10/2021,Children and Families,Social Care,Agency Payments,Section 17,551,20/09/2021,2110-00602,0.00,27.60,R,Aldi 71 779,Yes
Http://opendatacommunities.org/id/metropolitan-district-council/leeds,Leeds City Council,31/10/2021,Children and Families,Social Care,Appropriations,Leaving Care Allowances,634,13/09/2021,2110-00603,0.00,26.21,R,Aldi 85 779,Yes
Http://opendatacommunities.org/id/metropolitan-district-council/leeds,Leeds City Council,31/10/2021,Children and Families,Social Care,Premises,Cleaning Maintenance & Toiletries,127,29/09/2021,2110-00604,0.00,9.36,R,Aldi 89 779,Yes
Http://opendatacommunities.org/id/metropolitan-district-council/leeds,Leeds City Council,31/10/2021,Communities and Environment,Benefits Welfare and Poverty,Supplies and Services,Grant Related Expenditure,298,18/10/2021,2110-00605,0.00,500.00,R,REDACTED PERSONAL DATA,No
Http://opendatacommunities.org/id/metropolitan-district-council/leeds,Leeds City Council,31/10/2021,Communities and Environment,Benefits Welfare and Poverty,Supplies and Services,Grant Related Expenditure,298,05/10/2021,2110-00606,0.00,500.00,R,REDACTED PERSONAL DATA,No
Http://opendatacommunities.org/id/metropolitan-district-council/leeds,Leeds City Council,31/10/2021,Communities and Environment,Customer Access,Supplies and Services,Bought In Professional Services,277,13/10/2021,2110-00607,0.00,17.40,R,Alena Zueva,No
Http://opendatacommunities.org/id/metropolitan-district-council/leeds,Leeds City Council,31/10/2021,Communities and Environment,Benefits Welfare and Poverty,Supplies and Services,Grant Related Expenditure,298,27/10/2021,2110-00608,0.00,500.00,R,REDACTED PERSONAL DATA,No
Http://opendatacommunities.org/id/metropolitan-district-council/leeds,Leeds City Council,31/10/2021,Communities and Environment,Benefits Welfare and Poverty,Supplies and Services,Grant Related Expenditure,298,06/10/2021,2110-00609,0.00,500.00,R,REDACTED PERSONAL DATA,No
Http://opendatacommunities.org/id/metropolitan-district-council/leeds,Leeds City Council,31/10/2021,Communities and Environment,Benefits Welfare and Poverty,Supplies and Services,Grant Related Expenditure,298,13/10/2021,2110-00610,0.00,500.00,R,REDACTED PERSONAL DATA,No
Http://opendatacommunities.org/id/metropolitan-district-council/leeds,Leeds City Council,31/10/2021,Communities and Environment,Parks and Countryside,Supplies and Services,Resaleable Materials,204,30/09/2021,2110-00611,0.00,134.40,R,Alex Clark Art Ltd,Yes
Http://opendatacommunities.org/id/metropolitan-district-council/leeds,Leeds City Council,31/10/2021,Children and Families,Social Care,Supplies and Services,General Amenity For Clients/Residents,285,22/10/2021,2110-00612,0.00,37.30,R,REDACTED PERSONAL DATA,No
Http://opendatacommunities.org/id/metropolitan-district-council/leeds,Leeds City Council,31/10/2021,Children and Families,Social Care,Transport,Public Transport Expenses,310,22/10/2021,2110-00613,0.00,85.28,R,REDACTED PERSONAL DATA,No
Http://opendatacommunities.org/id/metropolitan-district-council/leeds,Leeds City Council,31/10/2021,Communities and Environment,Benefits Welfare and Poverty,Supplies and Services,Grant Related Expenditure,298,12/10/2021,2110-00614,0.00,500.00,R,REDACTED PERSONAL DATA,No
Http://opendatacommunities.org/id/metropolitan-district-council/leeds,Leeds City Council,31/10/2021,Children and Families,Social Care,Agency Payments,Section 17,551,29/10/2021,2110-00615,0.00,21.00,R,REDACTED PERSONAL DATA,No
Http://opendatacommunities.org/id/metropolitan-district-council/leeds,Leeds City Council,31/10/2021,Children and Families,Social Care,Internal Recharges,Legal Disbursements,411,27/10/2021,2110-00616,0.00,2553.00,R,Alex Taylor,No
Http://opendatacommunities.org/id/metropolitan-district-council/leeds,Leeds City Council,31/10/2021,Resources and Housing,Commercial Services,Supplies and Services,Other Hired And Contracted Services,265,01/10/2021,2110-00617,0.00,150.00,R,ALEX WAGG,No
Http://opendatacommunities.org/id/metropolitan-district-council/leeds,Leeds City Council,31/10/2021,Resources and Housing,Commercial Services,Supplies and Services,Other Hired And Contracted Services,265,06/10/2021,2110-00618,0.00,60.00,R,ALEX WAGG,No
Http://opendatacommunities.org/id/metropolitan-district-council/leeds,Leeds City Council,31/10/2021,Resources and Housing,Commercial Services,Supplies and Services,Other Hired And Contracted Services,265,06/10/2021,2110-00619,0.00,60.00,R,ALEX WAGG,No
Http://opendatacommunities.org/id/metropolitan-district-council/leeds,Leeds City Council,31/10/2021,Resources and Housing,Commercial Services,Supplies and Services,Other Hired And Contracted Services,265,06/10/2021,2110-00620,0.00,70.00,R,ALEX WAGG,No
Http://opendatacommunities.org/id/metropolitan-district-council/leeds,Leeds City Council,31/10/2021,Resources and Housing,Commercial Services,Supplies and Services,Other Hired And Contracted Services,265,06/10/2021,2110-00621,0.00,70.00,R,ALEX WAGG,No
Http://opendatacommunities.org/id/metropolitan-district-council/leeds,Leeds City Council,31/10/2021,Resources and Housing,Commercial Services,Supplies and Services,Other Hired And Contracted Services,265,06/10/2021,2110-00622,0.00,70.00,R,ALEX WAGG,No
Http://opendatacommunities.org/id/metropolitan-district-council/leeds,Leeds City Council,31/10/2021,Resources and Housing,Commercial Services,Supplies and Services,Other Hired And Contracted Services,265,08/10/2021,2110-00623,0.00,70.00,R,ALEX WAGG,No
Http://opendatacommunities.org/id/metropolitan-district-council/leeds,Leeds City Council,31/10/2021,Resources and Housing,Commercial Services,Supplies and Services,Other Hired And Contracted Services,265,08/10/2021,2110-00624,0.00,70.00,R,ALEX WAGG,No
Http://opendatacommunities.org/id/metropolitan-district-council/leeds,Leeds City Council,31/10/2021,Resources and Housing,Commercial Services,Supplies and Services,Other Hired And Contracted Services,265,08/10/2021,2110-00625,0.00,70.00,R,ALEX WAGG,No
Http://opendatacommunities.org/id/metropolitan-district-council/leeds,Leeds City Council,31/10/2021,Resources and Housing,Commercial Services,Supplies and Services,Other Hired And Contracted Services,265,08/10/2021,2110-00626,0.00,70.00,R,ALEX WAGG,No
Http://opendatacommunities.org/id/metropolitan-district-council/leeds,Leeds City Council,31/10/2021,Resources and Housing,Commercial Services,Supplies and Services,Other Hired And Contracted Services,265,08/10/2021,2110-00627,0.00,70.00,R,ALEX WAGG,No
Http://opendatacommunities.org/id/metropolitan-district-council/leeds,Leeds City Council,31/10/2021,Resources and Housing,Commercial Services,Supplies and Services,Other Hired And Contracted Services,265,08/10/2021,2110-00628,0.00,60.00,R,ALEX WAGG,No
Http://opendatacommunities.org/id/metropolitan-district-council/leeds,Leeds City Council,31/10/2021,Resources and Housing,Commercial Services,Supplies and Services,Other Hired And Contracted Services,265,08/10/2021,2110-00629,0.00,257.00,R,ALEX WAGG,No
Http://opendatacommunities.org/id/metropolitan-district-council/leeds,Leeds City Council,31/10/2021,Resources and Housing,Commercial Services,Supplies and Services,Other Hired And Contracted Services,265,15/10/2021,2110-00630,0.00,70.00,R,ALEX WAGG,No
Http://opendatacommunities.org/id/metropolitan-district-council/leeds,Leeds City Council,31/10/2021,Resources and Housing,Commercial Services,Supplies and Services,Other Hired And Contracted Services,265,15/10/2021,2110-00631,0.00,70.00,R,ALEX WAGG,No
Http://opendatacommunities.org/id/metropolitan-district-council/leeds,Leeds City Council,31/10/2021,Resources and Housing,Commercial Services,Supplies and Services,Other Hired And Contracted Services,265,15/10/2021,2110-00632,0.00,70.00,R,ALEX WAGG,No
Http://opendatacommunities.org/id/metropolitan-district-council/leeds,Leeds City Council,31/10/2021,Resources and Housing,Commercial Services,Supplies and Services,Other Hired And Contracted Services,265,15/10/2021,2110-00633,0.00,70.00,R,ALEX WAGG,No
Http://opendatacommunities.org/id/metropolitan-district-council/leeds,Leeds City Council,31/10/2021,Resources and Housing,Commercial Services,Supplies and Services,Other Hired And Contracted Services,265,15/10/2021,2110-00634,0.00,70.00,R,ALEX WAGG,No
Http://opendatacommunities.org/id/metropolitan-district-council/leeds,Leeds City Council,31/10/2021,Resources and Housing,Commercial Services,Supplies and Services,Other Hired And Contracted Services,265,20/10/2021,2110-00635,0.00,80.00,R,ALEX WAGG,No
Http://opendatacommunities.org/id/metropolitan-district-council/leeds,Leeds City Council,31/10/2021,Resources and Housing,Commercial Services,Supplies and Services,Other Hired And Contracted Services,265,22/10/2021,2110-00636,0.00,70.00,R,ALEX WAGG,No
Http://opendatacommunities.org/id/metropolitan-district-council/leeds,Leeds City Council,31/10/2021,Resources and Housing,Commercial Services,Supplies and Services,Other Hired And Contracted Services,265,22/10/2021,2110-00637,0.00,70.00,R,ALEX WAGG,No
Http://opendatacommunities.org/id/metropolitan-district-council/leeds,Leeds City Council,31/10/2021,Resources and Housing,Commercial Services,Supplies and Services,Other Hired And Contracted Services,265,22/10/2021,2110-00638,0.00,70.00,R,ALEX WAGG,No
Http://opendatacommunities.org/id/metropolitan-district-council/leeds,Leeds City Council,31/10/2021,Resources and Housing,Commercial Services,Supplies and Services,Other Hired And Contracted Services,265,22/10/2021,2110-00639,0.00,70.00,R,ALEX WAGG,No
Http://opendatacommunities.org/id/metropolitan-district-council/leeds,Leeds City Council,31/10/2021,Resources and Housing,Commercial Services,Supplies and Services,Other Hired And Contracted Services,265,22/10/2021,2110-00640,0.00,70.00,R,ALEX WAGG,No
Http://opendatacommunities.org/id/metropolitan-district-council/leeds,Leeds City Council,31/10/2021,Resources and Housing,Commercial Services,Supplies and Services,Other Hired And Contracted Services,265,22/10/2021,2110-00641,0.00,120.00,R,ALEX WAGG,No
Http://opendatacommunities.org/id/metropolitan-district-council/leeds,Leeds City Council,31/10/2021,Resources and Housing,Commercial Services,Supplies and Services,Other Hired And Contracted Services,265,22/10/2021,2110-00642,0.00,60.00,R,ALEX WAGG,No
Http://opendatacommunities.org/id/metropolitan-district-council/leeds,Leeds City Council,31/10/2021,Resources and Housing,Commercial Services,Supplies and Services,Other Hired And Contracted Services,265,22/10/2021,2110-00643,0.00,70.00,R,ALEX WAGG,No
Http://opendatacommunities.org/id/metropolitan-district-council/leeds,Leeds City Council,31/10/2021,Resources and Housing,Commercial Services,Supplies and Services,Other Hired And Contracted Services,265,22/10/2021,2110-00644,0.00,70.00,R,ALEX WAGG,No
Http://opendatacommunities.org/id/metropolitan-district-council/leeds,Leeds City Council,31/10/2021,Resources and Housing,Commercial Services,Supplies and Services,Other Hired And Contracted Services,265,29/10/2021,2110-00645,0.00,70.00,R,ALEX WAGG,No
Http://opendatacommunities.org/id/metropolitan-district-council/leeds,Leeds City Council,31/10/2021,Resources and Housing,Commercial Services,Supplies and Services,Other Hired And Contracted Services,265,29/10/2021,2110-00646,0.00,70.00,R,ALEX WAGG,No
Http://opendatacommunities.org/id/metropolitan-district-council/leeds,Leeds City Council,31/10/2021,Resources and Housing,Commercial Services,Supplies and Services,Other Hired And Contracted Services,265,29/10/2021,2110-00647,0.00,70.00,R,ALEX WAGG,No
Http://opendatacommunities.org/id/metropolitan-district-council/leeds,Leeds City Council,31/10/2021,Resources and Housing,Commercial Services,Supplies and Services,Other Hired And Contracted Services,265,29/10/2021,2110-00648,0.00,70.00,R,ALEX WAGG,No
Http://opendatacommunities.org/id/metropolitan-district-council/leeds,Leeds City Council,31/10/2021,Resources and Housing,Commercial Services,Supplies and Services,Other Hired And Contracted Services,265,29/10/2021,2110-00649,0.00,388.00,R,ALEX WAGG,No
Http://opendatacommunities.org/id/metropolitan-district-council/leeds,Leeds City Council,31/10/2021,Resources and Housing,Commercial Services,Supplies and Services,Other Hired And Contracted Services,265,29/10/2021,2110-00650,0.00,60.00,R,ALEX WAGG,No
Http://opendatacommunities.org/id/metropolitan-district-council/leeds,Leeds City Council,31/10/2021,Resources and Housing,Commercial Services,Supplies and Services,Other Hired And Contracted Services,265,29/10/2021,2110-00651,0.00,70.00,R,ALEX WAGG,No
Http://opendatacommunities.org/id/metropolitan-district-council/leeds,Leeds City Council,31/10/2021,Communities and Environment,Benefits Welfare and Poverty,Supplies and Services,Grant Related Expenditure,290,25/10/2021,2110-00652,0.00,500.00,R,REDACTED PERSONAL DATA,No
Http://opendatacommunities.org/id/metropolitan-district-council/leeds,Leeds City Council,31/10/2021,Adults and Health,Services For Older People - 65 And Over,Agency Payments,Residential Care Dementia,571,13/10/2021,2110-00653,0.00,16384.24,R,ALEXANDER RESIDENTIAL HOME,No
Http://opendatacommunities.org/id/metropolitan-district-council/leeds,Leeds City Council,31/10/2021,Adults and Health,Services For Older People - 65 And Over,Agency Payments,Residential,580,13/10/2021,2110-00654,0.00,14833.96,R,ALEXANDER RESIDENTIAL HOME,No
Http://opendatacommunities.org/id/metropolitan-district-council/leeds,Leeds City Council,31/10/2021,Adults and Health,Services For Older People Under 65 P/Dis,Agency Payments,Residential Care Dementia,571,13/10/2021,2110-00655,0.00,22389.66,R,ALEXANDER RESIDENTIAL HOME,No
Http://opendatacommunities.org/id/metropolitan-district-council/leeds,Leeds City Council,31/10/2021,Communities and Environment,Benefits Welfare and Poverty,Supplies and Services,Grant Related Expenditure,298,15/10/2021,2110-00656,0.00,500.00,R,REDACTED PERSONAL DATA,No
Http://opendatacommunities.org/id/metropolitan-district-council/leeds,Leeds City Council,31/10/2021,Communities and Environment,Customer Access,Supplies and Services,Bought In Professional Services,277,06/10/2021,2110-00657,0.00,48.00,R,Alexandra Costenco,No
Http://opendatacommunities.org/id/metropolitan-district-council/leeds,Leeds City Council,31/10/2021,Communities and Environment,Customer Access,Supplies and Services,Bought In Professional Services,277,13/10/2021,2110-00658,0.00,36.00,R,Alexandra Costenco,No
Http://opendatacommunities.org/id/metropolitan-district-council/leeds,Leeds City Council,31/10/2021,Communities and Environment,Customer Access,Supplies and Services,Bought In Professional Services,277,13/10/2021,2110-00659,0.00,40.50,R,Alexandra Costenco,No
Http://opendatacommunities.org/id/metropolitan-district-council/leeds,Leeds City Council,31/10/2021,Communities and Environment,Customer Access,Supplies and Services,Bought In Professional Services,277,20/10/2021,2110-00660,0.00,18.00,R,Alexandra Costenco,No
Http://opendatacommunities.org/id/metropolitan-district-council/leeds,Leeds City Council,31/10/2021,Communities and Environment,Customer Access,Supplies and Services,Bought In Professional Services,277,20/10/2021,2110-00661,0.00,63.00,R,Alexandra Costenco,No
Http://opendatacommunities.org/id/metropolitan-district-council/leeds,Leeds City Council,31/10/2021,Communities and Environment,Customer Access,Supplies and Services,Bought In Professional Services,277,20/10/2021,2110-00662,0.00,36.00,R,Alexandra Costenco,No
Http://opendatacommunities.org/id/metropolitan-district-council/leeds,Leeds City Council,31/10/2021,Adults and Health,Services For Older People - 65 And Over,Agency Payments,Residential Care Dementia,571,13/10/2021,2110-00663,0.00,5646.96,R,ALEXANDRA COURT,No
Http://opendatacommunities.org/id/metropolitan-district-council/leeds,Leeds City Council,31/10/2021,Adults and Health,Services For Older People - 65 And Over,Agency Payments,Residential,580,13/10/2021,2110-00664,0.00,15369.35,R,ALEXANDRA COURT,No
Http://opendatacommunities.org/id/metropolitan-district-council/leeds,Leeds City Council,31/10/2021,Communities and Environment,Benefits Welfare and Poverty,Supplies and Services,Grant Related Expenditure,298,04/10/2021,2110-00665,0.00,500.00,R,REDACTED PERSONAL DATA,No
Http://opendatacommunities.org/id/metropolitan-district-council/leeds,Leeds City Council,31/10/2021,Children and Families,Social Care,Agency Payments,Services Rendered By Other Organisations,511,01/10/2021,2110-00666,0.00,1304.55,R,REDACTED PERSONAL DATA,No
Http://opendatacommunities.org/id/metropolitan-district-council/leeds,Leeds City Council,31/10/2021,Children and Families,Social Care,Agency Payments,Services Rendered By Other Organisations,511,06/10/2021,2110-00667,0.00,174.20,R,REDACTED PERSONAL DATA,No
Http://opendatacommunities.org/id/metropolitan-district-council/leeds,Leeds City Council,31/10/2021,Communities and Environment,Benefits Welfare and Poverty,Supplies and Services,Grant Related Expenditure,290,12/10/2021,2110-00668,0.00,500.00,R,REDACTED PERSONAL DATA,No
Http://opendatacommunities.org/id/metropolitan-district-council/leeds,Leeds City Council,31/10/2021,Communities and Environment,Benefits Welfare and Poverty,Supplies and Services,Grant Related Expenditure,298,15/10/2021,2110-00669,0.00,500.00,R,REDACTED PERSONAL DATA,No
Http://opendatacommunities.org/id/metropolitan-district-council/leeds,Leeds City Council,31/10/2021,Children and Families,Social Care,Supplies and Services,Clothing & Uniforms,241,13/09/2021,2110-00670,0.00,80.85,R,Alexandra Website,Yes
Http://opendatacommunities.org/id/metropolitan-district-council/leeds,Leeds City Council,31/10/2021,Adults and Health,Services For Older People - 65 And Over,Supplies and Services,Clothing & Uniforms,241,13/09/2021,2110-00671,0.00,28.78,R,Alexandra Website,Yes
Http://opendatacommunities.org/id/metropolitan-district-council/leeds,Leeds City Council,31/10/2021,Adults and Health,Services For Older People - 65 And Over,Supplies and Services,Clothing & Uniforms,241,16/09/2021,2110-00672,0.00,-26.98,R,Alexandra Website,Yes
Http://opendatacommunities.org/id/metropolitan-district-council/leeds,Leeds City Council,31/10/2021,Adults and Health,Services For Older People - 65 And Over,Supplies and Services,Clothing & Uniforms,241,16/09/2021,2110-00673,0.00,-26.98,R,Alexandra Website,Yes
Http://opendatacommunities.org/id/metropolitan-district-council/leeds,Leeds City Council,31/10/2021,Adults and Health,Services For Older People - 65 And Over,Supplies and Services,Clothing & Uniforms,241,16/09/2021,2110-00674,0.00,-26.98,R,Alexandra Website,Yes
Http://opendatacommunities.org/id/metropolitan-district-council/leeds,Leeds City Council,31/10/2021,Adults and Health,Services For Older People - 65 And Over,Supplies and Services,Clothing & Uniforms,241,30/09/2021,2110-00675,0.00,28.14,R,Alexandra Website,Yes
Http://opendatacommunities.org/id/metropolitan-district-council/leeds,Leeds City Council,31/10/2021,Communities and Environment,Benefits Welfare and Poverty,Supplies and Services,Grant Related Expenditure,298,14/10/2021,2110-00676,0.00,500.00,R,REDACTED PERSONAL DATA,No
Http://opendatacommunities.org/id/metropolitan-district-council/leeds,Leeds City Council,31/10/2021,Resources and Housing,Leeds Building Services,Supplies and Services,Other Hired And Contracted Services,265,01/10/2021,2110-00677,0.00,11577.82,R,Alfred Bagnall & Sons (Leeds) Ltd,No
Http://opendatacommunities.org/id/metropolitan-district-council/leeds,Leeds City Council,31/10/2021,Resources and Housing,Leeds Building Services,Supplies and Services,Other Hired And Contracted Services,265,01/10/2021,2110-00678,0.00,12569.46,R,Alfred Bagnall & Sons (Leeds) Ltd,No
Http://opendatacommunities.org/id/metropolitan-district-council/leeds,Leeds City Council,31/10/2021,Resources and Housing,Leeds Building Services,Supplies and Services,Other Hired And Contracted Services,265,06/10/2021,2110-00679,0.00,490.00,R,Alfred Bagnall & Sons (Leeds) Ltd,No
Http://opendatacommunities.org/id/metropolitan-district-council/leeds,Leeds City Council,31/10/2021,Resources and Housing,Leeds Building Services,Supplies and Services,Other Hired And Contracted Services,265,14/10/2021,2110-00680,0.00,950.00,R,Alfred Bagnall & Sons (Leeds) Ltd,No
Http://opendatacommunities.org/id/metropolitan-district-council/leeds,Leeds City Council,31/10/2021,City Development,Libraries Arts & Heritage,Supplies and Services,Other Hired And Contracted Services,265,20/10/2021,2110-00681,0.00,2780.00,R,Alfred Bagnall & Sons (Leeds) Ltd,No
Http://opendatacommunities.org/id/metropolitan-district-council/leeds,Leeds City Council,31/10/2021,Adults and Health,Public Health,Premises,Maintenance Of Buildings,101,20/10/2021,2110-00682,0.00,780.00,R,Alfred Bagnall & Sons (Leeds) Ltd,No
Http://opendatacommunities.org/id/metropolitan-district-council/leeds,Leeds City Council,31/10/2021,Resources and Housing,Leeds Building Services,Supplies and Services,Other Hired And Contracted Services,265,22/10/2021,2110-00683,0.00,1366.30,R,Alfred Bagnall & Sons (Leeds) Ltd,No
Http://opendatacommunities.org/id/metropolitan-district-council/leeds,Leeds City Council,31/10/2021,Resources and Housing,Leeds Building Services,Supplies and Services,Other Hired And Contracted Services,265,22/10/2021,2110-00684,0.00,790.00,R,Alfred Bagnall & Sons (Leeds) Ltd,No
Http://opendatacommunities.org/id/metropolitan-district-council/leeds,Leeds City Council,31/10/2021,Resources and Housing,Leeds Building Services,Supplies and Services,Other Hired And Contracted Services,265,22/10/2021,2110-00685,0.00,1300.00,R,Alfred Bagnall & Sons (Leeds) Ltd,No
Http://opendatacommunities.org/id/metropolitan-district-council/leeds,Leeds City Council,31/10/2021,Resources and Housing,Leeds Building Services,Supplies and Services,Other Hired And Contracted Services,265,22/10/2021,2110-00686,0.00,9847.80,R,Alfred Bagnall & Sons (Leeds) Ltd,No
Http://opendatacommunities.org/id/metropolitan-district-council/leeds,Leeds City Council,31/10/2021,Resources and Housing,Leeds Building Services,Supplies and Services,Other Hired And Contracted Services,265,22/10/2021,2110-00687,0.00,550.00,R,Alfred Bagnall & Sons (Leeds) Ltd,No
Http://opendatacommunities.org/id/metropolitan-district-council/leeds,Leeds City Council,31/10/2021,Resources and Housing,Leeds Building Services,Supplies and Services,Other Hired And Contracted Services,265,22/10/2021,2110-00688,0.00,650.00,R,Alfred Bagnall & Sons (Leeds) Ltd,No
Http://opendatacommunities.org/id/metropolitan-district-council/leeds,Leeds City Council,31/10/2021,Resources and Housing,Leeds Building Services,Supplies and Services,Other Hired And Contracted Services,265,25/10/2021,2110-00689,0.00,2047.00,R,Alfred Bagnall & Sons (Leeds) Ltd,No
Http://opendatacommunities.org/id/metropolitan-district-council/leeds,Leeds City Council,31/10/2021,Resources and Housing,Leeds Building Services,Supplies and Services,Other Hired And Contracted Services,265,29/10/2021,2110-00690,0.00,3315.70,R,Alfred Bagnall & Sons (Leeds) Ltd,No
Http://opendatacommunities.org/id/metropolitan-district-council/leeds,Leeds City Council,31/10/2021,Resources and Housing,Leeds Building Services,Supplies and Services,Other Hired And Contracted Services,265,29/10/2021,2110-00691,0.00,10761.16,R,Alfred Bagnall & Sons (Leeds) Ltd,No
Http://opendatacommunities.org/id/metropolitan-district-council/leeds,Leeds City Council,31/10/2021,Resources and Housing,HRA Housing Leeds,Capital,CONSTRUCTION,3,29/10/2021,2110-00692,0.00,30628.00,C,Alfred Bagnall & Sons (Leeds) Ltd,No
Http://opendatacommunities.org/id/metropolitan-district-council/leeds,Leeds City Council,31/10/2021,City Development,Libraries Arts & Heritage,Supplies and Services,Other Hired And Contracted Services,265,29/10/2021,2110-00693,0.00,6256.00,R,Alfred Bagnall & Sons (Leeds) Ltd,No
Http://opendatacommunities.org/id/metropolitan-district-council/leeds,Leeds City Council,31/10/2021,Resources and Housing,Corporate Property Management,Capital,CONSTRUCTION,3,29/10/2021,2110-00694,0.00,16000.00,C,Alfred Bagnall & Sons (Leeds) Ltd,No
Http://opendatacommunities.org/id/metropolitan-district-council/leeds,Leeds City Council,31/10/2021,Communities and Environment,Benefits Welfare and Poverty,Supplies and Services,Grant Related Expenditure,298,07/10/2021,2110-00695,0.00,500.00,R,REDACTED PERSONAL DATA,No
Http://opendatacommunities.org/id/metropolitan-district-council/leeds,Leeds City Council,31/10/2021,Communities and Environment,Benefits Welfare and Poverty,Supplies and Services,Grant Related Expenditure,290,11/10/2021,2110-00696,0.00,500.00,R,REDACTED PERSONAL DATA,No
Http://opendatacommunities.org/id/metropolitan-district-council/leeds,Leeds City Council,31/10/2021,Children and Families,Social Care,Appropriations,Leaving Care Allowances,634,20/10/2021,2110-00697,0.00,120.00,R,REDACTED PERSONAL DATA,No
Http://opendatacommunities.org/id/metropolitan-district-council/leeds,Leeds City Council,31/10/2021,Communities and Environment,Benefits Welfare and Poverty,Supplies and Services,Grant Related Expenditure,298,27/10/2021,2110-00698,0.00,500.00,R,REDACTED PERSONAL DATA,No
Http://opendatacommunities.org/id/metropolitan-district-council/leeds,Leeds City Council,31/10/2021,Communities and Environment,Customer Access,Supplies and Services,Bought In Professional Services,277,06/10/2021,2110-00699,0.00,22.50,R,Ali Pourakaberian,No
Http://opendatacommunities.org/id/metropolitan-district-council/leeds,Leeds City Council,31/10/2021,Communities and Environment,Customer Access,Supplies and Services,Bought In Professional Services,277,06/10/2021,2110-00700,0.00,27.00,R,Ali Pourakaberian,No
Http://opendatacommunities.org/id/metropolitan-district-council/leeds,Leeds City Council,31/10/2021,Communities and Environment,Customer Access,Supplies and Services,Bought In Professional Services,277,13/10/2021,2110-00701,0.00,13.50,R,Ali Pourakaberian,No
Http://opendatacommunities.org/id/metropolitan-district-council/leeds,Leeds City Council,31/10/2021,Communities and Environment,Customer Access,Supplies and Services,Bought In Professional Services,277,13/10/2021,2110-00702,0.00,27.00,R,Ali Pourakaberian,No
Http://opendatacommunities.org/id/metropolitan-district-council/leeds,Leeds City Council,31/10/2021,Communities and Environment,Customer Access,Supplies and Services,Bought In Professional Services,277,13/10/2021,2110-00703,0.00,9.00,R,Ali Pourakaberian,No
Http://opendatacommunities.org/id/metropolitan-district-council/leeds,Leeds City Council,31/10/2021,Communities and Environment,Customer Access,Supplies and Services,Bought In Professional Services,277,20/10/2021,2110-00704,0.00,13.50,R,Ali Pourakaberian,No
Http://opendatacommunities.org/id/metropolitan-district-council/leeds,Leeds City Council,31/10/2021,Communities and Environment,Customer Access,Supplies and Services,Bought In Professional Services,277,20/10/2021,2110-00705,0.00,18.00,R,Ali Pourakaberian,No
Http://opendatacommunities.org/id/metropolitan-district-council/leeds,Leeds City Council,31/10/2021,Communities and Environment,Customer Access,Supplies and Services,Bought In Professional Services,277,20/10/2021,2110-00706,0.00,18.00,R,Ali Pourakaberian,No
Http://opendatacommunities.org/id/metropolitan-district-council/leeds,Leeds City Council,31/10/2021,Communities and Environment,Customer Access,Supplies and Services,Bought In Professional Services,277,20/10/2021,2110-00707,0.00,27.00,R,Ali Pourakaberian,No
Http://opendatacommunities.org/id/metropolitan-district-council/leeds,Leeds City Council,31/10/2021,Communities and Environment,Customer Access,Supplies and Services,Bought In Professional Services,277,20/10/2021,2110-00708,0.00,27.00,R,Ali Pourakaberian,No
Http://opendatacommunities.org/id/metropolitan-district-council/leeds,Leeds City Council,31/10/2021,Children and Families,Social Care,Supplies and Services,General Amenity For Clients/Residents,285,22/10/2021,2110-00709,0.00,56.95,R,REDACTED PERSONAL DATA,No
Http://opendatacommunities.org/id/metropolitan-district-council/leeds,Leeds City Council,31/10/2021,Children and Families,Social Care,Transport,Public Transport Expenses,310,22/10/2021,2110-00710,0.00,14.08,R,REDACTED PERSONAL DATA,No
Http://opendatacommunities.org/id/metropolitan-district-council/leeds,Leeds City Council,31/10/2021,Insurance,Insurance,Supplies and Services,Other Hired And Contracted Services,265,14/10/2021,2110-00711,0.00,300.00,R,Alice Dobbie,No
Http://opendatacommunities.org/id/metropolitan-district-council/leeds,Leeds City Council,31/10/2021,Insurance,Insurance,Supplies and Services,Other Hired And Contracted Services,265,27/10/2021,2110-00712,0.00,300.00,R,Alice Dobbie,No
Http://opendatacommunities.org/id/metropolitan-district-council/leeds,Leeds City Council,31/10/2021,Insurance,Insurance,Supplies and Services,Other Hired And Contracted Services,265,29/10/2021,2110-00713,0.00,1370.00,R,Alice Dobbie,No
Http://opendatacommunities.org/id/metropolitan-district-council/leeds,Leeds City Council,31/10/2021,Communities and Environment,Benefits Welfare and Poverty,Supplies and Services,Grant Related Expenditure,290,18/10/2021,2110-00714,0.00,500.00,R,REDACTED PERSONAL DATA,No
Http://opendatacommunities.org/id/metropolitan-district-council/leeds,Leeds City Council,31/10/2021,Communities and Environment,Benefits Welfare and Poverty,Supplies and Services,Grant Related Expenditure,298,19/10/2021,2110-00715,0.00,500.00,R,REDACTED PERSONAL DATA,No
Http://opendatacommunities.org/id/metropolitan-district-council/leeds,Leeds City Council,31/10/2021,Adults and Health,Assessment And Care Management,Supplies and Services,Other Hired And Contracted Services,265,14/10/2021,2110-00716,0.00,27.00,R,REDACTED PERSONAL DATA,No
Http://opendatacommunities.org/id/metropolitan-district-council/leeds,Leeds City Council,31/10/2021,Communities and Environment,Benefits Welfare and Poverty,Supplies and Services,Grant Related Expenditure,298,19/10/2021,2110-00717,0.00,500.00,R,REDACTED PERSONAL DATA,No
Http://opendatacommunities.org/id/metropolitan-district-council/leeds,Leeds City Council,31/10/2021,Communities and Environment,Benefits Welfare and Poverty,Supplies and Services,Grant Related Expenditure,298,01/10/2021,2110-00718,0.00,500.00,R,REDACTED PERSONAL DATA,No
Http://opendatacommunities.org/id/metropolitan-district-council/leeds,Leeds City Council,31/10/2021,Children and Families,Social Care,Appropriations,Leaving Care Allowances,634,28/10/2021,2110-00719,0.00,120.00,R,REDACTED PERSONAL DATA,No
Http://opendatacommunities.org/id/metropolitan-district-council/leeds,Leeds City Council,31/10/2021,Children and Families,Social Care,Agency Payments,Services Rendered By Other Organisations,511,01/10/2021,2110-00720,0.00,652.27,R,REDACTED PERSONAL DATA,No
Http://opendatacommunities.org/id/metropolitan-district-council/leeds,Leeds City Council,31/10/2021,Communities and Environment,Benefits Welfare and Poverty,Supplies and Services,Grant Related Expenditure,290,05/10/2021,2110-00721,0.00,500.00,R,REDACTED PERSONAL DATA,No
Http://opendatacommunities.org/id/metropolitan-district-council/leeds,Leeds City Council,31/10/2021,Communities and Environment,Customer Access,Supplies and Services,Other Hired And Contracted Services,265,15/09/2021,2110-00722,0.00,3860.00,R,Alison Handling Services,Yes
Http://opendatacommunities.org/id/metropolitan-district-council/leeds,Leeds City Council,31/10/2021,Strategic Landlord,Property and Contracts,Internal Recharges,Legal Disbursements,411,06/10/2021,2110-00723,0.00,4000.00,R,Alison Law Solicitors,No
Http://opendatacommunities.org/id/metropolitan-district-council/leeds,Leeds City Council,31/10/2021,Strategic Landlord,Property and Contracts,Supplies and Services,Insurance Claims,248,26/10/2021,2110-00724,0.00,5500.00,R,Alison Law Solicitors,No
Http://opendatacommunities.org/id/metropolitan-district-council/leeds,Leeds City Council,31/10/2021,Strategic Landlord,Property and Contracts,Supplies and Services,Insurance Claims,248,26/10/2021,2110-00725,0.00,8250.00,R,Alison Law Solicitors,No
Http://opendatacommunities.org/id/metropolitan-district-council/leeds,Leeds City Council,31/10/2021,Communities and Environment,Benefits Welfare and Poverty,Supplies and Services,Grant Related Expenditure,290,18/10/2021,2110-00726,0.00,500.00,R,REDACTED PERSONAL DATA,No
Http://opendatacommunities.org/id/metropolitan-district-council/leeds,Leeds City Council,31/10/2021,Communities and Environment,Benefits Welfare and Poverty,Supplies and Services,Grant Related Expenditure,298,13/10/2021,2110-00727,0.00,500.00,R,REDACTED PERSONAL DATA,No
Http://opendatacommunities.org/id/metropolitan-district-council/leeds,Leeds City Council,31/10/2021,Children and Families,Social Care,Supplies and Services,Food & Drink,231,06/10/2021,2110-00728,0.00,25.00,R,REDACTED PERSONAL DATA,No
Http://opendatacommunities.org/id/metropolitan-district-council/leeds,Leeds City Council,31/10/2021,Children and Families,Social Care,Supplies and Services,Other Hired And Contracted Services,265,06/10/2021,2110-00729,0.00,13.00,R,REDACTED PERSONAL DATA,No
Http://opendatacommunities.org/id/metropolitan-district-council/leeds,Leeds City Council,31/10/2021,Children and Families,Social Care,Transport,Car & Motorcycle Allowances,311,06/10/2021,2110-00730,0.00,11.25,R,REDACTED PERSONAL DATA,No
Http://opendatacommunities.org/id/metropolitan-district-council/leeds,Leeds City Council,31/10/2021,Resources and Housing,Strategy and Improvement,Supplies and Services,Other Hired And Contracted Services,265,27/09/2021,2110-00731,0.00,198.33,R,Alive Network Ltd Vt,Yes
Http://opendatacommunities.org/id/metropolitan-district-council/leeds,Leeds City Council,31/10/2021,Children and Families,Social Care,Appropriations,Leaving Care Allowances,634,18/10/2021,2110-00732,0.00,23.00,R,REDACTED PERSONAL DATA,No
Http://opendatacommunities.org/id/metropolitan-district-council/leeds,Leeds City Council,31/10/2021,City Development,Recreation,External Income,Swimming Bath Charges,923,04/10/2021,2110-00733,0.00,130.50,R,REDACTED PERSONAL DATA,No
Http://opendatacommunities.org/id/metropolitan-district-council/leeds,Leeds City Council,31/10/2021,Strategic Accounts,Miscellaneous,Supplies and Services,Non-Recurring Grants,227,06/10/2021,2110-00734,0.00,2000.00,R,All Hallows Church,No
Http://opendatacommunities.org/id/metropolitan-district-council/leeds,Leeds City Council,31/10/2021,Children and Families,Social Care,Agency Payments,Services Rendered By Other Organisations,511,01/10/2021,2110-00735,0.00,10871.25,R,All Stars Childcare,No
Http://opendatacommunities.org/id/metropolitan-district-council/leeds,Leeds City Council,31/10/2021,Children and Families,Social Care,Agency Payments,Services Rendered By Other Organisations,511,06/10/2021,2110-00736,0.00,783.90,R,All Stars Childcare,No
Http://opendatacommunities.org/id/metropolitan-district-council/leeds,Leeds City Council as Accountable Body,31/10/2021,Social Services Pooled Budgets,Jcs For People With Learning Disabilitie,Agency Payments,Sheltered Accommodation,569,13/10/2021,2110-00737,0.00,11306.74,R,Allerton Avenue,No
Http://opendatacommunities.org/id/metropolitan-district-council/leeds,Leeds City Council,31/10/2021,Adults and Health,Services For Older People - 65 And Over,Agency Payments,Nursing Care Dementia,574,13/10/2021,2110-00738,0.00,2390.08,R,ALLERTON PARK N H,No
Http://opendatacommunities.org/id/metropolitan-district-council/leeds,Leeds City Council,31/10/2021,Resources and Housing,Commercial Services,Supplies and Services,Operational Materials,205,01/10/2021,2110-00739,0.00,112.23,R,ALLIANCE DISPOSABLES LTD,No
Http://opendatacommunities.org/id/metropolitan-district-council/leeds,Leeds City Council,31/10/2021,Resources and Housing,Commercial Services,Supplies and Services,Operational Materials,205,06/10/2021,2110-00740,0.00,74.82,R,ALLIANCE DISPOSABLES LTD,No
Http://opendatacommunities.org/id/metropolitan-district-council/leeds,Leeds City Council,31/10/2021,Resources and Housing,Commercial Services,Supplies and Services,Operational Materials,205,06/10/2021,2110-00741,0.00,429.87,R,ALLIANCE DISPOSABLES LTD,No
Http://opendatacommunities.org/id/metropolitan-district-council/leeds,Leeds City Council,31/10/2021,Resources and Housing,Commercial Services,Supplies and Services,Operational Materials,205,06/10/2021,2110-00742,0.00,367.85,R,ALLIANCE DISPOSABLES LTD,No
Http://opendatacommunities.org/id/metropolitan-district-council/leeds,Leeds City Council,31/10/2021,Resources and Housing,Commercial Services,Supplies and Services,Operational Materials,205,06/10/2021,2110-00743,0.00,74.82,R,ALLIANCE DISPOSABLES LTD,No
Http://opendatacommunities.org/id/metropolitan-district-council/leeds,Leeds City Council,31/10/2021,Resources and Housing,Commercial Services,Supplies and Services,Operational Materials,205,08/10/2021,2110-00744,0.00,224.46,R,ALLIANCE DISPOSABLES LTD,No
Http://opendatacommunities.org/id/metropolitan-district-council/leeds,Leeds City Council,31/10/2021,Resources and Housing,Commercial Services,Supplies and Services,Operational Materials,205,12/10/2021,2110-00745,0.00,74.82,R,ALLIANCE DISPOSABLES LTD,No
Http://opendatacommunities.org/id/metropolitan-district-council/leeds,Leeds City Council,31/10/2021,Resources and Housing,Commercial Services,Supplies and Services,Operational Materials,205,12/10/2021,2110-00746,0.00,92.16,R,ALLIANCE DISPOSABLES LTD,No
Http://opendatacommunities.org/id/metropolitan-district-council/leeds,Leeds City Council,31/10/2021,Resources and Housing,Commercial Services,Supplies and Services,Operational Materials,205,12/10/2021,2110-00747,0.00,30.56,R,ALLIANCE DISPOSABLES LTD,No
Http://opendatacommunities.org/id/metropolitan-district-council/leeds,Leeds City Council,31/10/2021,Resources and Housing,Commercial Services,Supplies and Services,Operational Materials,205,14/10/2021,2110-00748,0.00,224.46,R,ALLIANCE DISPOSABLES LTD,No
Http://opendatacommunities.org/id/metropolitan-district-council/leeds,Leeds City Council,31/10/2021,Resources and Housing,Commercial Services,Supplies and Services,Operational Materials,205,15/10/2021,2110-00749,0.00,74.82,R,ALLIANCE DISPOSABLES LTD,No
Http://opendatacommunities.org/id/metropolitan-district-council/leeds,Leeds City Council,31/10/2021,Resources and Housing,Commercial Services,Supplies and Services,Operational Materials,205,15/10/2021,2110-00750,0.00,158.43,R,ALLIANCE DISPOSABLES LTD,No
Http://opendatacommunities.org/id/metropolitan-district-council/leeds,Leeds City Council,31/10/2021,Resources and Housing,Commercial Services,Supplies and Services,Operational Materials,205,15/10/2021,2110-00751,0.00,74.82,R,ALLIANCE DISPOSABLES LTD,No
Http://opendatacommunities.org/id/metropolitan-district-council/leeds,Leeds City Council,31/10/2021,Resources and Housing,Commercial Services,Supplies and Services,Operational Materials,205,20/10/2021,2110-00752,0.00,224.46,R,ALLIANCE DISPOSABLES LTD,No
Http://opendatacommunities.org/id/metropolitan-district-council/leeds,Leeds City Council,31/10/2021,Resources and Housing,Commercial Services,Supplies and Services,Operational Materials,205,20/10/2021,2110-00753,0.00,2.01,R,ALLIANCE DISPOSABLES LTD,No
Http://opendatacommunities.org/id/metropolitan-district-council/leeds,Leeds City Council,31/10/2021,Resources and Housing,Commercial Services,Supplies and Services,Operational Materials,205,22/10/2021,2110-00754,0.00,56.27,R,ALLIANCE DISPOSABLES LTD,No
Http://opendatacommunities.org/id/metropolitan-district-council/leeds,Leeds City Council,31/10/2021,Resources and Housing,Commercial Services,Supplies and Services,Operational Materials,205,22/10/2021,2110-00755,0.00,37.41,R,ALLIANCE DISPOSABLES LTD,No
Http://opendatacommunities.org/id/metropolitan-district-council/leeds,Leeds City Council,31/10/2021,Resources and Housing,Commercial Services,Supplies and Services,Operational Materials,205,22/10/2021,2110-00756,0.00,37.41,R,ALLIANCE DISPOSABLES LTD,No
Http://opendatacommunities.org/id/metropolitan-district-council/leeds,Leeds City Council,31/10/2021,Resources and Housing,Commercial Services,Supplies and Services,Operational Materials,205,22/10/2021,2110-00757,0.00,112.23,R,ALLIANCE DISPOSABLES LTD,No
Http://opendatacommunities.org/id/metropolitan-district-council/leeds,Leeds City Council,31/10/2021,Resources and Housing,Commercial Services,Supplies and Services,Operational Materials,205,22/10/2021,2110-00758,0.00,33.38,R,ALLIANCE DISPOSABLES LTD,No
Http://opendatacommunities.org/id/metropolitan-district-council/leeds,Leeds City Council,31/10/2021,Resources and Housing,Commercial Services,Supplies and Services,Operational Materials,205,27/10/2021,2110-00759,0.00,37.41,R,ALLIANCE DISPOSABLES LTD,No
Http://opendatacommunities.org/id/metropolitan-district-council/leeds,Leeds City Council,31/10/2021,Resources and Housing,Commercial Services,Supplies and Services,Operational Materials,205,27/10/2021,2110-00760,0.00,29.14,R,ALLIANCE DISPOSABLES LTD,No
Http://opendatacommunities.org/id/metropolitan-district-council/leeds,Leeds City Council,31/10/2021,Resources and Housing,Commercial Services,Supplies and Services,Operational Materials,205,27/10/2021,2110-00761,0.00,74.82,R,ALLIANCE DISPOSABLES LTD,No
Http://opendatacommunities.org/id/metropolitan-district-council/leeds,Leeds City Council,31/10/2021,Resources and Housing,Commercial Services,Supplies and Services,Operational Materials,205,27/10/2021,2110-00762,0.00,269.35,R,ALLIANCE DISPOSABLES LTD,No
Http://opendatacommunities.org/id/metropolitan-district-council/leeds,Leeds City Council,31/10/2021,Resources and Housing,Commercial Services,Supplies and Services,Operational Materials,205,29/10/2021,2110-00763,0.00,37.41,R,ALLIANCE DISPOSABLES LTD,No
Http://opendatacommunities.org/id/metropolitan-district-council/leeds,Leeds City Council,31/10/2021,Resources and Housing,Commercial Services,Supplies and Services,Operational Materials,205,29/10/2021,2110-00764,0.00,184.55,R,ALLIANCE DISPOSABLES LTD,No
Http://opendatacommunities.org/id/metropolitan-district-council/leeds,Leeds City Council,31/10/2021,Resources and Housing,Commercial Services,Supplies and Services,Operational Materials,205,29/10/2021,2110-00765,0.00,149.60,R,ALLIANCE DISPOSABLES LTD,No
Http://opendatacommunities.org/id/metropolitan-district-council/leeds,Leeds City Council,31/10/2021,Resources and Housing,Commercial Services,Supplies and Services,Operational Materials,205,29/10/2021,2110-00766,0.00,75.33,R,ALLIANCE DISPOSABLES LTD,No
Http://opendatacommunities.org/id/metropolitan-district-council/leeds,Leeds City Council,31/10/2021,Resources and Housing,Commercial Services,Supplies and Services,Operational Materials,205,29/10/2021,2110-00767,0.00,516.24,R,ALLIANCE DISPOSABLES LTD,No
Http://opendatacommunities.org/id/metropolitan-district-council/leeds,Leeds City Council,31/10/2021,Resources and Housing,Commercial Services,Supplies and Services,Operational Materials,205,29/10/2021,2110-00768,0.00,55.66,R,ALLIANCE DISPOSABLES LTD,No
Http://opendatacommunities.org/id/metropolitan-district-council/leeds,Leeds City Council as Accountable Body,31/10/2021,Social Services Pooled Budgets,Jcs For People With Learning Disabilitie,Agency Payments,Home Care,568,01/10/2021,2110-00769,0.00,14771.18,R,Allied Healthcare,No
Http://opendatacommunities.org/id/metropolitan-district-council/leeds,Leeds City Council as Accountable Body,31/10/2021,Social Services Pooled Budgets,Jcs For People With Learning Disabilitie,Agency Payments,Home Care,568,19/10/2021,2110-00770,0.00,15189.64,R,Allied Healthcare,No
Http://opendatacommunities.org/id/metropolitan-district-council/leeds,Leeds City Council,31/10/2021,Adults and Health,Services For Adults Under 65 Mental/Dis,Agency Payments,Home Care,568,20/10/2021,2110-00771,0.00,1768.00,R,Allied Healthcare,No
Http://opendatacommunities.org/id/metropolitan-district-council/leeds,Leeds City Council,31/10/2021,Adults and Health,Services For Older People - 65 And Over,Agency Payments,Home Care,568,20/10/2021,2110-00772,0.00,46382.50,R,Allied Healthcare,No
Http://opendatacommunities.org/id/metropolitan-district-council/leeds,Leeds City Council,31/10/2021,Adults and Health,Services For Older People - 65 And Over,Agency Payments,HCAIT Community Support,575,20/10/2021,2110-00773,0.00,212.16,R,Allied Healthcare,No
Http://opendatacommunities.org/id/metropolitan-district-council/leeds,Leeds City Council,31/10/2021,Adults and Health,Services For Older People - 65 And Over,Agency Payments,HCAIT Other,577,20/10/2021,2110-00774,0.00,2027.64,R,Allied Healthcare,No
Http://opendatacommunities.org/id/metropolitan-district-council/leeds,Leeds City Council,31/10/2021,Adults and Health,Services For Older People Under 65 P/Dis,Agency Payments,Home Care,568,20/10/2021,2110-00775,0.00,10996.96,R,Allied Healthcare,No
